Workbook

Sheet PAGE_1
A2: M&I 2024 Sch A-13 FSOD F.Z26.XLSM
A3: 2023-10-02
A4: CENTRAL VALLEY PROJECT
A5: SCHEDULE OF PROJECTED (2024 - 2073) M&I WATER DELIVERIES
A6: FOR CALCULATION OF INDIVIDUAL CONTRACTOR PRORATED FOLSOM SOD MODIFICATION PROJECT COSTS AND RATE
A8: PAGE | B8: FACILITIES
A9: 2 | B9: Black Butte D & R
A10: 2 | B10: Clear Creek Unit
A11: 2 | B11: Contra Costa Canal
A12: 2 | B12: Cow Creek Unit
A13: 3 | B13: Cross Valley Canal
A14: 3 - 4 | B14: Delta-Mendota Canal
A15: 4 | B15: Folsom D & R
A16: 5 | B16: Folsom-South Canal
A17: 5 | B17: Friant Dam
A18: 6 - 7 | B18: Friant-Kern Canal
A19: 7 | B19: New Melones D & R
A20: 7 - 8 | B20: Sacramento River
A21: 8 | B21: San Felipe Unit In-Basin
A22: 9 | B22: San Luis Canal - Fresno
A23: 10 | B23: San Luis Canal - Tracy
A24: 10 | B24: Shasta D & R
A25: 11 | B25: Spring Creek Conduit
A26: 11 | B26: Tehama-Colusa Canal
A27: 12 | B27: Toyon Pipeline
A28: 12 | B28: Delta Mendota Exchange
A29: 13 - 15 | B29: Totals by Service Area
A30: 16 | B30: Footnotes

Sheet Page_2
A2: M&I 2024 Sch A-13 FSOD F.Z26.XLSM
A3: 2023-10-02
A4: SCHEDULE OF PROJECTED (2024 - 2073) M&I WATER DELIVERIES
A5: FOR CALCULATION OF INDIVIDUAL CONTRACTOR PRORATED FOLSOM SOD MODIFICATION PROJECT COSTS AND RATE
A7: YEAR | B7: BLACK BUTTE D&R: BBD&R COUNTY OF COLUSA AF | C7: BLACK BUTTE D&R: BBD&R COUNTY OF COLUSA PW OF AF | D7: BLACK BUTTE D&R: BBD&R ELK CREEK CSD AF | E7: BLACK BUTTE D&R: BBD&R ELK CREEK CSD PW OF AF | F7: BLACK BUTTE D&R: BBD&R US FOREST SVC AF | G7: BLACK BUTTE D&R: BBD&R US FOREST SVC PW OF AF | H7: BLACK BUTTE D&R: BBD&R WHITNEY CONST. AF | I7: BLACK BUTTE D&R: BBD&R WHITNEY CONST. PW OF AF | J7: BLACK BUTTE D&R: BBD&R TOTAL AF | K7: BLACK BUTTE D&R: BBD&R TOTAL PW OF AF | L7: CLEAR CREEK UNIT: ClCU CLEAR CREEK CSD AF | M7: CLEAR CREEK UNIT: ClCU CLEAR CREEK CSD PW OF AF | N7: CONTRA COSTA CANAL: CCC CONTRA COSTA WD AF | O7: CONTRA COSTA CANAL: CCC CONTRA COSTA WD PW OF AF | P7: COW CREEK UNIT: CoCU BELLA VISTA WD AF | Q7: COW CREEK UNIT: CoCU BELLA VISTA WD PW OF AF
A8: 2024 | B8: 7 | C8: - | D8: 14 | E8: - | F8: 8.857142857 | G8: - | H8: 4 | I8: - | J8: 33.85714286 | K8: 0 | L8: 1571.571429 | M8: 0 | N8: 81034 | O8: 0 | P8: 3638.571429 | Q8: 0
A9: 2025 | B9: 7 | C9: - | D9: 14 | E9: - | F9: 8.857142857 | G9: - | H9: 4 | I9: - | J9: 33.85714286 | K9: 0 | L9: 1571.571429 | M9: 0 | N9: 81034 | O9: 0 | P9: 3638.571429 | Q9: 0
A10: 2026 | B10: 7 | C10: - | D10: 14 | E10: - | F10: 8.857142857 | G10: - | H10: 4 | I10: - | J10: 33.85714286 | K10: 0 | L10: 1571.571429 | M10: 0 | N10: 81034 | O10: 0 | P10: 3638.571429 | Q10: 0
A11: 2027 | B11: 7 | C11: - | D11: 14 | E11: - | F11: 8.857142857 | G11: - | H11: 4 | I11: - | J11: 33.85714286 | K11: 0 | L11: 1571.571429 | M11: 0 | N11: 81034 | O11: 0 | P11: 3638.571429 | Q11: 0
A12: 2028 | B12: 7 | C12: - | D12: 14 | E12: - | F12: 8.857142857 | G12: - | H12: 4 | I12: - | J12: 33.85714286 | K12: 0 | L12: 1571.571429 | M12: 0 | N12: 81034 | O12: 0 | P12: 3638.571429 | Q12: 0
A13: 2029 | B13: 7 | C13: - | D13: 14 | E13: - | F13: 8.857142857 | G13: - | H13: 4 | I13: - | J13: 33.85714286 | K13: 0 | L13: 1571.571429 | M13: 0 | N13: 81034 | O13: 0 | P13: 3638.571429 | Q13: 0
A14: 2030 | B14: 7 | C14: - | D14: 14 | E14: - | F14: 8.857142857 | G14: - | H14: 4 | I14: - | J14: 33.85714286 | K14: 0 | L14: 1571.571429 | M14: 0 | N14: 81034 | O14: 0 | P14: 3638.571429 | Q14: 0
A15: 2031 | B15: 7 | C15: - | D15: 14 | E15: - | F15: 8.857142857 | G15: - | H15: 4 | I15: - | J15: 33.85714286 | K15: 0 | L15: 1571.571429 | M15: 0 | N15: 81034 | O15: 0 | P15: 3638.571429 | Q15: 0
A16: 2032 | B16: 7 | C16: - | D16: 14 | E16: - | F16: 8.857142857 | G16: - | H16: 4 | I16: - | J16: 33.85714286 | K16: 0 | L16: 1571.571429 | M16: 0 | N16: 81034 | O16: 0 | P16: 3638.571429 | Q16: 0
A17: 2033 | B17: 7 | C17: - | D17: 14 | E17: - | F17: 8.857142857 | G17: - | H17: 4 | I17: - | J17: 33.85714286 | K17: 0 | L17: 1571.571429 | M17: 0 | N17: 81034 | O17: 0 | P17: 3638.571429 | Q17: 0
A18: 2034 | B18: 7 | C18: - | D18: 14 | E18: - | F18: 8.857142857 | G18: - | H18: 4 | I18: - | J18: 33.85714286 | K18: 0 | L18: 1571.571429 | M18: 0 | N18: 81034 | O18: 0 | P18: 3638.571429 | Q18: 0
A19: 2035 | B19: 7 | C19: - | D19: 14 | E19: - | F19: 8.857142857 | G19: - | H19: 4 | I19: - | J19: 33.85714286 | K19: 0 | L19: 1571.571429 | M19: 0 | N19: 81034 | O19: 0 | P19: 3638.571429 | Q19: 0
A20: 2036 | B20: 7 | C20: - | D20: 14 | E20: - | F20: 8.857142857 | G20: - | H20: 4 | I20: - | J20: 33.85714286 | K20: 0 | L20: 1571.571429 | M20: 0 | N20: 81034 | O20: 0 | P20: 3638.571429 | Q20: 0
A21: 2037 | B21: 7 | C21: - | D21: 14 | E21: - | F21: 8.857142857 | G21: - | H21: 4 | I21: - | J21: 33.85714286 | K21: 0 | L21: 1571.571429 | M21: 0 | N21: 81034 | O21: 0 | P21: 3638.571429 | Q21: 0
A22: 2038 | B22: 7 | C22: - | D22: 14 | E22: - | F22: 8.857142857 | G22: - | H22: 4 | I22: - | J22: 33.85714286 | K22: 0 | L22: 1571.571429 | M22: 0 | N22: 81034 | O22: 0 | P22: 3638.571429 | Q22: 0
A23: 2039 | B23: 7 | C23: - | D23: 14 | E23: - | F23: 8.857142857 | G23: - | H23: 4 | I23: - | J23: 33.85714286 | K23: 0 | L23: 1571.571429 | M23: 0 | N23: 81034 | O23: 0 | P23: 3638.571429 | Q23: 0
A24: 2040 | B24: 7 | C24: - | D24: 14 | E24: - | F24: 8.857142857 | G24: - | H24: 4 | I24: - | J24: 33.85714286 | K24: 0 | L24: 1571.571429 | M24: 0 | N24: 81034 | O24: 0 | P24: 3638.571429 | Q24: 0
A25: 2041 | B25: 7 | C25: - | D25: 14 | E25: - | F25: 8.857142857 | G25: - | H25: 4 | I25: - | J25: 33.85714286 | K25: 0 | L25: 1571.571429 | M25: 0 | N25: 81034 | O25: 0 | P25: 3638.571429 | Q25: 0
A26: 2042 | B26: 7 | C26: - | D26: 14 | E26: - | F26: 8.857142857 | G26: - | H26: 4 | I26: - | J26: 33.85714286 | K26: 0 | L26: 1571.571429 | M26: 0 | N26: 81034 | O26: 0 | P26: 3638.571429 | Q26: 0
A27: 2043 | B27: 7 | C27: - | D27: 14 | E27: - | F27: 8.857142857 | G27: - | H27: 4 | I27: - | J27: 33.85714286 | K27: 0 | L27: 1571.571429 | M27: 0 | N27: 81034 | O27: 0 | P27: 3638.571429 | Q27: 0
A28: 2044 | B28: 7 | C28: - | D28: 14 | E28: - | F28: 8.857142857 | G28: - | H28: 4 | I28: - | J28: 33.85714286 | K28: 0 | L28: 1571.571429 | M28: 0 | N28: 81034 | O28: 0 | P28: 3638.571429 | Q28: 0
A29: 2045 | B29: 7 | C29: - | D29: 14 | E29: - | F29: 8.857142857 | G29: - | H29: 4 | I29: - | J29: 33.85714286 | K29: 0 | L29: 1571.571429 | M29: 0 | N29: 81034 | O29: 0 | P29: 3638.571429 | Q29: 0
A30: 2046 | B30: 7 | C30: - | D30: 14 | E30: - | F30: 8.857142857 | G30: - | H30: 4 | I30: - | J30: 33.85714286 | K30: 0 | L30: 1571.571429 | M30: 0 | N30: 81034 | O30: 0 | P30: 3638.571429 | Q30: 0
A31: 2047 | B31: 7 | C31: - | D31: 14 | E31: - | F31: 8.857142857 | G31: - | H31: 4 | I31: - | J31: 33.85714286 | K31: 0 | L31: 1571.571429 | M31: 0 | N31: 81034 | O31: 0 | P31: 3638.571429 | Q31: 0
A32: 2048 | B32: 7 | C32: - | D32: 14 | E32: - | F32: 8.857142857 | G32: - | H32: 4 | I32: - | J32: 33.85714286 | K32: 0 | L32: 1571.571429 | M32: 0 | N32: 81034 | O32: 0 | P32: 3638.571429 | Q32: 0
A33: 2049 | B33: 7 | C33: - | D33: 14 | E33: - | F33: 8.857142857 | G33: - | H33: 4 | I33: - | J33: 33.85714286 | K33: 0 | L33: 1571.571429 | M33: 0 | N33: 81034 | O33: 0 | P33: 3638.571429 | Q33: 0
A34: 2050 | B34: 7 | C34: - | D34: 14 | E34: - | F34: 8.857142857 | G34: - | H34: 4 | I34: - | J34: 33.85714286 | K34: 0 | L34: 1571.571429 | M34: 0 | N34: 81034 | O34: 0 | P34: 3638.571429 | Q34: 0
A35: 2051 | B35: 7 | C35: - | D35: 14 | E35: - | F35: 8.857142857 | G35: - | H35: 4 | I35: - | J35: 33.85714286 | K35: 0 | L35: 1571.571429 | M35: 0 | N35: 81034 | O35: 0 | P35: 3638.571429 | Q35: 0
A36: 2052 | B36: 7 | C36: - | D36: 14 | E36: - | F36: 8.857142857 | G36: - | H36: 4 | I36: - | J36: 33.85714286 | K36: 0 | L36: 1571.571429 | M36: 0 | N36: 81034 | O36: 0 | P36: 3638.571429 | Q36: 0
A37: 2053 | B37: 7 | C37: - | D37: 14 | E37: - | F37: 8.857142857 | G37: - | H37: 4 | I37: - | J37: 33.85714286 | K37: 0 | L37: 1571.571429 | M37: 0 | N37: 81034 | O37: 0 | P37: 3638.571429 | Q37: 0
A38: 2054 | B38: 7 | C38: - | D38: 14 | E38: - | F38: 8.857142857 | G38: - | H38: 4 | I38: - | J38: 33.85714286 | K38: 0 | L38: 1571.571429 | M38: 0 | N38: 81034 | O38: 0 | P38: 3638.571429 | Q38: 0
A39: 2055 | B39: 7 | C39: - | D39: 14 | E39: - | F39: 8.857142857 | G39: - | H39: 4 | I39: - | J39: 33.85714286 | K39: 0 | L39: 1571.571429 | M39: 0 | N39: 81034 | O39: 0 | P39: 3638.571429 | Q39: 0
A40: 2056 | B40: 7 | C40: - | D40: 14 | E40: - | F40: 8.857142857 | G40: - | H40: 4 | I40: - | J40: 33.85714286 | K40: 0 | L40: 1571.571429 | M40: 0 | N40: 81034 | O40: 0 | P40: 3638.571429 | Q40: 0
A41: 2057 | B41: 7 | C41: - | D41: 14 | E41: - | F41: 8.857142857 | G41: - | H41: 4 | I41: - | J41: 33.85714286 | K41: 0 | L41: 1571.571429 | M41: 0 | N41: 81034 | O41: 0 | P41: 3638.571429 | Q41: 0
A42: 2058 | B42: 7 | C42: - | D42: 14 | E42: - | F42: 8.857142857 | G42: - | H42: 4 | I42: - | J42: 33.85714286 | K42: 0 | L42: 1571.571429 | M42: 0 | N42: 81034 | O42: 0 | P42: 3638.571429 | Q42: 0
A43: 2059 | B43: 7 | C43: - | D43: 14 | E43: - | F43: 8.857142857 | G43: - | H43: 4 | I43: - | J43: 33.85714286 | K43: 0 | L43: 1571.571429 | M43: 0 | N43: 81034 | O43: 0 | P43: 3638.571429 | Q43: 0
A44: 2060 | B44: 7 | C44: - | D44: 14 | E44: - | F44: 8.857142857 | G44: - | H44: 4 | I44: - | J44: 33.85714286 | K44: 0 | L44: 1571.571429 | M44: 0 | N44: 81034 | O44: 0 | P44: 3638.571429 | Q44: 0
A45: 2061 | B45: 7 | C45: - | D45: 14 | E45: - | F45: 8.857142857 | G45: - | H45: 4 | I45: - | J45: 33.85714286 | K45: 0 | L45: 1571.571429 | M45: 0 | N45: 81034 | O45: 0 | P45: 3638.571429 | Q45: 0
A46: 2062 | B46: 7 | C46: - | D46: 14 | E46: - | F46: 8.857142857 | G46: - | H46: 4 | I46: - | J46: 33.85714286 | K46: 0 | L46: 1571.571429 | M46: 0 | N46: 81034 | O46: 0 | P46: 3638.571429 | Q46: 0
A47: 2063 | B47: 7 | C47: - | D47: 14 | E47: - | F47: 8.857142857 | G47: - | H47: 4 | I47: - | J47: 33.85714286 | K47: 0 | L47: 1571.571429 | M47: 0 | N47: 81034 | O47: 0 | P47: 3638.571429 | Q47: 0
A48: 2064 | B48: 7 | C48: - | D48: 14 | E48: - | F48: 8.857142857 | G48: - | H48: 4 | I48: - | J48: 33.85714286 | K48: 0 | L48: 1571.571429 | M48: 0 | N48: 81034 | O48: 0 | P48: 3638.571429 | Q48: 0
A49: 2065 | B49: 7 | C49: - | D49: 14 | E49: - | F49: 8.857142857 | G49: - | H49: 4 | I49: - | J49: 33.85714286 | K49: 0 | L49: 1571.571429 | M49: 0 | N49: 81034 | O49: 0 | P49: 3638.571429 | Q49: 0
A50: 2066 | B50: 7 | C50: - | D50: 14 | E50: - | F50: 8.857142857 | G50: - | H50: 4 | I50: - | J50: 33.85714286 | K50: 0 | L50: 1571.571429 | M50: 0 | N50: 81034 | O50: 0 | P50: 3638.571429 | Q50: 0
A51: 2067 | B51: 7 | C51: - | D51: 14 | E51: - | F51: 8.857142857 | G51: - | H51: 4 | I51: - | J51: 33.85714286 | K51: 0 | L51: 1571.571429 | M51: 0 | N51: 81034 | O51: 0 | P51: 3638.571429 | Q51: 0
A52: 2068 | B52: 7 | C52: - | D52: 14 | E52: - | F52: 8.857142857 | G52: - | H52: 4 | I52: - | J52: 33.85714286 | K52: 0 | L52: 1571.571429 | M52: 0 | N52: 81034 | O52: 0 | P52: 3638.571429 | Q52: 0
A53: 2069 | B53: 7 | C53: - | D53: 14 | E53: - | F53: 8.857142857 | G53: - | H53: 4 | I53: - | J53: 33.85714286 | K53: 0 | L53: 1571.571429 | M53: 0 | N53: 81034 | O53: 0 | P53: 3638.571429 | Q53: 0
A54: 2070 | B54: 7 | C54: - | D54: 14 | E54: - | F54: 8.857142857 | G54: - | H54: 4 | I54: - | J54: 33.85714286 | K54: 0 | L54: 1571.571429 | M54: 0 | N54: 81034 | O54: 0 | P54: 3638.571429 | Q54: 0
A55: 2071 | B55: 7 | C55: - | D55: 14 | E55: - | F55: 8.857142857 | G55: - | H55: 4 | I55: - | J55: 33.85714286 | K55: 0 | L55: 1571.571429 | M55: 0 | N55: 81034 | O55: 0 | P55: 3638.571429 | Q55: 0
A56: 2072 | B56: 7 | C56: - | D56: 14 | E56: - | F56: 8.857142857 | G56: - | H56: 4 | I56: - | J56: 33.85714286 | K56: 0 | L56: 1571.571429 | M56: 0 | N56: 81034 | O56: 0 | P56: 3638.571429 | Q56: 0
A57: 2073 | B57: 7 | C57: - | D57: 14 | E57: - | F57: 8.857142857 | G57: - | H57: 4 | I57: - | J57: 33.85714286 | K57: 0 | L57: 1571.571429 | M57: 0 | N57: 81034 | O57: 0 | P57: 3638.571429 | Q57: 0
A58: H&P/T | B58: 350 | C58: 0 | D58: 700 | E58: 0 | F58: 442.8571429 | G58: 0 | H58: 200 | I58: 0 | J58: 1692.857143 | K58: 0 | L58: 78578.57143 | M58: 0 | N58: 4051700 | O58: 0 | P58: 181928.5714 | Q58: 0
A59: 7-Year Hist Avg (A-12) | B59: 7 | C59: 0 | D59: 14 | E59: 0 | F59: 8.857142857 | G59: 0 | H59: 4 | I59: 0 | J59: 33.85714286 | K59: 0 | L59: 1571.571429 | M59: 0 | N59: 81034 | O59: 0 | P59: 3638.571429 | Q59: 0
A60: Projected Del. (A-2ba) | B60: 350 | C60: 0 | D60: 700 | E60: 0 | F60: 442.8571429 | G60: 0 | H60: 200 | I60: 0 | J60: 1692.857143 | K60: 0 | L60: 78578.57143 | M60: 0 | N60: 4051700 | O60: 0 | P60: 181928.5714 | Q60: 0

Sheet PAGE_3
A2: M&I 2024 Sch A-13 FSOD F.Z26.XLSM
A3: 2023-10-02
A4: SCHEDULE OF PROJECTED (2024 - 2073) M&I WATER DELIVERIES
A5: FOR CALCULATION OF INDIVIDUAL CONTRACTOR PRORATED FOLSOM SOD MODIFICATION PROJECT COSTS AND RATE
A6: YEAR | B6: CROSS VALLEY CANAL: CVC COUNTY OF FRESNO AF | C6: CROSS VALLEY CANAL: CVC COUNTY OF FRESNO PW OF AF | D6: CROSS VALLEY CANAL: CVC COUNTY OF TULARE AF | E6: CROSS VALLEY CANAL: CVC COUNTY OF TULARE PW OF AF | F6: CROSS VALLEY CANAL: CVC TOTAL AF | G6: CROSS VALLEY CANAL: CVC TOTAL PW OF AF | H6: DELTA-MENDOTA CANAL: DMC BYRON-BETHANY ID AF | I6: DELTA-MENDOTA CANAL: DMC BYRON-BETHANY ID PW OF AF | J6: DELTA-MENDOTA CANAL: DMC CITY OF TRACY AF | K6: DELTA-MENDOTA CANAL: DMC CITY OF TRACY PW OF AF | L6: DELTA-MENDOTA CANAL: DMC DEL PUERTO WD AF | M6: DELTA-MENDOTA CANAL: DMC DEL PUERTO WD PW OF AF | N6: DELTA-MENDOTA CANAL: DMC DEPT. OF VETERANS AFFAIRS AF | O6: DELTA-MENDOTA CANAL: DMC DEPT. OF VETERANS AFFAIRS PW OF AF | P6: DELTA-MENDOTA CANAL: DMC PANOCHE WD AF | Q6: DELTA-MENDOTA CANAL: DMC PANOCHE WD PW OF AF | AH6: 0.088207 | AJ6: ORESTIMBA | AN6: SUNFLOWER
A7: 2024 | B7: 86 | C7: 0 | D7: 192 | E7: 0 | F7: 278 | G7: 0 | H7: 772.7142857 | I7: 0 | J7: 6725.142857 | K7: 0 | L7: 3 | M7: 0 | N7: 399.4285714 | O7: 0 | P7: 24.14285714 | Q7: 0 | AJ7: 0 | AN7: 0
A8: 2025 | B8: 86 | C8: 0 | D8: 192 | E8: 0 | F8: 278 | G8: 0 | H8: 772.7142857 | I8: 0 | J8: 6725.142857 | K8: 0 | L8: 3 | M8: 0 | N8: 399.4285714 | O8: 0 | P8: 24.14285714 | Q8: 0 | AJ8: 0 | AN8: 0
A9: 2026 | B9: 86 | C9: 0 | D9: 192 | E9: 0 | F9: 278 | G9: 0 | H9: 772.7142857 | I9: 0 | J9: 6725.142857 | K9: 0 | L9: 3 | M9: 0 | N9: 399.4285714 | O9: 0 | P9: 24.14285714 | Q9: 0 | AJ9: 0 | AN9: 0
A10: 2027 | B10: 86 | C10: 0 | D10: 192 | E10: 0 | F10: 278 | G10: 0 | H10: 772.7142857 | I10: 0 | J10: 6725.142857 | K10: 0 | L10: 3 | M10: 0 | N10: 399.4285714 | O10: 0 | P10: 24.14285714 | Q10: 0 | AJ10: 0 | AN10: 0
A11: 2028 | B11: 86 | C11: 0 | D11: 192 | E11: 0 | F11: 278 | G11: 0 | H11: 772.7142857 | I11: 0 | J11: 6725.142857 | K11: 0 | L11: 3 | M11: 0 | N11: 399.4285714 | O11: 0 | P11: 24.14285714 | Q11: 0 | AJ11: 0 | AN11: 0
A12: 2029 | B12: 86 | C12: 0 | D12: 192 | E12: 0 | F12: 278 | G12: 0 | H12: 772.7142857 | I12: 0 | J12: 6725.142857 | K12: 0 | L12: 3 | M12: 0 | N12: 399.4285714 | O12: 0 | P12: 24.14285714 | Q12: 0 | AJ12: 0 | AN12: 0
A13: 2030 | B13: 86 | C13: 0 | D13: 192 | E13: 0 | F13: 278 | G13: 0 | H13: 772.7142857 | I13: 0 | J13: 6725.142857 | K13: 0 | L13: 3 | M13: 0 | N13: 399.4285714 | O13: 0 | P13: 24.14285714 | Q13: 0 | AJ13: 0 | AN13: 0
A14: 2031 | B14: 86 | C14: 0 | D14: 192 | E14: 0 | F14: 278 | G14: 0 | H14: 772.7142857 | I14: 0 | J14: 6725.142857 | K14: 0 | L14: 3 | M14: 0 | N14: 399.4285714 | O14: 0 | P14: 24.14285714 | Q14: 0 | AJ14: 0 | AN14: 0
A15: 2032 | B15: 86 | C15: 0 | D15: 192 | E15: 0 | F15: 278 | G15: 0 | H15: 772.7142857 | I15: 0 | J15: 6725.142857 | K15: 0 | L15: 3 | M15: 0 | N15: 399.4285714 | O15: 0 | P15: 24.14285714 | Q15: 0 | AJ15: 0 | AN15: 0
A16: 2033 | B16: 86 | C16: 0 | D16: 192 | E16: 0 | F16: 278 | G16: 0 | H16: 772.7142857 | I16: 0 | J16: 6725.142857 | K16: 0 | L16: 3 | M16: 0 | N16: 399.4285714 | O16: 0 | P16: 24.14285714 | Q16: 0 | AJ16: 0 | AN16: 0
A17: 2034 | B17: 86 | C17: 0 | D17: 192 | E17: 0 | F17: 278 | G17: 0 | H17: 772.7142857 | I17: 0 | J17: 6725.142857 | K17: 0 | L17: 3 | M17: 0 | N17: 399.4285714 | O17: 0 | P17: 24.14285714 | Q17: 0 | AJ17: 0 | AN17: 0
A18: 2035 | B18: 86 | C18: 0 | D18: 192 | E18: 0 | F18: 278 | G18: 0 | H18: 772.7142857 | I18: 0 | J18: 6725.142857 | K18: 0 | L18: 3 | M18: 0 | N18: 399.4285714 | O18: 0 | P18: 24.14285714 | Q18: 0 | AJ18: 0 | AN18: 0
A19: 2036 | B19: 86 | C19: 0 | D19: 192 | E19: 0 | F19: 278 | G19: 0 | H19: 772.7142857 | I19: 0 | J19: 6725.142857 | K19: 0 | L19: 3 | M19: 0 | N19: 399.4285714 | O19: 0 | P19: 24.14285714 | Q19: 0 | AJ19: 6 | AN19: 57
A20: 2037 | B20: 86 | C20: 0 | D20: 192 | E20: 0 | F20: 278 | G20: 0 | H20: 772.7142857 | I20: 0 | J20: 6725.142857 | K20: 0 | L20: 3 | M20: 0 | N20: 399.4285714 | O20: 0 | P20: 24.14285714 | Q20: 0 | AJ20: 0 | AN20: 9
A21: 2038 | B21: 86 | C21: 0 | D21: 192 | E21: 0 | F21: 278 | G21: 0 | H21: 772.7142857 | I21: 0 | J21: 6725.142857 | K21: 0 | L21: 3 | M21: 0 | N21: 399.4285714 | O21: 0 | P21: 24.14285714 | Q21: 0 | AJ21: 0 | AN21: 0
A22: 2039 | B22: 86 | C22: 0 | D22: 192 | E22: 0 | F22: 278 | G22: 0 | H22: 772.7142857 | I22: 0 | J22: 6725.142857 | K22: 0 | L22: 3 | M22: 0 | N22: 399.4285714 | O22: 0 | P22: 24.14285714 | Q22: 0 | AJ22: 0 | AN22: 0
A23: 2040 | B23: 86 | C23: 0 | D23: 192 | E23: 0 | F23: 278 | G23: 0 | H23: 772.7142857 | I23: 0 | J23: 6725.142857 | K23: 0 | L23: 3 | M23: 0 | N23: 399.4285714 | O23: 0 | P23: 24.14285714 | Q23: 0 | AJ23: 0 | AN23: 0
A24: 2041 | B24: 86 | C24: 0 | D24: 192 | E24: 0 | F24: 278 | G24: 0 | H24: 772.7142857 | I24: 0 | J24: 6725.142857 | K24: 0 | L24: 3 | M24: 0 | N24: 399.4285714 | O24: 0 | P24: 24.14285714 | Q24: 0 | AJ24: 0 | AN24: 0
A25: 2042 | B25: 86 | C25: 0 | D25: 192 | E25: 0 | F25: 278 | G25: 0 | H25: 772.7142857 | I25: 0 | J25: 6725.142857 | K25: 0 | L25: 3 | M25: 0 | N25: 399.4285714 | O25: 0 | P25: 24.14285714 | Q25: 0 | AJ25: 0 | AN25: 0
A26: 2043 | B26: 86 | C26: 0 | D26: 192 | E26: 0 | F26: 278 | G26: 0 | H26: 772.7142857 | I26: 0 | J26: 6725.142857 | K26: 0 | L26: 3 | M26: 0 | N26: 399.4285714 | O26: 0 | P26: 24.14285714 | Q26: 0 | AJ26: 0 | AN26: 0
A27: 2044 | B27: 86 | C27: 0 | D27: 192 | E27: 0 | F27: 278 | G27: 0 | H27: 772.7142857 | I27: 0 | J27: 6725.142857 | K27: 0 | L27: 3 | M27: 0 | N27: 399.4285714 | O27: 0 | P27: 24.14285714 | Q27: 0 | AJ27: 0 | AN27: 0
A28: 2045 | B28: 86 | C28: 0 | D28: 192 | E28: 0 | F28: 278 | G28: 0 | H28: 772.7142857 | I28: 0 | J28: 6725.142857 | K28: 0 | L28: 3 | M28: 0 | N28: 399.4285714 | O28: 0 | P28: 24.14285714 | Q28: 0 | AJ28: 0 | AN28: 0
A29: 2046 | B29: 86 | C29: 0 | D29: 192 | E29: 0 | F29: 278 | G29: 0 | H29: 772.7142857 | I29: 0 | J29: 6725.142857 | K29: 0 | L29: 3 | M29: 0 | N29: 399.4285714 | O29: 0 | P29: 24.14285714 | Q29: 0
A30: 2047 | B30: 86 | C30: 0 | D30: 192 | E30: 0 | F30: 278 | G30: 0 | H30: 772.7142857 | I30: 0 | J30: 6725.142857 | K30: 0 | L30: 3 | M30: 0 | N30: 399.4285714 | O30: 0 | P30: 24.14285714 | Q30: 0 | AJ30: 0 | AN30: 0
A31: 2048 | B31: 86 | C31: 0 | D31: 192 | E31: 0 | F31: 278 | G31: 0 | H31: 772.7142857 | I31: 0 | J31: 6725.142857 | K31: 0 | L31: 3 | M31: 0 | N31: 399.4285714 | O31: 0 | P31: 24.14285714 | Q31: 0
A32: 2049 | B32: 86 | C32: 0 | D32: 192 | E32: 0 | F32: 278 | G32: 0 | H32: 772.7142857 | I32: 0 | J32: 6725.142857 | K32: 0 | L32: 3 | M32: 0 | N32: 399.4285714 | O32: 0 | P32: 24.14285714 | Q32: 0
A33: 2050 | B33: 86 | C33: 0 | D33: 192 | E33: 0 | F33: 278 | G33: 0 | H33: 772.7142857 | I33: 0 | J33: 6725.142857 | K33: 0 | L33: 3 | M33: 0 | N33: 399.4285714 | O33: 0 | P33: 24.14285714 | Q33: 0
A34: 2051 | B34: 86 | C34: 0 | D34: 192 | E34: 0 | F34: 278 | G34: 0 | H34: 772.7142857 | I34: 0 | J34: 6725.142857 | K34: 0 | L34: 3 | M34: 0 | N34: 399.4285714 | O34: 0 | P34: 24.14285714 | Q34: 0
A35: 2052 | B35: 86 | C35: 0 | D35: 192 | E35: 0 | F35: 278 | G35: 0 | H35: 772.7142857 | I35: 0 | J35: 6725.142857 | K35: 0 | L35: 3 | M35: 0 | N35: 399.4285714 | O35: 0 | P35: 24.14285714 | Q35: 0
A36: 2053 | B36: 86 | C36: 0 | D36: 192 | E36: 0 | F36: 278 | G36: 0 | H36: 772.7142857 | I36: 0 | J36: 6725.142857 | K36: 0 | L36: 3 | M36: 0 | N36: 399.4285714 | O36: 0 | P36: 24.14285714 | Q36: 0
A37: 2054 | B37: 86 | C37: 0 | D37: 192 | E37: 0 | F37: 278 | G37: 0 | H37: 772.7142857 | I37: 0 | J37: 6725.142857 | K37: 0 | L37: 3 | M37: 0 | N37: 399.4285714 | O37: 0 | P37: 24.14285714 | Q37: 0
A38: 2055 | B38: 86 | C38: 0 | D38: 192 | E38: 0 | F38: 278 | G38: 0 | H38: 772.7142857 | I38: 0 | J38: 6725.142857 | K38: 0 | L38: 3 | M38: 0 | N38: 399.4285714 | O38: 0 | P38: 24.14285714 | Q38: 0
A39: 2056 | B39: 86 | C39: 0 | D39: 192 | E39: 0 | F39: 278 | G39: 0 | H39: 772.7142857 | I39: 0 | J39: 6725.142857 | K39: 0 | L39: 3 | M39: 0 | N39: 399.4285714 | O39: 0 | P39: 24.14285714 | Q39: 0
A40: 2057 | B40: 86 | C40: 0 | D40: 192 | E40: 0 | F40: 278 | G40: 0 | H40: 772.7142857 | I40: 0 | J40: 6725.142857 | K40: 0 | L40: 3 | M40: 0 | N40: 399.4285714 | O40: 0 | P40: 24.14285714 | Q40: 0
A41: 2058 | B41: 86 | C41: 0 | D41: 192 | E41: 0 | F41: 278 | G41: 0 | H41: 772.7142857 | I41: 0 | J41: 6725.142857 | K41: 0 | L41: 3 | M41: 0 | N41: 399.4285714 | O41: 0 | P41: 24.14285714 | Q41: 0
A42: 2059 | B42: 86 | C42: 0 | D42: 192 | E42: 0 | F42: 278 | G42: 0 | H42: 772.7142857 | I42: 0 | J42: 6725.142857 | K42: 0 | L42: 3 | M42: 0 | N42: 399.4285714 | O42: 0 | P42: 24.14285714 | Q42: 0
A43: 2060 | B43: 86 | C43: 0 | D43: 192 | E43: 0 | F43: 278 | G43: 0 | H43: 772.7142857 | I43: 0 | J43: 6725.142857 | K43: 0 | L43: 3 | M43: 0 | N43: 399.4285714 | O43: 0 | P43: 24.14285714 | Q43: 0
A44: 2061 | B44: 86 | C44: 0 | D44: 192 | E44: 0 | F44: 278 | G44: 0 | H44: 772.7142857 | I44: 0 | J44: 6725.142857 | K44: 0 | L44: 3 | M44: 0 | N44: 399.4285714 | O44: 0 | P44: 24.14285714 | Q44: 0
A45: 2062 | B45: 86 | C45: 0 | D45: 192 | E45: 0 | F45: 278 | G45: 0 | H45: 772.7142857 | I45: 0 | J45: 6725.142857 | K45: 0 | L45: 3 | M45: 0 | N45: 399.4285714 | O45: 0 | P45: 24.14285714 | Q45: 0
A46: 2063 | B46: 86 | C46: 0 | D46: 192 | E46: 0 | F46: 278 | G46: 0 | H46: 772.7142857 | I46: 0 | J46: 6725.142857 | K46: 0 | L46: 3 | M46: 0 | N46: 399.4285714 | O46: 0 | P46: 24.14285714 | Q46: 0
A47: 2064 | B47: 86 | C47: 0 | D47: 192 | E47: 0 | F47: 278 | G47: 0 | H47: 772.7142857 | I47: 0 | J47: 6725.142857 | K47: 0 | L47: 3 | M47: 0 | N47: 399.4285714 | O47: 0 | P47: 24.14285714 | Q47: 0
A48: 2065 | B48: 86 | C48: 0 | D48: 192 | E48: 0 | F48: 278 | G48: 0 | H48: 772.7142857 | I48: 0 | J48: 6725.142857 | K48: 0 | L48: 3 | M48: 0 | N48: 399.4285714 | O48: 0 | P48: 24.14285714 | Q48: 0
A49: 2066 | B49: 86 | C49: 0 | D49: 192 | E49: 0 | F49: 278 | G49: 0 | H49: 772.7142857 | I49: 0 | J49: 6725.142857 | K49: 0 | L49: 3 | M49: 0 | N49: 399.4285714 | O49: 0 | P49: 24.14285714 | Q49: 0
A50: 2067 | B50: 86 | C50: 0 | D50: 192 | E50: 0 | F50: 278 | G50: 0 | H50: 772.7142857 | I50: 0 | J50: 6725.142857 | K50: 0 | L50: 3 | M50: 0 | N50: 399.4285714 | O50: 0 | P50: 24.14285714 | Q50: 0
A51: 2068 | B51: 86 | C51: 0 | D51: 192 | E51: 0 | F51: 278 | G51: 0 | H51: 772.7142857 | I51: 0 | J51: 6725.142857 | K51: 0 | L51: 3 | M51: 0 | N51: 399.4285714 | O51: 0 | P51: 24.14285714 | Q51: 0
A52: 2069 | B52: 86 | C52: 0 | D52: 192 | E52: 0 | F52: 278 | G52: 0 | H52: 772.7142857 | I52: 0 | J52: 6725.142857 | K52: 0 | L52: 3 | M52: 0 | N52: 399.4285714 | O52: 0 | P52: 24.14285714 | Q52: 0
A53: 2070 | B53: 86 | C53: 0 | D53: 192 | E53: 0 | F53: 278 | G53: 0 | H53: 772.7142857 | I53: 0 | J53: 6725.142857 | K53: 0 | L53: 3 | M53: 0 | N53: 399.4285714 | O53: 0 | P53: 24.14285714 | Q53: 0
A54: 2071 | B54: 86 | C54: 0 | D54: 192 | E54: 0 | F54: 278 | G54: 0 | H54: 772.7142857 | I54: 0 | J54: 6725.142857 | K54: 0 | L54: 3 | M54: 0 | N54: 399.4285714 | O54: 0 | P54: 24.14285714 | Q54: 0
A55: 2072 | B55: 86 | C55: 0 | D55: 192 | E55: 0 | F55: 278 | G55: 0 | H55: 772.7142857 | I55: 0 | J55: 6725.142857 | K55: 0 | L55: 3 | M55: 0 | N55: 399.4285714 | O55: 0 | P55: 24.14285714 | Q55: 0
A56: 2073 | B56: 86 | C56: 0 | D56: 192 | E56: 0 | F56: 278 | G56: 0 | H56: 772.7142857 | I56: 0 | J56: 6725.142857 | K56: 0 | L56: 3 | M56: 0 | N56: 399.4285714 | O56: 0 | P56: 24.14285714 | Q56: 0
A57: H&P/T | B57: 4300 | C57: 0 | D57: 9600 | E57: 0 | F57: 13900 | G57: 0 | H57: 38635.71429 | I57: 0 | J57: 336257.1429 | K57: 0 | L57: 150 | M57: 0 | N57: 19971.42857 | O57: 0 | P57: 1207.142857 | Q57: 0 | AL57: 0 | AP57: 0
A58: 7 - Year Hist Avg (A-12) | B58: 86 | C58: 0 | D58: 192 | E58: 0 | F58: 278 | G58: 0 | H58: 772.7142857 | I58: 0 | J58: 6725.142857 | K58: 0 | L58: 3 | M58: 0 | N58: 399.4285714 | O58: 0 | P58: 24.14285714 | Q58: 0
A59: Projected Del. (A-2ba) | B59: 4300 | C59: 0 | D59: 9600 | E59: 0 | F59: 13900 | G59: 0 | H59: 38635.71429 | I59: 0 | J59: 336257.1429 | K59: 0 | L59: 150 | M59: 0 | N59: 19971.42857 | O59: 0 | P59: 1207.142857 | Q59: 0

Sheet Page_4
A2: M&I 2024 Sch A-13 FSOD F.Z26.XLSM
A3: 2023-10-02
A4: SCHEDULE OF PROJECTED (2024 - 2073) M&I WATER DELIVERIES
A5: FOR CALCULATION OF INDIVIDUAL CONTRACTOR PRORATED FOLSOM SOD MODIFICATION PROJECT COSTS AND RATE
A6: YEAR | B6: DELTA-MENDOTA CANAL: DMC SAN LUIS WD AF | C6: DELTA-MENDOTA CANAL: DMC SAN LUIS WD PW OF AF | D6: DELTA-MENDOTA CANAL: DMC SANTA NELLA COUNTY WD AF | E6: DELTA-MENDOTA CANAL: DMC SANTA NELLA COUNTY WD PW OF AF | F6: DELTA-MENDOTA CANAL: DMC TOTAL AF | G6: DELTA-MENDOTA CANAL: DMC TOTAL PW OF AF | H6: FOLSOM D&R: FD&R CITY OF FOLSOM AF | I6: FOLSOM D&R: FD&R CITY OF FOLSOM PW OF AF | J6: FOLSOM D&R: FD&R CITY OF ROSEVILLE AF | K6: FOLSOM D&R: FD&R CITY OF ROSEVILLE PW OF AF | L6: FOLSOM D&R: FD&R EL DORADO ID AF | M6: FOLSOM D&R: FD&R EL DORADO ID PW OF AF | N6: FOLSOM D&R: FD&R PLACER COUNTY WA AF | O6: FOLSOM D&R: FD&R PLACER COUNTY WA PW OF AF | P6: FOLSOM D&R: FD&R SACRAMENTO COUNTY WA AF | Q6: FOLSOM D&R: FD&R SACRAMENTO COUNTY WA PW OF AF | R6: FOLSOM D&R: FD&R SAN JUAN WD AF | S6: FOLSOM D&R: FD&R SAN JUAN WD PW OF AF | T6: FOLSOM D&R: FD&R TOTAL AF | U6: FOLSOM D&R: FD&R TOTAL PW OF AF
A7: 2024 | B7: 17.42857143 | C7: 0 | D7: 5.428571429 | E7: 0 | F7: 7947.285714 | G7: 0 | H7: 2921.666667 | I7: 0 | J7: 22439 | K7: 0 | L7: 3832 | M7: 0 | N7: 5000 | O7: 0 | P7: 3522.142857 | Q7: 0 | R7: 175.7142857 | S7: 0 | T7: 37890.52381 | U7: 0
A8: 2025 | B8: 17.42857143 | C8: 0 | D8: 5.428571429 | E8: 0 | F8: 7947.285714 | G8: 0 | H8: 2921.666667 | I8: 0 | J8: 22439 | K8: 0 | L8: 3832 | M8: 0 | N8: 5000 | O8: 0 | P8: 3522.142857 | Q8: 0 | R8: 175.7142857 | S8: 0 | T8: 37890.52381 | U8: 0
A9: 2026 | B9: 17.42857143 | C9: 0 | D9: 5.428571429 | E9: 0 | F9: 7947.285714 | G9: 0 | H9: 2921.666667 | I9: 0 | J9: 22439 | K9: 0 | L9: 3832 | M9: 0 | N9: 5000 | O9: 0 | P9: 3522.142857 | Q9: 0 | R9: 175.7142857 | S9: 0 | T9: 37890.52381 | U9: 0
A10: 2027 | B10: 17.42857143 | C10: 0 | D10: 5.428571429 | E10: 0 | F10: 7947.285714 | G10: 0 | H10: 2921.666667 | I10: 0 | J10: 22439 | K10: 0 | L10: 3832 | M10: 0 | N10: 5000 | O10: 0 | P10: 3522.142857 | Q10: 0 | R10: 175.7142857 | S10: 0 | T10: 37890.52381 | U10: 0
A11: 2028 | B11: 17.42857143 | C11: 0 | D11: 5.428571429 | E11: 0 | F11: 7947.285714 | G11: 0 | H11: 2921.666667 | I11: 0 | J11: 22439 | K11: 0 | L11: 3832 | M11: 0 | N11: 5000 | O11: 0 | P11: 3522.142857 | Q11: 0 | R11: 175.7142857 | S11: 0 | T11: 37890.52381 | U11: 0
A12: 2029 | B12: 17.42857143 | C12: 0 | D12: 5.428571429 | E12: 0 | F12: 7947.285714 | G12: 0 | H12: 2921.666667 | I12: 0 | J12: 22439 | K12: 0 | L12: 3832 | M12: 0 | N12: 5000 | O12: 0 | P12: 3522.142857 | Q12: 0 | R12: 175.7142857 | S12: 0 | T12: 37890.52381 | U12: 0
A13: 2030 | B13: 17.42857143 | C13: 0 | D13: 5.428571429 | E13: 0 | F13: 7947.285714 | G13: 0 | H13: 2921.666667 | I13: 0 | J13: 22439 | K13: 0 | L13: 3832 | M13: 0 | N13: 5000 | O13: 0 | P13: 3522.142857 | Q13: 0 | R13: 175.7142857 | S13: 0 | T13: 37890.52381 | U13: 0
A14: 2031 | B14: 17.42857143 | C14: 0 | D14: 5.428571429 | E14: 0 | F14: 7947.285714 | G14: 0 | H14: 2921.666667 | I14: 0 | J14: 22439 | K14: 0 | L14: 3832 | M14: 0 | N14: 5000 | O14: 0 | P14: 3522.142857 | Q14: 0 | R14: 175.7142857 | S14: 0 | T14: 37890.52381 | U14: 0
A15: 2032 | B15: 17.42857143 | C15: 0 | D15: 5.428571429 | E15: 0 | F15: 7947.285714 | G15: 0 | H15: 2921.666667 | I15: 0 | J15: 22439 | K15: 0 | L15: 3832 | M15: 0 | N15: 5000 | O15: 0 | P15: 3522.142857 | Q15: 0 | R15: 175.7142857 | S15: 0 | T15: 37890.52381 | U15: 0
A16: 2033 | B16: 17.42857143 | C16: 0 | D16: 5.428571429 | E16: 0 | F16: 7947.285714 | G16: 0 | H16: 2921.666667 | I16: 0 | J16: 22439 | K16: 0 | L16: 3832 | M16: 0 | N16: 5000 | O16: 0 | P16: 3522.142857 | Q16: 0 | R16: 175.7142857 | S16: 0 | T16: 37890.52381 | U16: 0
A17: 2034 | B17: 17.42857143 | C17: 0 | D17: 5.428571429 | E17: 0 | F17: 7947.285714 | G17: 0 | H17: 2921.666667 | I17: 0 | J17: 22439 | K17: 0 | L17: 3832 | M17: 0 | N17: 5000 | O17: 0 | P17: 3522.142857 | Q17: 0 | R17: 175.7142857 | S17: 0 | T17: 37890.52381 | U17: 0
A18: 2035 | B18: 17.42857143 | C18: 0 | D18: 5.428571429 | E18: 0 | F18: 7947.285714 | G18: 0 | H18: 2921.666667 | I18: 0 | J18: 22439 | K18: 0 | L18: 3832 | M18: 0 | N18: 5000 | O18: 0 | P18: 3522.142857 | Q18: 0 | R18: 175.7142857 | S18: 0 | T18: 37890.52381 | U18: 0
A19: 2036 | B19: 17.42857143 | C19: 0 | D19: 5.428571429 | E19: 0 | F19: 7947.285714 | G19: 0 | H19: 2921.666667 | I19: 0 | J19: 22439 | K19: 0 | L19: 3832 | M19: 0 | N19: 5000 | O19: 0 | P19: 3522.142857 | Q19: 0 | R19: 175.7142857 | S19: 0 | T19: 37890.52381 | U19: 0
A20: 2037 | B20: 17.42857143 | C20: 0 | D20: 5.428571429 | E20: 0 | F20: 7947.285714 | G20: 0 | H20: 2921.666667 | I20: 0 | J20: 22439 | K20: 0 | L20: 3832 | M20: 0 | N20: 5000 | O20: 0 | P20: 3522.142857 | Q20: 0 | R20: 175.7142857 | S20: 0 | T20: 37890.52381 | U20: 0
A21: 2038 | B21: 17.42857143 | C21: 0 | D21: 5.428571429 | E21: 0 | F21: 7947.285714 | G21: 0 | H21: 2921.666667 | I21: 0 | J21: 22439 | K21: 0 | L21: 3832 | M21: 0 | N21: 5000 | O21: 0 | P21: 3522.142857 | Q21: 0 | R21: 175.7142857 | S21: 0 | T21: 37890.52381 | U21: 0
A22: 2039 | B22: 17.42857143 | C22: 0 | D22: 5.428571429 | E22: 0 | F22: 7947.285714 | G22: 0 | H22: 2921.666667 | I22: 0 | J22: 22439 | K22: 0 | L22: 3832 | M22: 0 | N22: 5000 | O22: 0 | P22: 3522.142857 | Q22: 0 | R22: 175.7142857 | S22: 0 | T22: 37890.52381 | U22: 0
A23: 2040 | B23: 17.42857143 | C23: 0 | D23: 5.428571429 | E23: 0 | F23: 7947.285714 | G23: 0 | H23: 2921.666667 | I23: 0 | J23: 22439 | K23: 0 | L23: 3832 | M23: 0 | N23: 5000 | O23: 0 | P23: 3522.142857 | Q23: 0 | R23: 175.7142857 | S23: 0 | T23: 37890.52381 | U23: 0
A24: 2041 | B24: 17.42857143 | C24: 0 | D24: 5.428571429 | E24: 0 | F24: 7947.285714 | G24: 0 | H24: 2921.666667 | I24: 0 | J24: 22439 | K24: 0 | L24: 3832 | M24: 0 | N24: 5000 | O24: 0 | P24: 3522.142857 | Q24: 0 | R24: 175.7142857 | S24: 0 | T24: 37890.52381 | U24: 0
A25: 2042 | B25: 17.42857143 | C25: 0 | D25: 5.428571429 | E25: 0 | F25: 7947.285714 | G25: 0 | H25: 2921.666667 | I25: 0 | J25: 22439 | K25: 0 | L25: 3832 | M25: 0 | N25: 5000 | O25: 0 | P25: 3522.142857 | Q25: 0 | R25: 175.7142857 | S25: 0 | T25: 37890.52381 | U25: 0
A26: 2043 | B26: 17.42857143 | C26: 0 | D26: 5.428571429 | E26: 0 | F26: 7947.285714 | G26: 0 | H26: 2921.666667 | I26: 0 | J26: 22439 | K26: 0 | L26: 3832 | M26: 0 | N26: 5000 | O26: 0 | P26: 3522.142857 | Q26: 0 | R26: 175.7142857 | S26: 0 | T26: 37890.52381 | U26: 0
A27: 2044 | B27: 17.42857143 | C27: 0 | D27: 5.428571429 | E27: 0 | F27: 7947.285714 | G27: 0 | H27: 2921.666667 | I27: 0 | J27: 22439 | K27: 0 | L27: 3832 | M27: 0 | N27: 5000 | O27: 0 | P27: 3522.142857 | Q27: 0 | R27: 175.7142857 | S27: 0 | T27: 37890.52381 | U27: 0
A28: 2045 | B28: 17.42857143 | C28: 0 | D28: 5.428571429 | E28: 0 | F28: 7947.285714 | G28: 0 | H28: 2921.666667 | I28: 0 | J28: 22439 | K28: 0 | L28: 3832 | M28: 0 | N28: 5000 | O28: 0 | P28: 3522.142857 | Q28: 0 | R28: 175.7142857 | S28: 0 | T28: 37890.52381 | U28: 0
A29: 2046 | B29: 17.42857143 | C29: 0 | D29: 5.428571429 | E29: 0 | F29: 7947.285714 | G29: 0 | H29: 2921.666667 | I29: 0 | J29: 22439 | K29: 0 | L29: 3832 | M29: 0 | N29: 5000 | O29: 0 | P29: 3522.142857 | Q29: 0 | R29: 175.7142857 | S29: 0 | T29: 37890.52381 | U29: 0
A30: 2047 | B30: 17.42857143 | C30: 0 | D30: 5.428571429 | E30: 0 | F30: 7947.285714 | G30: 0 | H30: 2921.666667 | I30: 0 | J30: 22439 | K30: 0 | L30: 3832 | M30: 0 | N30: 5000 | O30: 0 | P30: 3522.142857 | Q30: 0 | R30: 175.7142857 | S30: 0 | T30: 37890.52381 | U30: 0
A31: 2048 | B31: 17.42857143 | C31: 0 | D31: 5.428571429 | E31: 0 | F31: 7947.285714 | G31: 0 | H31: 2921.666667 | I31: 0 | J31: 22439 | K31: 0 | L31: 3832 | M31: 0 | N31: 5000 | O31: 0 | P31: 3522.142857 | Q31: 0 | R31: 175.7142857 | S31: 0 | T31: 37890.52381 | U31: 0
A32: 2049 | B32: 17.42857143 | C32: 0 | D32: 5.428571429 | E32: 0 | F32: 7947.285714 | G32: 0 | H32: 2921.666667 | I32: 0 | J32: 22439 | K32: 0 | L32: 3832 | M32: 0 | N32: 5000 | O32: 0 | P32: 3522.142857 | Q32: 0 | R32: 175.7142857 | S32: 0 | T32: 37890.52381 | U32: 0
A33: 2050 | B33: 17.42857143 | C33: 0 | D33: 5.428571429 | E33: 0 | F33: 7947.285714 | G33: 0 | H33: 2921.666667 | I33: 0 | J33: 22439 | K33: 0 | L33: 3832 | M33: 0 | N33: 5000 | O33: 0 | P33: 3522.142857 | Q33: 0 | R33: 175.7142857 | S33: 0 | T33: 37890.52381 | U33: 0
A34: 2051 | B34: 17.42857143 | C34: 0 | D34: 5.428571429 | E34: 0 | F34: 7947.285714 | G34: 0 | H34: 2921.666667 | I34: 0 | J34: 22439 | K34: 0 | L34: 3832 | M34: 0 | N34: 5000 | O34: 0 | P34: 3522.142857 | Q34: 0 | R34: 175.7142857 | S34: 0 | T34: 37890.52381 | U34: 0
A35: 2052 | B35: 17.42857143 | C35: 0 | D35: 5.428571429 | E35: 0 | F35: 7947.285714 | G35: 0 | H35: 2921.666667 | I35: 0 | J35: 22439 | K35: 0 | L35: 3832 | M35: 0 | N35: 5000 | O35: 0 | P35: 3522.142857 | Q35: 0 | R35: 175.7142857 | S35: 0 | T35: 37890.52381 | U35: 0
A36: 2053 | B36: 17.42857143 | C36: 0 | D36: 5.428571429 | E36: 0 | F36: 7947.285714 | G36: 0 | H36: 2921.666667 | I36: 0 | J36: 22439 | K36: 0 | L36: 3832 | M36: 0 | N36: 5000 | O36: 0 | P36: 3522.142857 | Q36: 0 | R36: 175.7142857 | S36: 0 | T36: 37890.52381 | U36: 0
A37: 2054 | B37: 17.42857143 | C37: 0 | D37: 5.428571429 | E37: 0 | F37: 7947.285714 | G37: 0 | H37: 2921.666667 | I37: 0 | J37: 22439 | K37: 0 | L37: 3832 | M37: 0 | N37: 5000 | O37: 0 | P37: 3522.142857 | Q37: 0 | R37: 175.7142857 | S37: 0 | T37: 37890.52381 | U37: 0
A38: 2055 | B38: 17.42857143 | C38: 0 | D38: 5.428571429 | E38: 0 | F38: 7947.285714 | G38: 0 | H38: 2921.666667 | I38: 0 | J38: 22439 | K38: 0 | L38: 3832 | M38: 0 | N38: 5000 | O38: 0 | P38: 3522.142857 | Q38: 0 | R38: 175.7142857 | S38: 0 | T38: 37890.52381 | U38: 0
A39: 2056 | B39: 17.42857143 | C39: 0 | D39: 5.428571429 | E39: 0 | F39: 7947.285714 | G39: 0 | H39: 2921.666667 | I39: 0 | J39: 22439 | K39: 0 | L39: 3832 | M39: 0 | N39: 5000 | O39: 0 | P39: 3522.142857 | Q39: 0 | R39: 175.7142857 | S39: 0 | T39: 37890.52381 | U39: 0
A40: 2057 | B40: 17.42857143 | C40: 0 | D40: 5.428571429 | E40: 0 | F40: 7947.285714 | G40: 0 | H40: 2921.666667 | I40: 0 | J40: 22439 | K40: 0 | L40: 3832 | M40: 0 | N40: 5000 | O40: 0 | P40: 3522.142857 | Q40: 0 | R40: 175.7142857 | S40: 0 | T40: 37890.52381 | U40: 0
A41: 2058 | B41: 17.42857143 | C41: 0 | D41: 5.428571429 | E41: 0 | F41: 7947.285714 | G41: 0 | H41: 2921.666667 | I41: 0 | J41: 22439 | K41: 0 | L41: 3832 | M41: 0 | N41: 5000 | O41: 0 | P41: 3522.142857 | Q41: 0 | R41: 175.7142857 | S41: 0 | T41: 37890.52381 | U41: 0
A42: 2059 | B42: 17.42857143 | C42: 0 | D42: 5.428571429 | E42: 0 | F42: 7947.285714 | G42: 0 | H42: 2921.666667 | I42: 0 | J42: 22439 | K42: 0 | L42: 3832 | M42: 0 | N42: 5000 | O42: 0 | P42: 3522.142857 | Q42: 0 | R42: 175.7142857 | S42: 0 | T42: 37890.52381 | U42: 0
A43: 2060 | B43: 17.42857143 | C43: 0 | D43: 5.428571429 | E43: 0 | F43: 7947.285714 | G43: 0 | H43: 2921.666667 | I43: 0 | J43: 22439 | K43: 0 | L43: 3832 | M43: 0 | N43: 5000 | O43: 0 | P43: 3522.142857 | Q43: 0 | R43: 175.7142857 | S43: 0 | T43: 37890.52381 | U43: 0
A44: 2061 | B44: 17.42857143 | C44: 0 | D44: 5.428571429 | E44: 0 | F44: 7947.285714 | G44: 0 | H44: 2921.666667 | I44: 0 | J44: 22439 | K44: 0 | L44: 3832 | M44: 0 | N44: 5000 | O44: 0 | P44: 3522.142857 | Q44: 0 | R44: 175.7142857 | S44: 0 | T44: 37890.52381 | U44: 0
A45: 2062 | B45: 17.42857143 | C45: 0 | D45: 5.428571429 | E45: 0 | F45: 7947.285714 | G45: 0 | H45: 2921.666667 | I45: 0 | J45: 22439 | K45: 0 | L45: 3832 | M45: 0 | N45: 5000 | O45: 0 | P45: 3522.142857 | Q45: 0 | R45: 175.7142857 | S45: 0 | T45: 37890.52381 | U45: 0
A46: 2063 | B46: 17.42857143 | C46: 0 | D46: 5.428571429 | E46: 0 | F46: 7947.285714 | G46: 0 | H46: 2921.666667 | I46: 0 | J46: 22439 | K46: 0 | L46: 3832 | M46: 0 | N46: 5000 | O46: 0 | P46: 3522.142857 | Q46: 0 | R46: 175.7142857 | S46: 0 | T46: 37890.52381 | U46: 0
A47: 2064 | B47: 17.42857143 | C47: 0 | D47: 5.428571429 | E47: 0 | F47: 7947.285714 | G47: 0 | H47: 2921.666667 | I47: 0 | J47: 22439 | K47: 0 | L47: 3832 | M47: 0 | N47: 5000 | O47: 0 | P47: 3522.142857 | Q47: 0 | R47: 175.7142857 | S47: 0 | T47: 37890.52381 | U47: 0
A48: 2065 | B48: 17.42857143 | C48: 0 | D48: 5.428571429 | E48: 0 | F48: 7947.285714 | G48: 0 | H48: 2921.666667 | I48: 0 | J48: 22439 | K48: 0 | L48: 3832 | M48: 0 | N48: 5000 | O48: 0 | P48: 3522.142857 | Q48: 0 | R48: 175.7142857 | S48: 0 | T48: 37890.52381 | U48: 0
A49: 2066 | B49: 17.42857143 | C49: 0 | D49: 5.428571429 | E49: 0 | F49: 7947.285714 | G49: 0 | H49: 2921.666667 | I49: 0 | J49: 22439 | K49: 0 | L49: 3832 | M49: 0 | N49: 5000 | O49: 0 | P49: 3522.142857 | Q49: 0 | R49: 175.7142857 | S49: 0 | T49: 37890.52381 | U49: 0
A50: 2067 | B50: 17.42857143 | C50: 0 | D50: 5.428571429 | E50: 0 | F50: 7947.285714 | G50: 0 | H50: 2921.666667 | I50: 0 | J50: 22439 | K50: 0 | L50: 3832 | M50: 0 | N50: 5000 | O50: 0 | P50: 3522.142857 | Q50: 0 | R50: 175.7142857 | S50: 0 | T50: 37890.52381 | U50: 0
A51: 2068 | B51: 17.42857143 | C51: 0 | D51: 5.428571429 | E51: 0 | F51: 7947.285714 | G51: 0 | H51: 2921.666667 | I51: 0 | J51: 22439 | K51: 0 | L51: 3832 | M51: 0 | N51: 5000 | O51: 0 | P51: 3522.142857 | Q51: 0 | R51: 175.7142857 | S51: 0 | T51: 37890.52381 | U51: 0
A52: 2069 | B52: 17.42857143 | C52: 0 | D52: 5.428571429 | E52: 0 | F52: 7947.285714 | G52: 0 | H52: 2921.666667 | I52: 0 | J52: 22439 | K52: 0 | L52: 3832 | M52: 0 | N52: 5000 | O52: 0 | P52: 3522.142857 | Q52: 0 | R52: 175.7142857 | S52: 0 | T52: 37890.52381 | U52: 0
A53: 2070 | B53: 17.42857143 | C53: 0 | D53: 5.428571429 | E53: 0 | F53: 7947.285714 | G53: 0 | H53: 2921.666667 | I53: 0 | J53: 22439 | K53: 0 | L53: 3832 | M53: 0 | N53: 5000 | O53: 0 | P53: 3522.142857 | Q53: 0 | R53: 175.7142857 | S53: 0 | T53: 37890.52381 | U53: 0
A54: 2071 | B54: 17.42857143 | C54: 0 | D54: 5.428571429 | E54: 0 | F54: 7947.285714 | G54: 0 | H54: 2921.666667 | I54: 0 | J54: 22439 | K54: 0 | L54: 3832 | M54: 0 | N54: 5000 | O54: 0 | P54: 3522.142857 | Q54: 0 | R54: 175.7142857 | S54: 0 | T54: 37890.52381 | U54: 0
A55: 2072 | B55: 17.42857143 | C55: 0 | D55: 5.428571429 | E55: 0 | F55: 7947.285714 | G55: 0 | H55: 2921.666667 | I55: 0 | J55: 22439 | K55: 0 | L55: 3832 | M55: 0 | N55: 5000 | O55: 0 | P55: 3522.142857 | Q55: 0 | R55: 175.7142857 | S55: 0 | T55: 37890.52381 | U55: 0
A56: 2073 | B56: 17.42857143 | C56: 0 | D56: 5.428571429 | E56: 0 | F56: 7947.285714 | G56: 0 | H56: 2921.666667 | I56: 0 | J56: 22439 | K56: 0 | L56: 3832 | M56: 0 | N56: 5000 | O56: 0 | P56: 3522.142857 | Q56: 0 | R56: 175.7142857 | S56: 0 | T56: 37890.52381 | U56: 0
A57: H&P/T | B57: 871.4285714 | C57: 0 | D57: 271.4285714 | E57: 0 | F57: 397364.2857 | G57: 0 | H57: 146083.3333 | I57: 0 | J57: 1121950 | K57: 0 | L57: 191600 | M57: 0 | N57: 250000 | O57: 0 | P57: 176107.1429 | Q57: 0 | R57: 8785.714286 | S57: 0 | T57: 1894526.19 | U57: 0
A58: 7 - Year Hist Avg (A-12) | B58: 17.42857143 | C58: 0 | D58: 5.428571429 | E58: 0 | F58: 7947.285714 | G58: 0 | H58: 2921.666667 | I58: 0 | J58: 22439 | K58: 0 | L58: 3832 | M58: 0 | N58: 5000 | O58: 0 | P58: 3522.142857 | Q58: 0 | R58: 175.7142857 | S58: 0 | T58: 37890.52381 | U58: 0
A59: Projected Del. (A-2ba) | B59: 871.4285714 | C59: 0 | D59: 271.4285714 | E59: 0 | F59: 397364.2857 | G59: 0 | H59: 146083.3333 | I59: 0 | J59: 1121950 | K59: 0 | L59: 191600 | M59: 0 | N59: 250000 | O59: 0 | P59: 176107.1429 | Q59: 0 | R59: 8785.714286 | S59: 0 | T59: 1894526.19 | U59: 0

Sheet PAGE_5
A2: M&I 2024 Sch A-13 FSOD F.Z26.XLSM
A3: 2023-10-02
A4: SCHEDULE OF PROJECTED (2024 - 2073) M&I WATER DELIVERIES
A5: FOR CALCULATION OF INDIVIDUAL CONTRACTOR PRORATED FOLSOM SOD MODIFICATION PROJECT COSTS AND RATE
A6: YEAR | B6: FOLSOM-SOUTH CANAL: FSC EAST BAY MUD AF | C6: FOLSOM-SOUTH CANAL: FSC EAST BAY MUD PW OF AF | D6: FOLSOM-SOUTH CANAL: FSC SACRAMENTO CTY WA FSC AF | E6: FOLSOM-SOUTH CANAL: FSC SACRAMENTO CTY WA FSC PW OF AF | F6: FOLSOM-SOUTH CANAL: FSC SMUD 1/ AF | G6: FOLSOM-SOUTH CANAL: FSC SMUD 1/ PW OF AF | H6: FOLSOM-SOUTH CANAL: FSC TOTAL AF | I6: FOLSOM-SOUTH CANAL: FSC TOTAL PW OF AF | J6: FRIANT DAM: FD COUNTY OF MADERA AF | K6: FRIANT DAM: FD COUNTY OF MADERA PW OF AF | L6: FRIANT DAM: FD FRESNO CITY WW #18 AF | M6: FRIANT DAM: FD FRESNO CITY WW #18 PW OF AF | N6: FRIANT DAM: FD TOTAL AF | O6: FRIANT DAM: FD TOTAL PW OF AF
A7: 2024 | B7: 6454.714286 | C7: 0 | D7: 4286 | E7: 0 | F7: 4286 | G7: 0 | H7: 15026.71429 | I7: 0 | J7: 71.28571429 | K7: 0 | L7: 128.5714286 | M7: 0 | N7: 199.8571429 | O7: 0
A8: 2025 | B8: 6454.714286 | C8: 0 | D8: 4286 | E8: 0 | F8: 4286 | G8: 0 | H8: 15026.71429 | I8: 0 | J8: 71.28571429 | K8: 0 | L8: 128.5714286 | M8: 0 | N8: 199.8571429 | O8: 0
A9: 2026 | B9: 6454.714286 | C9: 0 | D9: 4286 | E9: 0 | F9: 4286 | G9: 0 | H9: 15026.71429 | I9: 0 | J9: 71.28571429 | K9: 0 | L9: 128.5714286 | M9: 0 | N9: 199.8571429 | O9: 0
A10: 2027 | B10: 6454.714286 | C10: 0 | D10: 4286 | E10: 0 | F10: 4286 | G10: 0 | H10: 15026.71429 | I10: 0 | J10: 71.28571429 | K10: 0 | L10: 128.5714286 | M10: 0 | N10: 199.8571429 | O10: 0
A11: 2028 | B11: 6454.714286 | C11: 0 | D11: 4286 | E11: 0 | F11: 4286 | G11: 0 | H11: 15026.71429 | I11: 0 | J11: 71.28571429 | K11: 0 | L11: 128.5714286 | M11: 0 | N11: 199.8571429 | O11: 0
A12: 2029 | B12: 6454.714286 | C12: 0 | D12: 4286 | E12: 0 | F12: 4286 | G12: 0 | H12: 15026.71429 | I12: 0 | J12: 71.28571429 | K12: 0 | L12: 128.5714286 | M12: 0 | N12: 199.8571429 | O12: 0
A13: 2030 | B13: 6454.714286 | C13: 0 | D13: 4286 | E13: 0 | F13: 4286 | G13: 0 | H13: 15026.71429 | I13: 0 | J13: 71.28571429 | K13: 0 | L13: 128.5714286 | M13: 0 | N13: 199.8571429 | O13: 0
A14: 2031 | B14: 6454.714286 | C14: 0 | D14: 4286 | E14: 0 | F14: 4286 | G14: 0 | H14: 15026.71429 | I14: 0 | J14: 71.28571429 | K14: 0 | L14: 128.5714286 | M14: 0 | N14: 199.8571429 | O14: 0
A15: 2032 | B15: 6454.714286 | C15: 0 | D15: 4286 | E15: 0 | F15: 4286 | G15: 0 | H15: 15026.71429 | I15: 0 | J15: 71.28571429 | K15: 0 | L15: 128.5714286 | M15: 0 | N15: 199.8571429 | O15: 0
A16: 2033 | B16: 6454.714286 | C16: 0 | D16: 4286 | E16: 0 | F16: 4286 | G16: 0 | H16: 15026.71429 | I16: 0 | J16: 71.28571429 | K16: 0 | L16: 128.5714286 | M16: 0 | N16: 199.8571429 | O16: 0
A17: 2034 | B17: 6454.714286 | C17: 0 | D17: 4286 | E17: 0 | F17: 4286 | G17: 0 | H17: 15026.71429 | I17: 0 | J17: 71.28571429 | K17: 0 | L17: 128.5714286 | M17: 0 | N17: 199.8571429 | O17: 0
A18: 2035 | B18: 6454.714286 | C18: 0 | D18: 4286 | E18: 0 | F18: 4286 | G18: 0 | H18: 15026.71429 | I18: 0 | J18: 71.28571429 | K18: 0 | L18: 128.5714286 | M18: 0 | N18: 199.8571429 | O18: 0
A19: 2036 | B19: 6454.714286 | C19: 0 | D19: 4286 | E19: 0 | F19: 4286 | G19: 0 | H19: 15026.71429 | I19: 0 | J19: 71.28571429 | K19: 0 | L19: 128.5714286 | M19: 0 | N19: 199.8571429 | O19: 0
A20: 2037 | B20: 6454.714286 | C20: 0 | D20: 4286 | E20: 0 | F20: 4286 | G20: 0 | H20: 15026.71429 | I20: 0 | J20: 71.28571429 | K20: 0 | L20: 128.5714286 | M20: 0 | N20: 199.8571429 | O20: 0
A21: 2038 | B21: 6454.714286 | C21: 0 | D21: 4286 | E21: 0 | F21: 4286 | G21: 0 | H21: 15026.71429 | I21: 0 | J21: 71.28571429 | K21: 0 | L21: 128.5714286 | M21: 0 | N21: 199.8571429 | O21: 0
A22: 2039 | B22: 6454.714286 | C22: 0 | D22: 4286 | E22: 0 | F22: 4286 | G22: 0 | H22: 15026.71429 | I22: 0 | J22: 71.28571429 | K22: 0 | L22: 128.5714286 | M22: 0 | N22: 199.8571429 | O22: 0
A23: 2040 | B23: 6454.714286 | C23: 0 | D23: 4286 | E23: 0 | F23: 4286 | G23: 0 | H23: 15026.71429 | I23: 0 | J23: 71.28571429 | K23: 0 | L23: 128.5714286 | M23: 0 | N23: 199.8571429 | O23: 0
A24: 2041 | B24: 6454.714286 | C24: 0 | D24: 4286 | E24: 0 | F24: 4286 | G24: 0 | H24: 15026.71429 | I24: 0 | J24: 71.28571429 | K24: 0 | L24: 128.5714286 | M24: 0 | N24: 199.8571429 | O24: 0
A25: 2042 | B25: 6454.714286 | C25: 0 | D25: 4286 | E25: 0 | F25: 4286 | G25: 0 | H25: 15026.71429 | I25: 0 | J25: 71.28571429 | K25: 0 | L25: 128.5714286 | M25: 0 | N25: 199.8571429 | O25: 0
A26: 2043 | B26: 6454.714286 | C26: 0 | D26: 4286 | E26: 0 | F26: 4286 | G26: 0 | H26: 15026.71429 | I26: 0 | J26: 71.28571429 | K26: 0 | L26: 128.5714286 | M26: 0 | N26: 199.8571429 | O26: 0
A27: 2044 | B27: 6454.714286 | C27: 0 | D27: 4286 | E27: 0 | F27: 4286 | G27: 0 | H27: 15026.71429 | I27: 0 | J27: 71.28571429 | K27: 0 | L27: 128.5714286 | M27: 0 | N27: 199.8571429 | O27: 0
A28: 2045 | B28: 6454.714286 | C28: 0 | D28: 4286 | E28: 0 | F28: 4286 | G28: 0 | H28: 15026.71429 | I28: 0 | J28: 71.28571429 | K28: 0 | L28: 128.5714286 | M28: 0 | N28: 199.8571429 | O28: 0
A29: 2046 | B29: 6454.714286 | C29: 0 | D29: 4286 | E29: 0 | F29: 4286 | G29: 0 | H29: 15026.71429 | I29: 0 | J29: 71.28571429 | K29: 0 | L29: 128.5714286 | M29: 0 | N29: 199.8571429 | O29: 0
A30: 2047 | B30: 6454.714286 | C30: 0 | D30: 4286 | E30: 0 | F30: 4286 | G30: 0 | H30: 15026.71429 | I30: 0 | J30: 71.28571429 | K30: 0 | L30: 128.5714286 | M30: 0 | N30: 199.8571429 | O30: 0
A31: 2048 | B31: 6454.714286 | C31: 0 | D31: 4286 | E31: 0 | F31: 4286 | G31: 0 | H31: 15026.71429 | I31: 0 | J31: 71.28571429 | K31: 0 | L31: 128.5714286 | M31: 0 | N31: 199.8571429 | O31: 0
A32: 2049 | B32: 6454.714286 | C32: 0 | D32: 4286 | E32: 0 | F32: 4286 | G32: 0 | H32: 15026.71429 | I32: 0 | J32: 71.28571429 | K32: 0 | L32: 128.5714286 | M32: 0 | N32: 199.8571429 | O32: 0
A33: 2050 | B33: 6454.714286 | C33: 0 | D33: 4286 | E33: 0 | F33: 4286 | G33: 0 | H33: 15026.71429 | I33: 0 | J33: 71.28571429 | K33: 0 | L33: 128.5714286 | M33: 0 | N33: 199.8571429 | O33: 0
A34: 2051 | B34: 6454.714286 | C34: 0 | D34: 4286 | E34: 0 | F34: 4286 | G34: 0 | H34: 15026.71429 | I34: 0 | J34: 71.28571429 | K34: 0 | L34: 128.5714286 | M34: 0 | N34: 199.8571429 | O34: 0
A35: 2052 | B35: 6454.714286 | C35: 0 | D35: 4286 | E35: 0 | F35: 4286 | G35: 0 | H35: 15026.71429 | I35: 0 | J35: 71.28571429 | K35: 0 | L35: 128.5714286 | M35: 0 | N35: 199.8571429 | O35: 0
A36: 2053 | B36: 6454.714286 | C36: 0 | D36: 4286 | E36: 0 | F36: 4286 | G36: 0 | H36: 15026.71429 | I36: 0 | J36: 71.28571429 | K36: 0 | L36: 128.5714286 | M36: 0 | N36: 199.8571429 | O36: 0
A37: 2054 | B37: 6454.714286 | C37: 0 | D37: 4286 | E37: 0 | F37: 4286 | G37: 0 | H37: 15026.71429 | I37: 0 | J37: 71.28571429 | K37: 0 | L37: 128.5714286 | M37: 0 | N37: 199.8571429 | O37: 0
A38: 2055 | B38: 6454.714286 | C38: 0 | D38: 4286 | E38: 0 | F38: 4286 | G38: 0 | H38: 15026.71429 | I38: 0 | J38: 71.28571429 | K38: 0 | L38: 128.5714286 | M38: 0 | N38: 199.8571429 | O38: 0
A39: 2056 | B39: 6454.714286 | C39: 0 | D39: 4286 | E39: 0 | F39: 4286 | G39: 0 | H39: 15026.71429 | I39: 0 | J39: 71.28571429 | K39: 0 | L39: 128.5714286 | M39: 0 | N39: 199.8571429 | O39: 0
A40: 2057 | B40: 6454.714286 | C40: 0 | D40: 4286 | E40: 0 | F40: 4286 | G40: 0 | H40: 15026.71429 | I40: 0 | J40: 71.28571429 | K40: 0 | L40: 128.5714286 | M40: 0 | N40: 199.8571429 | O40: 0
A41: 2058 | B41: 6454.714286 | C41: 0 | D41: 4286 | E41: 0 | F41: 4286 | G41: 0 | H41: 15026.71429 | I41: 0 | J41: 71.28571429 | K41: 0 | L41: 128.5714286 | M41: 0 | N41: 199.8571429 | O41: 0
A42: 2059 | B42: 6454.714286 | C42: 0 | D42: 4286 | E42: 0 | F42: 4286 | G42: 0 | H42: 15026.71429 | I42: 0 | J42: 71.28571429 | K42: 0 | L42: 128.5714286 | M42: 0 | N42: 199.8571429 | O42: 0
A43: 2060 | B43: 6454.714286 | C43: 0 | D43: 4286 | E43: 0 | F43: 4286 | G43: 0 | H43: 15026.71429 | I43: 0 | J43: 71.28571429 | K43: 0 | L43: 128.5714286 | M43: 0 | N43: 199.8571429 | O43: 0
A44: 2061 | B44: 6454.714286 | C44: 0 | D44: 4286 | E44: 0 | F44: 4286 | G44: 0 | H44: 15026.71429 | I44: 0 | J44: 71.28571429 | K44: 0 | L44: 128.5714286 | M44: 0 | N44: 199.8571429 | O44: 0
A45: 2062 | B45: 6454.714286 | C45: 0 | D45: 4286 | E45: 0 | F45: 4286 | G45: 0 | H45: 15026.71429 | I45: 0 | J45: 71.28571429 | K45: 0 | L45: 128.5714286 | M45: 0 | N45: 199.8571429 | O45: 0
A46: 2063 | B46: 6454.714286 | C46: 0 | D46: 4286 | E46: 0 | F46: 4286 | G46: 0 | H46: 15026.71429 | I46: 0 | J46: 71.28571429 | K46: 0 | L46: 128.5714286 | M46: 0 | N46: 199.8571429 | O46: 0
A47: 2064 | B47: 6454.714286 | C47: 0 | D47: 4286 | E47: 0 | F47: 4286 | G47: 0 | H47: 15026.71429 | I47: 0 | J47: 71.28571429 | K47: 0 | L47: 128.5714286 | M47: 0 | N47: 199.8571429 | O47: 0
A48: 2065 | B48: 6454.714286 | C48: 0 | D48: 4286 | E48: 0 | F48: 4286 | G48: 0 | H48: 15026.71429 | I48: 0 | J48: 71.28571429 | K48: 0 | L48: 128.5714286 | M48: 0 | N48: 199.8571429 | O48: 0
A49: 2066 | B49: 6454.714286 | C49: 0 | D49: 4286 | E49: 0 | F49: 4286 | G49: 0 | H49: 15026.71429 | I49: 0 | J49: 71.28571429 | K49: 0 | L49: 128.5714286 | M49: 0 | N49: 199.8571429 | O49: 0
A50: 2067 | B50: 6454.714286 | C50: 0 | D50: 4286 | E50: 0 | F50: 4286 | G50: 0 | H50: 15026.71429 | I50: 0 | J50: 71.28571429 | K50: 0 | L50: 128.5714286 | M50: 0 | N50: 199.8571429 | O50: 0
A51: 2068 | B51: 6454.714286 | C51: 0 | D51: 4286 | E51: 0 | F51: 4286 | G51: 0 | H51: 15026.71429 | I51: 0 | J51: 71.28571429 | K51: 0 | L51: 128.5714286 | M51: 0 | N51: 199.8571429 | O51: 0
A52: 2069 | B52: 6454.714286 | C52: 0 | D52: 4286 | E52: 0 | F52: 4286 | G52: 0 | H52: 15026.71429 | I52: 0 | J52: 71.28571429 | K52: 0 | L52: 128.5714286 | M52: 0 | N52: 199.8571429 | O52: 0
A53: 2070 | B53: 6454.714286 | C53: 0 | D53: 4286 | E53: 0 | F53: 4286 | G53: 0 | H53: 15026.71429 | I53: 0 | J53: 71.28571429 | K53: 0 | L53: 128.5714286 | M53: 0 | N53: 199.8571429 | O53: 0
A54: 2071 | B54: 6454.714286 | C54: 0 | D54: 4286 | E54: 0 | F54: 4286 | G54: 0 | H54: 15026.71429 | I54: 0 | J54: 71.28571429 | K54: 0 | L54: 128.5714286 | M54: 0 | N54: 199.8571429 | O54: 0
A55: 2072 | B55: 6454.714286 | C55: 0 | D55: 4286 | E55: 0 | F55: 4286 | G55: 0 | H55: 15026.71429 | I55: 0 | J55: 71.28571429 | K55: 0 | L55: 128.5714286 | M55: 0 | N55: 199.8571429 | O55: 0
A56: 2073 | B56: 6454.714286 | C56: 0 | D56: 4286 | E56: 0 | F56: 4286 | G56: 0 | H56: 15026.71429 | I56: 0 | J56: 71.28571429 | K56: 0 | L56: 128.5714286 | M56: 0 | N56: 199.8571429 | O56: 0
A57: H&P/T | B57: 322735.7143 | C57: 0 | D57: 214300 | E57: 0 | F57: 214300 | G57: 0 | H57: 751335.7143 | I57: 0 | J57: 3564.285714 | K57: 0 | L57: 6428.571429 | M57: 0 | N57: 9992.857143 | O57: 0
A58: 7 - Year Hist Avg (A-12) | B58: 6454.714286 | C58: 0 | D58: 4286 | E58: 0 | F58: 4286 | G58: 0 | H58: 15026.71429 | I58: 0 | J58: 71.28571429 | K58: 0 | L58: 128.5714286 | M58: 0 | N58: 199.8571429 | O58: 0
A59: Projected Del. (A-2ba) | B59: 322735.7143 | C59: 0 | D59: 214300 | E59: 0 | F59: 214300 | G59: 0 | H59: 751335.7143 | I59: 0 | J59: 3564.285714 | K59: 0 | L59: 6428.571429 | M59: 0 | N59: 9992.857143 | O59: 0

Sheet PAGE_6
A2: M&I 2024 Sch A-13 FSOD F.Z26.XLSM
A3: 2023-10-02
A4: SCHEDULE OF PROJECTED (2024 - 2073) M&I WATER DELIVERIES
A5: FOR CALCULATION OF INDIVIDUAL CONTRACTOR PRORATED FOLSOM SOD MODIFICATION PROJECT COSTS AND RATE
A7: YEAR | B7: FRIANT-KERN CANAL: FKC ARVIN-EDISON WSD AF | C7: FRIANT-KERN CANAL: FKC ARVIN-EDISON WSD PW OF AF | D7: FRIANT-KERN CANAL: FKC CITY OF FRESNO AF | E7: FRIANT-KERN CANAL: FKC CITY OF FRESNO PW OF AF | F7: FRIANT-KERN CANAL: FKC CITY OF LINDSAY AF | G7: FRIANT-KERN CANAL: FKC CITY OF LINDSAY PW OF AF | H7: FRIANT-KERN CANAL: FKC CITY OF ORANGE COVE AF | I7: FRIANT-KERN CANAL: FKC CITY OF ORANGE COVE PW OF AF | J7: FRIANT-KERN CANAL: FKC DELANO-EARLIMART ID AF | K7: FRIANT-KERN CANAL: FKC DELANO-EARLIMART ID PW OF AF | L7: FRIANT-KERN CANAL: FKC LINDSAY-STRATHMORE ID AF | M7: FRIANT-KERN CANAL: FKC LINDSAY-STRATHMORE ID PW OF AF
A8: 2024 | B8: 461 | C8: 0 | D8: 41713.71429 | E8: 0 | F8: 1751 | G8: 0 | H8: 1097.857143 | I8: 0 | J8: 321.5714286 | K8: 0 | L8: 590.7142857 | M8: 0
A9: 2025 | B9: 461 | C9: 0 | D9: 41713.71429 | E9: 0 | F9: 1751 | G9: 0 | H9: 1097.857143 | I9: 0 | J9: 321.5714286 | K9: 0 | L9: 590.7142857 | M9: 0
A10: 2026 | B10: 461 | C10: 0 | D10: 41713.71429 | E10: 0 | F10: 1751 | G10: 0 | H10: 1097.857143 | I10: 0 | J10: 321.5714286 | K10: 0 | L10: 590.7142857 | M10: 0
A11: 2027 | B11: 461 | C11: 0 | D11: 41713.71429 | E11: 0 | F11: 1751 | G11: 0 | H11: 1097.857143 | I11: 0 | J11: 321.5714286 | K11: 0 | L11: 590.7142857 | M11: 0
A12: 2028 | B12: 461 | C12: 0 | D12: 41713.71429 | E12: 0 | F12: 1751 | G12: 0 | H12: 1097.857143 | I12: 0 | J12: 321.5714286 | K12: 0 | L12: 590.7142857 | M12: 0
A13: 2029 | B13: 461 | C13: 0 | D13: 41713.71429 | E13: 0 | F13: 1751 | G13: 0 | H13: 1097.857143 | I13: 0 | J13: 321.5714286 | K13: 0 | L13: 590.7142857 | M13: 0
A14: 2030 | B14: 461 | C14: 0 | D14: 41713.71429 | E14: 0 | F14: 1751 | G14: 0 | H14: 1097.857143 | I14: 0 | J14: 321.5714286 | K14: 0 | L14: 590.7142857 | M14: 0
A15: 2031 | B15: 461 | C15: 0 | D15: 41713.71429 | E15: 0 | F15: 1751 | G15: 0 | H15: 1097.857143 | I15: 0 | J15: 321.5714286 | K15: 0 | L15: 590.7142857 | M15: 0
A16: 2032 | B16: 461 | C16: 0 | D16: 41713.71429 | E16: 0 | F16: 1751 | G16: 0 | H16: 1097.857143 | I16: 0 | J16: 321.5714286 | K16: 0 | L16: 590.7142857 | M16: 0
A17: 2033 | B17: 461 | C17: 0 | D17: 41713.71429 | E17: 0 | F17: 1751 | G17: 0 | H17: 1097.857143 | I17: 0 | J17: 321.5714286 | K17: 0 | L17: 590.7142857 | M17: 0
A18: 2034 | B18: 461 | C18: 0 | D18: 41713.71429 | E18: 0 | F18: 1751 | G18: 0 | H18: 1097.857143 | I18: 0 | J18: 321.5714286 | K18: 0 | L18: 590.7142857 | M18: 0
A19: 2035 | B19: 461 | C19: 0 | D19: 41713.71429 | E19: 0 | F19: 1751 | G19: 0 | H19: 1097.857143 | I19: 0 | J19: 321.5714286 | K19: 0 | L19: 590.7142857 | M19: 0
A20: 2036 | B20: 461 | C20: 0 | D20: 41713.71429 | E20: 0 | F20: 1751 | G20: 0 | H20: 1097.857143 | I20: 0 | J20: 321.5714286 | K20: 0 | L20: 590.7142857 | M20: 0
A21: 2037 | B21: 461 | C21: 0 | D21: 41713.71429 | E21: 0 | F21: 1751 | G21: 0 | H21: 1097.857143 | I21: 0 | J21: 321.5714286 | K21: 0 | L21: 590.7142857 | M21: 0
A22: 2038 | B22: 461 | C22: 0 | D22: 41713.71429 | E22: 0 | F22: 1751 | G22: 0 | H22: 1097.857143 | I22: 0 | J22: 321.5714286 | K22: 0 | L22: 590.7142857 | M22: 0
A23: 2039 | B23: 461 | C23: 0 | D23: 41713.71429 | E23: 0 | F23: 1751 | G23: 0 | H23: 1097.857143 | I23: 0 | J23: 321.5714286 | K23: 0 | L23: 590.7142857 | M23: 0
A24: 2040 | B24: 461 | C24: 0 | D24: 41713.71429 | E24: 0 | F24: 1751 | G24: 0 | H24: 1097.857143 | I24: 0 | J24: 321.5714286 | K24: 0 | L24: 590.7142857 | M24: 0
A25: 2041 | B25: 461 | C25: 0 | D25: 41713.71429 | E25: 0 | F25: 1751 | G25: 0 | H25: 1097.857143 | I25: 0 | J25: 321.5714286 | K25: 0 | L25: 590.7142857 | M25: 0
A26: 2042 | B26: 461 | C26: 0 | D26: 41713.71429 | E26: 0 | F26: 1751 | G26: 0 | H26: 1097.857143 | I26: 0 | J26: 321.5714286 | K26: 0 | L26: 590.7142857 | M26: 0
A27: 2043 | B27: 461 | C27: 0 | D27: 41713.71429 | E27: 0 | F27: 1751 | G27: 0 | H27: 1097.857143 | I27: 0 | J27: 321.5714286 | K27: 0 | L27: 590.7142857 | M27: 0
A28: 2044 | B28: 461 | C28: 0 | D28: 41713.71429 | E28: 0 | F28: 1751 | G28: 0 | H28: 1097.857143 | I28: 0 | J28: 321.5714286 | K28: 0 | L28: 590.7142857 | M28: 0
A29: 2045 | B29: 461 | C29: 0 | D29: 41713.71429 | E29: 0 | F29: 1751 | G29: 0 | H29: 1097.857143 | I29: 0 | J29: 321.5714286 | K29: 0 | L29: 590.7142857 | M29: 0
A30: 2046 | B30: 461 | C30: 0 | D30: 41713.71429 | E30: 0 | F30: 1751 | G30: 0 | H30: 1097.857143 | I30: 0 | J30: 321.5714286 | K30: 0 | L30: 590.7142857 | M30: 0
A31: 2047 | B31: 461 | C31: 0 | D31: 41713.71429 | E31: 0 | F31: 1751 | G31: 0 | H31: 1097.857143 | I31: 0 | J31: 321.5714286 | K31: 0 | L31: 590.7142857 | M31: 0
A32: 2048 | B32: 461 | C32: 0 | D32: 41713.71429 | E32: 0 | F32: 1751 | G32: 0 | H32: 1097.857143 | I32: 0 | J32: 321.5714286 | K32: 0 | L32: 590.7142857 | M32: 0
A33: 2049 | B33: 461 | C33: 0 | D33: 41713.71429 | E33: 0 | F33: 1751 | G33: 0 | H33: 1097.857143 | I33: 0 | J33: 321.5714286 | K33: 0 | L33: 590.7142857 | M33: 0
A34: 2050 | B34: 461 | C34: 0 | D34: 41713.71429 | E34: 0 | F34: 1751 | G34: 0 | H34: 1097.857143 | I34: 0 | J34: 321.5714286 | K34: 0 | L34: 590.7142857 | M34: 0
A35: 2051 | B35: 461 | C35: 0 | D35: 41713.71429 | E35: 0 | F35: 1751 | G35: 0 | H35: 1097.857143 | I35: 0 | J35: 321.5714286 | K35: 0 | L35: 590.7142857 | M35: 0
A36: 2052 | B36: 461 | C36: 0 | D36: 41713.71429 | E36: 0 | F36: 1751 | G36: 0 | H36: 1097.857143 | I36: 0 | J36: 321.5714286 | K36: 0 | L36: 590.7142857 | M36: 0
A37: 2053 | B37: 461 | C37: 0 | D37: 41713.71429 | E37: 0 | F37: 1751 | G37: 0 | H37: 1097.857143 | I37: 0 | J37: 321.5714286 | K37: 0 | L37: 590.7142857 | M37: 0
A38: 2054 | B38: 461 | C38: 0 | D38: 41713.71429 | E38: 0 | F38: 1751 | G38: 0 | H38: 1097.857143 | I38: 0 | J38: 321.5714286 | K38: 0 | L38: 590.7142857 | M38: 0
A39: 2055 | B39: 461 | C39: 0 | D39: 41713.71429 | E39: 0 | F39: 1751 | G39: 0 | H39: 1097.857143 | I39: 0 | J39: 321.5714286 | K39: 0 | L39: 590.7142857 | M39: 0
A40: 2056 | B40: 461 | C40: 0 | D40: 41713.71429 | E40: 0 | F40: 1751 | G40: 0 | H40: 1097.857143 | I40: 0 | J40: 321.5714286 | K40: 0 | L40: 590.7142857 | M40: 0
A41: 2057 | B41: 461 | C41: 0 | D41: 41713.71429 | E41: 0 | F41: 1751 | G41: 0 | H41: 1097.857143 | I41: 0 | J41: 321.5714286 | K41: 0 | L41: 590.7142857 | M41: 0
A42: 2058 | B42: 461 | C42: 0 | D42: 41713.71429 | E42: 0 | F42: 1751 | G42: 0 | H42: 1097.857143 | I42: 0 | J42: 321.5714286 | K42: 0 | L42: 590.7142857 | M42: 0
A43: 2059 | B43: 461 | C43: 0 | D43: 41713.71429 | E43: 0 | F43: 1751 | G43: 0 | H43: 1097.857143 | I43: 0 | J43: 321.5714286 | K43: 0 | L43: 590.7142857 | M43: 0
A44: 2060 | B44: 461 | C44: 0 | D44: 41713.71429 | E44: 0 | F44: 1751 | G44: 0 | H44: 1097.857143 | I44: 0 | J44: 321.5714286 | K44: 0 | L44: 590.7142857 | M44: 0
A45: 2061 | B45: 461 | C45: 0 | D45: 41713.71429 | E45: 0 | F45: 1751 | G45: 0 | H45: 1097.857143 | I45: 0 | J45: 321.5714286 | K45: 0 | L45: 590.7142857 | M45: 0
A46: 2062 | B46: 461 | C46: 0 | D46: 41713.71429 | E46: 0 | F46: 1751 | G46: 0 | H46: 1097.857143 | I46: 0 | J46: 321.5714286 | K46: 0 | L46: 590.7142857 | M46: 0
A47: 2063 | B47: 461 | C47: 0 | D47: 41713.71429 | E47: 0 | F47: 1751 | G47: 0 | H47: 1097.857143 | I47: 0 | J47: 321.5714286 | K47: 0 | L47: 590.7142857 | M47: 0
A48: 2064 | B48: 461 | C48: 0 | D48: 41713.71429 | E48: 0 | F48: 1751 | G48: 0 | H48: 1097.857143 | I48: 0 | J48: 321.5714286 | K48: 0 | L48: 590.7142857 | M48: 0
A49: 2065 | B49: 461 | C49: 0 | D49: 41713.71429 | E49: 0 | F49: 1751 | G49: 0 | H49: 1097.857143 | I49: 0 | J49: 321.5714286 | K49: 0 | L49: 590.7142857 | M49: 0
A50: 2066 | B50: 461 | C50: 0 | D50: 41713.71429 | E50: 0 | F50: 1751 | G50: 0 | H50: 1097.857143 | I50: 0 | J50: 321.5714286 | K50: 0 | L50: 590.7142857 | M50: 0
A51: 2067 | B51: 461 | C51: 0 | D51: 41713.71429 | E51: 0 | F51: 1751 | G51: 0 | H51: 1097.857143 | I51: 0 | J51: 321.5714286 | K51: 0 | L51: 590.7142857 | M51: 0
A52: 2068 | B52: 461 | C52: 0 | D52: 41713.71429 | E52: 0 | F52: 1751 | G52: 0 | H52: 1097.857143 | I52: 0 | J52: 321.5714286 | K52: 0 | L52: 590.7142857 | M52: 0
A53: 2069 | B53: 461 | C53: 0 | D53: 41713.71429 | E53: 0 | F53: 1751 | G53: 0 | H53: 1097.857143 | I53: 0 | J53: 321.5714286 | K53: 0 | L53: 590.7142857 | M53: 0
A54: 2070 | B54: 461 | C54: 0 | D54: 41713.71429 | E54: 0 | F54: 1751 | G54: 0 | H54: 1097.857143 | I54: 0 | J54: 321.5714286 | K54: 0 | L54: 590.7142857 | M54: 0
A55: 2071 | B55: 461 | C55: 0 | D55: 41713.71429 | E55: 0 | F55: 1751 | G55: 0 | H55: 1097.857143 | I55: 0 | J55: 321.5714286 | K55: 0 | L55: 590.7142857 | M55: 0
A56: 2072 | B56: 461 | C56: 0 | D56: 41713.71429 | E56: 0 | F56: 1751 | G56: 0 | H56: 1097.857143 | I56: 0 | J56: 321.5714286 | K56: 0 | L56: 590.7142857 | M56: 0
A57: 2073 | B57: 461 | C57: 0 | D57: 41713.71429 | E57: 0 | F57: 1751 | G57: 0 | H57: 1097.857143 | I57: 0 | J57: 321.5714286 | K57: 0 | L57: 590.7142857 | M57: 0
A58: H&P/T | B58: 23050 | C58: 0 | D58: 2085685.714 | E58: 0 | F58: 87550 | G58: 0 | H58: 54892.85714 | I58: 0 | J58: 16078.57143 | K58: 0 | L58: 29535.71429 | M58: 0
A59: 7 - Year Hist Avg (A-12) | B59: 461 | C59: 0 | D59: 41713.71429 | E59: 0 | F59: 1751 | G59: 0 | H59: 1097.857143 | I59: 0 | J59: 321.5714286 | K59: 0 | L59: 590.7142857 | M59: 0 | AE59: 0 | AI59: 0
A60: Projected Del. (A-2ba) | B60: 23050 | C60: 0 | D60: 2085685.714 | E60: 0 | F60: 87550 | G60: 0 | H60: 54892.85714 | I60: 0 | J60: 16078.57143 | K60: 0 | L60: 29535.71429 | M60: 0

Sheet PAGE_7
A2: M&I 2024 Sch A-13 FSOD F.Z26.XLSM
A3: 2023-10-02
A4: SCHEDULE OF PROJECTED (2024 - 2073) M&I WATER DELIVERIES
A5: FOR CALCULATION OF INDIVIDUAL CONTRACTOR PRORATED FOLSOM SOD MODIFICATION PROJECT COSTS AND RATE
A7: YEAR | B7: FRIANT-KERN CANAL CONTINUED: FKC SHAFTER-WASCO ID AF | C7: FRIANT-KERN CANAL CONTINUED: FKC SHAFTER-WASCO ID PW OF AF | D7: FRIANT-KERN CANAL CONTINUED: FKC TERRA BELLA ID AF | E7: FRIANT-KERN CANAL CONTINUED: FKC TERRA BELLA ID PW OF AF | F7: FRIANT-KERN CANAL CONTINUED: FKC TOTAL AF | G7: FRIANT-KERN CANAL CONTINUED: FKC TOTAL PW OF AF | H7: NEW MELONES D & R: NMD&R STOCKTON EAST WD AF | I7: NEW MELONES D & R: NMD&R STOCKTON EAST WD PW OF AF | J7: SACRAMENTO RIVER: SR CITY OF REDDING AF | K7: SACRAMENTO RIVER: SR CITY OF REDDING PW OF AF | L7: SACRAMENTO RIVER: SR CITY OF WEST SACRAMENTO AF | M7: SACRAMENTO RIVER: SR CITY OF WEST SACRAMENTO PW OF AF | N7: SACRAMENTO RIVER: SR LAKE CA P.O.A. AF | O7: SACRAMENTO RIVER: SR LAKE CA P.O.A. PW OF AF
A8: 2024 | B8: 130.8571429 | C8: 0 | D8: 1466.571429 | E8: 0 | F8: 47533.28571 | G8: 0 | H8: 23180.57143 | I8: 0 | J8: 2367 | K8: 0 | L8: 5724.857143 | M8: 0 | N8: 164.2857143 | O8: 0
A9: 2025 | B9: 130.8571429 | C9: 0 | D9: 1466.571429 | E9: 0 | F9: 47533.28571 | G9: 0 | H9: 23180.57143 | I9: 0 | J9: 2367 | K9: 0 | L9: 5724.857143 | M9: 0 | N9: 164.2857143 | O9: 0
A10: 2026 | B10: 130.8571429 | C10: 0 | D10: 1466.571429 | E10: 0 | F10: 47533.28571 | G10: 0 | H10: 23180.57143 | I10: 0 | J10: 2367 | K10: 0 | L10: 5724.857143 | M10: 0 | N10: 164.2857143 | O10: 0
A11: 2027 | B11: 130.8571429 | C11: 0 | D11: 1466.571429 | E11: 0 | F11: 47533.28571 | G11: 0 | H11: 23180.57143 | I11: 0 | J11: 2367 | K11: 0 | L11: 5724.857143 | M11: 0 | N11: 164.2857143 | O11: 0
A12: 2028 | B12: 130.8571429 | C12: 0 | D12: 1466.571429 | E12: 0 | F12: 47533.28571 | G12: 0 | H12: 23180.57143 | I12: 0 | J12: 2367 | K12: 0 | L12: 5724.857143 | M12: 0 | N12: 164.2857143 | O12: 0
A13: 2029 | B13: 130.8571429 | C13: 0 | D13: 1466.571429 | E13: 0 | F13: 47533.28571 | G13: 0 | H13: 23180.57143 | I13: 0 | J13: 2367 | K13: 0 | L13: 5724.857143 | M13: 0 | N13: 164.2857143 | O13: 0
A14: 2030 | B14: 130.8571429 | C14: 0 | D14: 1466.571429 | E14: 0 | F14: 47533.28571 | G14: 0 | H14: 23180.57143 | I14: 0 | J14: 2367 | K14: 0 | L14: 5724.857143 | M14: 0 | N14: 164.2857143 | O14: 0
A15: 2031 | B15: 130.8571429 | C15: 0 | D15: 1466.571429 | E15: 0 | F15: 47533.28571 | G15: 0 | H15: 23180.57143 | I15: 0 | J15: 2367 | K15: 0 | L15: 5724.857143 | M15: 0 | N15: 164.2857143 | O15: 0
A16: 2032 | B16: 130.8571429 | C16: 0 | D16: 1466.571429 | E16: 0 | F16: 47533.28571 | G16: 0 | H16: 23180.57143 | I16: 0 | J16: 2367 | K16: 0 | L16: 5724.857143 | M16: 0 | N16: 164.2857143 | O16: 0
A17: 2033 | B17: 130.8571429 | C17: 0 | D17: 1466.571429 | E17: 0 | F17: 47533.28571 | G17: 0 | H17: 23180.57143 | I17: 0 | J17: 2367 | K17: 0 | L17: 5724.857143 | M17: 0 | N17: 164.2857143 | O17: 0
A18: 2034 | B18: 130.8571429 | C18: 0 | D18: 1466.571429 | E18: 0 | F18: 47533.28571 | G18: 0 | H18: 23180.57143 | I18: 0 | J18: 2367 | K18: 0 | L18: 5724.857143 | M18: 0 | N18: 164.2857143 | O18: 0
A19: 2035 | B19: 130.8571429 | C19: 0 | D19: 1466.571429 | E19: 0 | F19: 47533.28571 | G19: 0 | H19: 23180.57143 | I19: 0 | J19: 2367 | K19: 0 | L19: 5724.857143 | M19: 0 | N19: 164.2857143 | O19: 0
A20: 2036 | B20: 130.8571429 | C20: 0 | D20: 1466.571429 | E20: 0 | F20: 47533.28571 | G20: 0 | H20: 23180.57143 | I20: 0 | J20: 2367 | K20: 0 | L20: 5724.857143 | M20: 0 | N20: 164.2857143 | O20: 0
A21: 2037 | B21: 130.8571429 | C21: 0 | D21: 1466.571429 | E21: 0 | F21: 47533.28571 | G21: 0 | H21: 23180.57143 | I21: 0 | J21: 2367 | K21: 0 | L21: 5724.857143 | M21: 0 | N21: 164.2857143 | O21: 0
A22: 2038 | B22: 130.8571429 | C22: 0 | D22: 1466.571429 | E22: 0 | F22: 47533.28571 | G22: 0 | H22: 23180.57143 | I22: 0 | J22: 2367 | K22: 0 | L22: 5724.857143 | M22: 0 | N22: 164.2857143 | O22: 0
A23: 2039 | B23: 130.8571429 | C23: 0 | D23: 1466.571429 | E23: 0 | F23: 47533.28571 | G23: 0 | H23: 23180.57143 | I23: 0 | J23: 2367 | K23: 0 | L23: 5724.857143 | M23: 0 | N23: 164.2857143 | O23: 0
A24: 2040 | B24: 130.8571429 | C24: 0 | D24: 1466.571429 | E24: 0 | F24: 47533.28571 | G24: 0 | H24: 23180.57143 | I24: 0 | J24: 2367 | K24: 0 | L24: 5724.857143 | M24: 0 | N24: 164.2857143 | O24: 0
A25: 2041 | B25: 130.8571429 | C25: 0 | D25: 1466.571429 | E25: 0 | F25: 47533.28571 | G25: 0 | H25: 23180.57143 | I25: 0 | J25: 2367 | K25: 0 | L25: 5724.857143 | M25: 0 | N25: 164.2857143 | O25: 0
A26: 2042 | B26: 130.8571429 | C26: 0 | D26: 1466.571429 | E26: 0 | F26: 47533.28571 | G26: 0 | H26: 23180.57143 | I26: 0 | J26: 2367 | K26: 0 | L26: 5724.857143 | M26: 0 | N26: 164.2857143 | O26: 0
A27: 2043 | B27: 130.8571429 | C27: 0 | D27: 1466.571429 | E27: 0 | F27: 47533.28571 | G27: 0 | H27: 23180.57143 | I27: 0 | J27: 2367 | K27: 0 | L27: 5724.857143 | M27: 0 | N27: 164.2857143 | O27: 0
A28: 2044 | B28: 130.8571429 | C28: 0 | D28: 1466.571429 | E28: 0 | F28: 47533.28571 | G28: 0 | H28: 23180.57143 | I28: 0 | J28: 2367 | K28: 0 | L28: 5724.857143 | M28: 0 | N28: 164.2857143 | O28: 0
A29: 2045 | B29: 130.8571429 | C29: 0 | D29: 1466.571429 | E29: 0 | F29: 47533.28571 | G29: 0 | H29: 23180.57143 | I29: 0 | J29: 2367 | K29: 0 | L29: 5724.857143 | M29: 0 | N29: 164.2857143 | O29: 0
A30: 2046 | B30: 130.8571429 | C30: 0 | D30: 1466.571429 | E30: 0 | F30: 47533.28571 | G30: 0 | H30: 23180.57143 | I30: 0 | J30: 2367 | K30: 0 | L30: 5724.857143 | M30: 0 | N30: 164.2857143 | O30: 0
A31: 2047 | B31: 130.8571429 | C31: 0 | D31: 1466.571429 | E31: 0 | F31: 47533.28571 | G31: 0 | H31: 23180.57143 | I31: 0 | J31: 2367 | K31: 0 | L31: 5724.857143 | M31: 0 | N31: 164.2857143 | O31: 0
A32: 2048 | B32: 130.8571429 | C32: 0 | D32: 1466.571429 | E32: 0 | F32: 47533.28571 | G32: 0 | H32: 23180.57143 | I32: 0 | J32: 2367 | K32: 0 | L32: 5724.857143 | M32: 0 | N32: 164.2857143 | O32: 0
A33: 2049 | B33: 130.8571429 | C33: 0 | D33: 1466.571429 | E33: 0 | F33: 47533.28571 | G33: 0 | H33: 23180.57143 | I33: 0 | J33: 2367 | K33: 0 | L33: 5724.857143 | M33: 0 | N33: 164.2857143 | O33: 0
A34: 2050 | B34: 130.8571429 | C34: 0 | D34: 1466.571429 | E34: 0 | F34: 47533.28571 | G34: 0 | H34: 23180.57143 | I34: 0 | J34: 2367 | K34: 0 | L34: 5724.857143 | M34: 0 | N34: 164.2857143 | O34: 0
A35: 2051 | B35: 130.8571429 | C35: 0 | D35: 1466.571429 | E35: 0 | F35: 47533.28571 | G35: 0 | H35: 23180.57143 | I35: 0 | J35: 2367 | K35: 0 | L35: 5724.857143 | M35: 0 | N35: 164.2857143 | O35: 0
A36: 2052 | B36: 130.8571429 | C36: 0 | D36: 1466.571429 | E36: 0 | F36: 47533.28571 | G36: 0 | H36: 23180.57143 | I36: 0 | J36: 2367 | K36: 0 | L36: 5724.857143 | M36: 0 | N36: 164.2857143 | O36: 0
A37: 2053 | B37: 130.8571429 | C37: 0 | D37: 1466.571429 | E37: 0 | F37: 47533.28571 | G37: 0 | H37: 23180.57143 | I37: 0 | J37: 2367 | K37: 0 | L37: 5724.857143 | M37: 0 | N37: 164.2857143 | O37: 0
A38: 2054 | B38: 130.8571429 | C38: 0 | D38: 1466.571429 | E38: 0 | F38: 47533.28571 | G38: 0 | H38: 23180.57143 | I38: 0 | J38: 2367 | K38: 0 | L38: 5724.857143 | M38: 0 | N38: 164.2857143 | O38: 0
A39: 2055 | B39: 130.8571429 | C39: 0 | D39: 1466.571429 | E39: 0 | F39: 47533.28571 | G39: 0 | H39: 23180.57143 | I39: 0 | J39: 2367 | K39: 0 | L39: 5724.857143 | M39: 0 | N39: 164.2857143 | O39: 0
A40: 2056 | B40: 130.8571429 | C40: 0 | D40: 1466.571429 | E40: 0 | F40: 47533.28571 | G40: 0 | H40: 23180.57143 | I40: 0 | J40: 2367 | K40: 0 | L40: 5724.857143 | M40: 0 | N40: 164.2857143 | O40: 0
A41: 2057 | B41: 130.8571429 | C41: 0 | D41: 1466.571429 | E41: 0 | F41: 47533.28571 | G41: 0 | H41: 23180.57143 | I41: 0 | J41: 2367 | K41: 0 | L41: 5724.857143 | M41: 0 | N41: 164.2857143 | O41: 0
A42: 2058 | B42: 130.8571429 | C42: 0 | D42: 1466.571429 | E42: 0 | F42: 47533.28571 | G42: 0 | H42: 23180.57143 | I42: 0 | J42: 2367 | K42: 0 | L42: 5724.857143 | M42: 0 | N42: 164.2857143 | O42: 0
A43: 2059 | B43: 130.8571429 | C43: 0 | D43: 1466.571429 | E43: 0 | F43: 47533.28571 | G43: 0 | H43: 23180.57143 | I43: 0 | J43: 2367 | K43: 0 | L43: 5724.857143 | M43: 0 | N43: 164.2857143 | O43: 0
A44: 2060 | B44: 130.8571429 | C44: 0 | D44: 1466.571429 | E44: 0 | F44: 47533.28571 | G44: 0 | H44: 23180.57143 | I44: 0 | J44: 2367 | K44: 0 | L44: 5724.857143 | M44: 0 | N44: 164.2857143 | O44: 0
A45: 2061 | B45: 130.8571429 | C45: 0 | D45: 1466.571429 | E45: 0 | F45: 47533.28571 | G45: 0 | H45: 23180.57143 | I45: 0 | J45: 2367 | K45: 0 | L45: 5724.857143 | M45: 0 | N45: 164.2857143 | O45: 0
A46: 2062 | B46: 130.8571429 | C46: 0 | D46: 1466.571429 | E46: 0 | F46: 47533.28571 | G46: 0 | H46: 23180.57143 | I46: 0 | J46: 2367 | K46: 0 | L46: 5724.857143 | M46: 0 | N46: 164.2857143 | O46: 0
A47: 2063 | B47: 130.8571429 | C47: 0 | D47: 1466.571429 | E47: 0 | F47: 47533.28571 | G47: 0 | H47: 23180.57143 | I47: 0 | J47: 2367 | K47: 0 | L47: 5724.857143 | M47: 0 | N47: 164.2857143 | O47: 0
A48: 2064 | B48: 130.8571429 | C48: 0 | D48: 1466.571429 | E48: 0 | F48: 47533.28571 | G48: 0 | H48: 23180.57143 | I48: 0 | J48: 2367 | K48: 0 | L48: 5724.857143 | M48: 0 | N48: 164.2857143 | O48: 0
A49: 2065 | B49: 130.8571429 | C49: 0 | D49: 1466.571429 | E49: 0 | F49: 47533.28571 | G49: 0 | H49: 23180.57143 | I49: 0 | J49: 2367 | K49: 0 | L49: 5724.857143 | M49: 0 | N49: 164.2857143 | O49: 0
A50: 2066 | B50: 130.8571429 | C50: 0 | D50: 1466.571429 | E50: 0 | F50: 47533.28571 | G50: 0 | H50: 23180.57143 | I50: 0 | J50: 2367 | K50: 0 | L50: 5724.857143 | M50: 0 | N50: 164.2857143 | O50: 0
A51: 2067 | B51: 130.8571429 | C51: 0 | D51: 1466.571429 | E51: 0 | F51: 47533.28571 | G51: 0 | H51: 23180.57143 | I51: 0 | J51: 2367 | K51: 0 | L51: 5724.857143 | M51: 0 | N51: 164.2857143 | O51: 0
A52: 2068 | B52: 130.8571429 | C52: 0 | D52: 1466.571429 | E52: 0 | F52: 47533.28571 | G52: 0 | H52: 23180.57143 | I52: 0 | J52: 2367 | K52: 0 | L52: 5724.857143 | M52: 0 | N52: 164.2857143 | O52: 0
A53: 2069 | B53: 130.8571429 | C53: 0 | D53: 1466.571429 | E53: 0 | F53: 47533.28571 | G53: 0 | H53: 23180.57143 | I53: 0 | J53: 2367 | K53: 0 | L53: 5724.857143 | M53: 0 | N53: 164.2857143 | O53: 0
A54: 2070 | B54: 130.8571429 | C54: 0 | D54: 1466.571429 | E54: 0 | F54: 47533.28571 | G54: 0 | H54: 23180.57143 | I54: 0 | J54: 2367 | K54: 0 | L54: 5724.857143 | M54: 0 | N54: 164.2857143 | O54: 0
A55: 2071 | B55: 130.8571429 | C55: 0 | D55: 1466.571429 | E55: 0 | F55: 47533.28571 | G55: 0 | H55: 23180.57143 | I55: 0 | J55: 2367 | K55: 0 | L55: 5724.857143 | M55: 0 | N55: 164.2857143 | O55: 0
A56: 2072 | B56: 130.8571429 | C56: 0 | D56: 1466.571429 | E56: 0 | F56: 47533.28571 | G56: 0 | H56: 23180.57143 | I56: 0 | J56: 2367 | K56: 0 | L56: 5724.857143 | M56: 0 | N56: 164.2857143 | O56: 0
A57: 2073 | B57: 130.8571429 | C57: 0 | D57: 1466.571429 | E57: 0 | F57: 47533.28571 | G57: 0 | H57: 23180.57143 | I57: 0 | J57: 2367 | K57: 0 | L57: 5724.857143 | M57: 0 | N57: 164.2857143 | O57: 0
A58: H&P/T | B58: 6542.857143 | C58: 0 | D58: 73328.57143 | E58: 0 | F58: 2376664.286 | G58: 0 | H58: 1159028.571 | I58: 0 | J58: 118350 | K58: 0 | L58: 286242.8571 | M58: 0 | N58: 8214.285714 | O58: 0
A59: 7 - Year Hist Avg (A-12) | B59: 130.8571429 | C59: 0 | D59: 1466.571429 | E59: 0 | F59: 47533.28571 | G59: 0 | H59: 23180.57143 | I59: 0 | J59: 2367 | K59: 0 | L59: 5724.857143 | M59: 0 | N59: 164.2857143 | O59: 0
A60: Projected Del. (A-2ba) | B60: 6542.857143 | C60: 0 | D60: 73328.57143 | E60: 0 | F60: 2376664.286 | G60: 0 | H60: 1159028.571 | I60: 0 | J60: 118350 | K60: 0 | L60: 286242.8571 | M60: 0 | N60: 8214.285714 | O60: 0

Sheet Page_8
A2: M&I 2024 Sch A-13 FSOD F.Z26.XLSM
A3: 2023-10-02
A4: CENTRAL VALLEY PROJECT
A5: SCHEDULE OF PROJECTED (2024 - 2073) M&I WATER DELIVERIES
A6: FOR CALCULATION OF INDIVIDUAL CONTRACTOR PRORATED FOLSOM SOD MODIFICATION PROJECT COSTS AND RATE
A8: YEAR | B8: SACRAMENTO RIVER CONTINUED: SR RIVERVIEW GOLF & CC AF | C8: SACRAMENTO RIVER CONTINUED: SR RIVERVIEW GOLF & CC PW OF AF | D8: SACRAMENTO RIVER CONTINUED: SR TOTAL AF | E8: SACRAMENTO RIVER CONTINUED: SR TOTAL PW OF AF | F8: SAN FELIPE UNIT IN-BASIN: SFUIB SAN BENITO COUNTY WD AF | G8: SAN FELIPE UNIT IN-BASIN: SFUIB SAN BENITO COUNTY WD PW OF AF | H8: SAN FELIPE UNIT IN-BASIN: SFUIB SANTA CLARA VALLEY WD AF | I8: SAN FELIPE UNIT IN-BASIN: SFUIB SANTA CLARA VALLEY WD PW OF AF | J8: SAN FELIPE UNIT IN-BASIN: SFUIB TOTAL AF | K8: SAN FELIPE UNIT IN-BASIN: SFUIB TOTAL PW OF AF
A9: 2024 | B9: 20.57142857 | C9: 0 | D9: 8276.714286 | E9: 0 | F9: 5390.857143 | G9: 0 | H9: 85015.85714 | I9: 0 | J9: 90406.71429 | K9: 0
A10: 2025 | B10: 20.57142857 | C10: 0 | D10: 8276.714286 | E10: 0 | F10: 5390.857143 | G10: 0 | H10: 85015.85714 | I10: 0 | J10: 90406.71429 | K10: 0
A11: 2026 | B11: 20.57142857 | C11: 0 | D11: 8276.714286 | E11: 0 | F11: 5390.857143 | G11: 0 | H11: 85015.85714 | I11: 0 | J11: 90406.71429 | K11: 0
A12: 2027 | B12: 20.57142857 | C12: 0 | D12: 8276.714286 | E12: 0 | F12: 5390.857143 | G12: 0 | H12: 85015.85714 | I12: 0 | J12: 90406.71429 | K12: 0
A13: 2028 | B13: 20.57142857 | C13: 0 | D13: 8276.714286 | E13: 0 | F13: 5390.857143 | G13: 0 | H13: 85015.85714 | I13: 0 | J13: 90406.71429 | K13: 0
A14: 2029 | B14: 20.57142857 | C14: 0 | D14: 8276.714286 | E14: 0 | F14: 5390.857143 | G14: 0 | H14: 85015.85714 | I14: 0 | J14: 90406.71429 | K14: 0
A15: 2030 | B15: 20.57142857 | C15: 0 | D15: 8276.714286 | E15: 0 | F15: 5390.857143 | G15: 0 | H15: 85015.85714 | I15: 0 | J15: 90406.71429 | K15: 0
A16: 2031 | B16: 20.57142857 | C16: 0 | D16: 8276.714286 | E16: 0 | F16: 5390.857143 | G16: 0 | H16: 85015.85714 | I16: 0 | J16: 90406.71429 | K16: 0
A17: 2032 | B17: 20.57142857 | C17: 0 | D17: 8276.714286 | E17: 0 | F17: 5390.857143 | G17: 0 | H17: 85015.85714 | I17: 0 | J17: 90406.71429 | K17: 0
A18: 2033 | B18: 20.57142857 | C18: 0 | D18: 8276.714286 | E18: 0 | F18: 5390.857143 | G18: 0 | H18: 85015.85714 | I18: 0 | J18: 90406.71429 | K18: 0
A19: 2034 | B19: 20.57142857 | C19: 0 | D19: 8276.714286 | E19: 0 | F19: 5390.857143 | G19: 0 | H19: 85015.85714 | I19: 0 | J19: 90406.71429 | K19: 0
A20: 2035 | B20: 20.57142857 | C20: 0 | D20: 8276.714286 | E20: 0 | F20: 5390.857143 | G20: 0 | H20: 85015.85714 | I20: 0 | J20: 90406.71429 | K20: 0
A21: 2036 | B21: 20.57142857 | C21: 0 | D21: 8276.714286 | E21: 0 | F21: 5390.857143 | G21: 0 | H21: 85015.85714 | I21: 0 | J21: 90406.71429 | K21: 0
A22: 2037 | B22: 20.57142857 | C22: 0 | D22: 8276.714286 | E22: 0 | F22: 5390.857143 | G22: 0 | H22: 85015.85714 | I22: 0 | J22: 90406.71429 | K22: 0
A23: 2038 | B23: 20.57142857 | C23: 0 | D23: 8276.714286 | E23: 0 | F23: 5390.857143 | G23: 0 | H23: 85015.85714 | I23: 0 | J23: 90406.71429 | K23: 0
A24: 2039 | B24: 20.57142857 | C24: 0 | D24: 8276.714286 | E24: 0 | F24: 5390.857143 | G24: 0 | H24: 85015.85714 | I24: 0 | J24: 90406.71429 | K24: 0
A25: 2040 | B25: 20.57142857 | C25: 0 | D25: 8276.714286 | E25: 0 | F25: 5390.857143 | G25: 0 | H25: 85015.85714 | I25: 0 | J25: 90406.71429 | K25: 0
A26: 2041 | B26: 20.57142857 | C26: 0 | D26: 8276.714286 | E26: 0 | F26: 5390.857143 | G26: 0 | H26: 85015.85714 | I26: 0 | J26: 90406.71429 | K26: 0
A27: 2042 | B27: 20.57142857 | C27: 0 | D27: 8276.714286 | E27: 0 | F27: 5390.857143 | G27: 0 | H27: 85015.85714 | I27: 0 | J27: 90406.71429 | K27: 0
A28: 2043 | B28: 20.57142857 | C28: 0 | D28: 8276.714286 | E28: 0 | F28: 5390.857143 | G28: 0 | H28: 85015.85714 | I28: 0 | J28: 90406.71429 | K28: 0
A29: 2044 | B29: 20.57142857 | C29: 0 | D29: 8276.714286 | E29: 0 | F29: 5390.857143 | G29: 0 | H29: 85015.85714 | I29: 0 | J29: 90406.71429 | K29: 0
A30: 2045 | B30: 20.57142857 | C30: 0 | D30: 8276.714286 | E30: 0 | F30: 5390.857143 | G30: 0 | H30: 85015.85714 | I30: 0 | J30: 90406.71429 | K30: 0
A31: 2046 | B31: 20.57142857 | C31: 0 | D31: 8276.714286 | E31: 0 | F31: 5390.857143 | G31: 0 | H31: 85015.85714 | I31: 0 | J31: 90406.71429 | K31: 0
A32: 2047 | B32: 20.57142857 | C32: 0 | D32: 8276.714286 | E32: 0 | F32: 5390.857143 | G32: 0 | H32: 85015.85714 | I32: 0 | J32: 90406.71429 | K32: 0
A33: 2048 | B33: 20.57142857 | C33: 0 | D33: 8276.714286 | E33: 0 | F33: 5390.857143 | G33: 0 | H33: 85015.85714 | I33: 0 | J33: 90406.71429 | K33: 0
A34: 2049 | B34: 20.57142857 | C34: 0 | D34: 8276.714286 | E34: 0 | F34: 5390.857143 | G34: 0 | H34: 85015.85714 | I34: 0 | J34: 90406.71429 | K34: 0
A35: 2050 | B35: 20.57142857 | C35: 0 | D35: 8276.714286 | E35: 0 | F35: 5390.857143 | G35: 0 | H35: 85015.85714 | I35: 0 | J35: 90406.71429 | K35: 0
A36: 2051 | B36: 20.57142857 | C36: 0 | D36: 8276.714286 | E36: 0 | F36: 5390.857143 | G36: 0 | H36: 85015.85714 | I36: 0 | J36: 90406.71429 | K36: 0
A37: 2052 | B37: 20.57142857 | C37: 0 | D37: 8276.714286 | E37: 0 | F37: 5390.857143 | G37: 0 | H37: 85015.85714 | I37: 0 | J37: 90406.71429 | K37: 0
A38: 2053 | B38: 20.57142857 | C38: 0 | D38: 8276.714286 | E38: 0 | F38: 5390.857143 | G38: 0 | H38: 85015.85714 | I38: 0 | J38: 90406.71429 | K38: 0
A39: 2054 | B39: 20.57142857 | C39: 0 | D39: 8276.714286 | E39: 0 | F39: 5390.857143 | G39: 0 | H39: 85015.85714 | I39: 0 | J39: 90406.71429 | K39: 0
A40: 2055 | B40: 20.57142857 | C40: 0 | D40: 8276.714286 | E40: 0 | F40: 5390.857143 | G40: 0 | H40: 85015.85714 | I40: 0 | J40: 90406.71429 | K40: 0
A41: 2056 | B41: 20.57142857 | C41: 0 | D41: 8276.714286 | E41: 0 | F41: 5390.857143 | G41: 0 | H41: 85015.85714 | I41: 0 | J41: 90406.71429 | K41: 0
A42: 2057 | B42: 20.57142857 | C42: 0 | D42: 8276.714286 | E42: 0 | F42: 5390.857143 | G42: 0 | H42: 85015.85714 | I42: 0 | J42: 90406.71429 | K42: 0
A43: 2058 | B43: 20.57142857 | C43: 0 | D43: 8276.714286 | E43: 0 | F43: 5390.857143 | G43: 0 | H43: 85015.85714 | I43: 0 | J43: 90406.71429 | K43: 0
A44: 2059 | B44: 20.57142857 | C44: 0 | D44: 8276.714286 | E44: 0 | F44: 5390.857143 | G44: 0 | H44: 85015.85714 | I44: 0 | J44: 90406.71429 | K44: 0
A45: 2060 | B45: 20.57142857 | C45: 0 | D45: 8276.714286 | E45: 0 | F45: 5390.857143 | G45: 0 | H45: 85015.85714 | I45: 0 | J45: 90406.71429 | K45: 0
A46: 2061 | B46: 20.57142857 | C46: 0 | D46: 8276.714286 | E46: 0 | F46: 5390.857143 | G46: 0 | H46: 85015.85714 | I46: 0 | J46: 90406.71429 | K46: 0
A47: 2062 | B47: 20.57142857 | C47: 0 | D47: 8276.714286 | E47: 0 | F47: 5390.857143 | G47: 0 | H47: 85015.85714 | I47: 0 | J47: 90406.71429 | K47: 0
A48: 2063 | B48: 20.57142857 | C48: 0 | D48: 8276.714286 | E48: 0 | F48: 5390.857143 | G48: 0 | H48: 85015.85714 | I48: 0 | J48: 90406.71429 | K48: 0
A49: 2064 | B49: 20.57142857 | C49: 0 | D49: 8276.714286 | E49: 0 | F49: 5390.857143 | G49: 0 | H49: 85015.85714 | I49: 0 | J49: 90406.71429 | K49: 0
A50: 2065 | B50: 20.57142857 | C50: 0 | D50: 8276.714286 | E50: 0 | F50: 5390.857143 | G50: 0 | H50: 85015.85714 | I50: 0 | J50: 90406.71429 | K50: 0
A51: 2066 | B51: 20.57142857 | C51: 0 | D51: 8276.714286 | E51: 0 | F51: 5390.857143 | G51: 0 | H51: 85015.85714 | I51: 0 | J51: 90406.71429 | K51: 0
A52: 2067 | B52: 20.57142857 | C52: 0 | D52: 8276.714286 | E52: 0 | F52: 5390.857143 | G52: 0 | H52: 85015.85714 | I52: 0 | J52: 90406.71429 | K52: 0
A53: 2068 | B53: 20.57142857 | C53: 0 | D53: 8276.714286 | E53: 0 | F53: 5390.857143 | G53: 0 | H53: 85015.85714 | I53: 0 | J53: 90406.71429 | K53: 0
A54: 2069 | B54: 20.57142857 | C54: 0 | D54: 8276.714286 | E54: 0 | F54: 5390.857143 | G54: 0 | H54: 85015.85714 | I54: 0 | J54: 90406.71429 | K54: 0
A55: 2070 | B55: 20.57142857 | C55: 0 | D55: 8276.714286 | E55: 0 | F55: 5390.857143 | G55: 0 | H55: 85015.85714 | I55: 0 | J55: 90406.71429 | K55: 0
A56: 2071 | B56: 20.57142857 | C56: 0 | D56: 8276.714286 | E56: 0 | F56: 5390.857143 | G56: 0 | H56: 85015.85714 | I56: 0 | J56: 90406.71429 | K56: 0
A57: 2072 | B57: 20.57142857 | C57: 0 | D57: 8276.714286 | E57: 0 | F57: 5390.857143 | G57: 0 | H57: 85015.85714 | I57: 0 | J57: 90406.71429 | K57: 0
A58: 2073 | B58: 20.57142857 | C58: 0 | D58: 8276.714286 | E58: 0 | F58: 5390.857143 | G58: 0 | H58: 85015.85714 | I58: 0 | J58: 90406.71429 | K58: 0
A59: H&P/T | B59: 1028.571429 | C59: 0 | D59: 413835.7143 | E59: 0 | F59: 269542.8571 | G59: 0 | H59: 4250792.857 | I59: 0 | J59: 4520335.714 | K59: 0
A60: 7 - Year Hist Avg (A-12) | B60: 20.57142857 | C60: 0 | D60: 8276.714286 | E60: 0 | F60: 5390.857143 | G60: 0 | H60: 85015.85714 | I60: 0 | J60: 90406.71429 | K60: 0
A61: Projected Del. (A-2ba) | B61: 1028.571429 | C61: 0 | D61: 413835.7143 | E61: 0 | F61: 269542.8571 | G61: 0 | H61: 4250792.857 | I61: 0 | J61: 4520335.714 | K61: 0

Sheet PAGE_9
A2: M&I 2024 Sch A-13 FSOD F.Z26.XLSM
A3: 2023-10-02
A4: SCHEDULE OF PROJECTED (2024 - 2073) M&I WATER DELIVERIES
A5: FOR CALCULATION OF INDIVIDUAL CONTRACTOR PRORATED FOLSOM SOD MODIFICATION PROJECT COSTS AND RATE
A7: YEAR | B7: SAN LUIS CANAL - FRESNO: SLCF CITY OF AVENAL AF | C7: SAN LUIS CANAL - FRESNO: SLCF CITY OF AVENAL PW OF AF | D7: SAN LUIS CANAL - FRESNO: SLCF CITY OF COALINGA AF | E7: SAN LUIS CANAL - FRESNO: SLCF CITY OF COALINGA PW OF AF | F7: SAN LUIS CANAL - FRESNO: SLCF CITY OF HURON AF | G7: SAN LUIS CANAL - FRESNO: SLCF CITY OF HURON PW OF AF | H7: SAN LUIS CANAL - FRESNO: SLCF STATE OF CA AF | I7: SAN LUIS CANAL - FRESNO: SLCF STATE OF CA PW OF AF | J7: SAN LUIS CANAL - FRESNO: SLCF WESTLANDS WD AF | K7: SAN LUIS CANAL - FRESNO: SLCF WESTLANDS WD PW OF AF | L7: SAN LUIS CANAL - FRESNO: SLCF TOTAL AF | M7: SAN LUIS CANAL - FRESNO: SLCF TOTAL PW OF AF
A8: 2024 | B8: 2362.571429 | C8: 0 | D8: 5603.571429 | E8: 0 | F8: 1037.142857 | G8: 0 | H8: 1.285714286 | I8: 0 | J8: 2890.428571 | K8: 0 | L8: 11895 | M8: 0
A9: 2025 | B9: 2362.571429 | C9: 0 | D9: 5603.571429 | E9: 0 | F9: 1037.142857 | G9: 0 | H9: 1.285714286 | I9: 0 | J9: 2890.428571 | K9: 0 | L9: 11895 | M9: 0
A10: 2026 | B10: 2362.571429 | C10: 0 | D10: 5603.571429 | E10: 0 | F10: 1037.142857 | G10: 0 | H10: 1.285714286 | I10: 0 | J10: 2890.428571 | K10: 0 | L10: 11895 | M10: 0
A11: 2027 | B11: 2362.571429 | C11: 0 | D11: 5603.571429 | E11: 0 | F11: 1037.142857 | G11: 0 | H11: 1.285714286 | I11: 0 | J11: 2890.428571 | K11: 0 | L11: 11895 | M11: 0
A12: 2028 | B12: 2362.571429 | C12: 0 | D12: 5603.571429 | E12: 0 | F12: 1037.142857 | G12: 0 | H12: 1.285714286 | I12: 0 | J12: 2890.428571 | K12: 0 | L12: 11895 | M12: 0
A13: 2029 | B13: 2362.571429 | C13: 0 | D13: 5603.571429 | E13: 0 | F13: 1037.142857 | G13: 0 | H13: 1.285714286 | I13: 0 | J13: 2890.428571 | K13: 0 | L13: 11895 | M13: 0
A14: 2030 | B14: 2362.571429 | C14: 0 | D14: 5603.571429 | E14: 0 | F14: 1037.142857 | G14: 0 | H14: 1.285714286 | I14: 0 | J14: 2890.428571 | K14: 0 | L14: 11895 | M14: 0
A15: 2031 | B15: 2362.571429 | C15: 0 | D15: 5603.571429 | E15: 0 | F15: 1037.142857 | G15: 0 | H15: 1.285714286 | I15: 0 | J15: 2890.428571 | K15: 0 | L15: 11895 | M15: 0
A16: 2032 | B16: 2362.571429 | C16: 0 | D16: 5603.571429 | E16: 0 | F16: 1037.142857 | G16: 0 | H16: 1.285714286 | I16: 0 | J16: 2890.428571 | K16: 0 | L16: 11895 | M16: 0
A17: 2033 | B17: 2362.571429 | C17: 0 | D17: 5603.571429 | E17: 0 | F17: 1037.142857 | G17: 0 | H17: 1.285714286 | I17: 0 | J17: 2890.428571 | K17: 0 | L17: 11895 | M17: 0
A18: 2034 | B18: 2362.571429 | C18: 0 | D18: 5603.571429 | E18: 0 | F18: 1037.142857 | G18: 0 | H18: 1.285714286 | I18: 0 | J18: 2890.428571 | K18: 0 | L18: 11895 | M18: 0
A19: 2035 | B19: 2362.571429 | C19: 0 | D19: 5603.571429 | E19: 0 | F19: 1037.142857 | G19: 0 | H19: 1.285714286 | I19: 0 | J19: 2890.428571 | K19: 0 | L19: 11895 | M19: 0
A20: 2036 | B20: 2362.571429 | C20: 0 | D20: 5603.571429 | E20: 0 | F20: 1037.142857 | G20: 0 | H20: 1.285714286 | I20: 0 | J20: 2890.428571 | K20: 0 | L20: 11895 | M20: 0
A21: 2037 | B21: 2362.571429 | C21: 0 | D21: 5603.571429 | E21: 0 | F21: 1037.142857 | G21: 0 | H21: 1.285714286 | I21: 0 | J21: 2890.428571 | K21: 0 | L21: 11895 | M21: 0
A22: 2038 | B22: 2362.571429 | C22: 0 | D22: 5603.571429 | E22: 0 | F22: 1037.142857 | G22: 0 | H22: 1.285714286 | I22: 0 | J22: 2890.428571 | K22: 0 | L22: 11895 | M22: 0
A23: 2039 | B23: 2362.571429 | C23: 0 | D23: 5603.571429 | E23: 0 | F23: 1037.142857 | G23: 0 | H23: 1.285714286 | I23: 0 | J23: 2890.428571 | K23: 0 | L23: 11895 | M23: 0
A24: 2040 | B24: 2362.571429 | C24: 0 | D24: 5603.571429 | E24: 0 | F24: 1037.142857 | G24: 0 | H24: 1.285714286 | I24: 0 | J24: 2890.428571 | K24: 0 | L24: 11895 | M24: 0
A25: 2041 | B25: 2362.571429 | C25: 0 | D25: 5603.571429 | E25: 0 | F25: 1037.142857 | G25: 0 | H25: 1.285714286 | I25: 0 | J25: 2890.428571 | K25: 0 | L25: 11895 | M25: 0
A26: 2042 | B26: 2362.571429 | C26: 0 | D26: 5603.571429 | E26: 0 | F26: 1037.142857 | G26: 0 | H26: 1.285714286 | I26: 0 | J26: 2890.428571 | K26: 0 | L26: 11895 | M26: 0
A27: 2043 | B27: 2362.571429 | C27: 0 | D27: 5603.571429 | E27: 0 | F27: 1037.142857 | G27: 0 | H27: 1.285714286 | I27: 0 | J27: 2890.428571 | K27: 0 | L27: 11895 | M27: 0
A28: 2044 | B28: 2362.571429 | C28: 0 | D28: 5603.571429 | E28: 0 | F28: 1037.142857 | G28: 0 | H28: 1.285714286 | I28: 0 | J28: 2890.428571 | K28: 0 | L28: 11895 | M28: 0
A29: 2045 | B29: 2362.571429 | C29: 0 | D29: 5603.571429 | E29: 0 | F29: 1037.142857 | G29: 0 | H29: 1.285714286 | I29: 0 | J29: 2890.428571 | K29: 0 | L29: 11895 | M29: 0
A30: 2046 | B30: 2362.571429 | C30: 0 | D30: 5603.571429 | E30: 0 | F30: 1037.142857 | G30: 0 | H30: 1.285714286 | I30: 0 | J30: 2890.428571 | K30: 0 | L30: 11895 | M30: 0
A31: 2047 | B31: 2362.571429 | C31: 0 | D31: 5603.571429 | E31: 0 | F31: 1037.142857 | G31: 0 | H31: 1.285714286 | I31: 0 | J31: 2890.428571 | K31: 0 | L31: 11895 | M31: 0
A32: 2048 | B32: 2362.571429 | C32: 0 | D32: 5603.571429 | E32: 0 | F32: 1037.142857 | G32: 0 | H32: 1.285714286 | I32: 0 | J32: 2890.428571 | K32: 0 | L32: 11895 | M32: 0
A33: 2049 | B33: 2362.571429 | C33: 0 | D33: 5603.571429 | E33: 0 | F33: 1037.142857 | G33: 0 | H33: 1.285714286 | I33: 0 | J33: 2890.428571 | K33: 0 | L33: 11895 | M33: 0
A34: 2050 | B34: 2362.571429 | C34: 0 | D34: 5603.571429 | E34: 0 | F34: 1037.142857 | G34: 0 | H34: 1.285714286 | I34: 0 | J34: 2890.428571 | K34: 0 | L34: 11895 | M34: 0
A35: 2051 | B35: 2362.571429 | C35: 0 | D35: 5603.571429 | E35: 0 | F35: 1037.142857 | G35: 0 | H35: 1.285714286 | I35: 0 | J35: 2890.428571 | K35: 0 | L35: 11895 | M35: 0
A36: 2052 | B36: 2362.571429 | C36: 0 | D36: 5603.571429 | E36: 0 | F36: 1037.142857 | G36: 0 | H36: 1.285714286 | I36: 0 | J36: 2890.428571 | K36: 0 | L36: 11895 | M36: 0
A37: 2053 | B37: 2362.571429 | C37: 0 | D37: 5603.571429 | E37: 0 | F37: 1037.142857 | G37: 0 | H37: 1.285714286 | I37: 0 | J37: 2890.428571 | K37: 0 | L37: 11895 | M37: 0
A38: 2054 | B38: 2362.571429 | C38: 0 | D38: 5603.571429 | E38: 0 | F38: 1037.142857 | G38: 0 | H38: 1.285714286 | I38: 0 | J38: 2890.428571 | K38: 0 | L38: 11895 | M38: 0
A39: 2055 | B39: 2362.571429 | C39: 0 | D39: 5603.571429 | E39: 0 | F39: 1037.142857 | G39: 0 | H39: 1.285714286 | I39: 0 | J39: 2890.428571 | K39: 0 | L39: 11895 | M39: 0
A40: 2056 | B40: 2362.571429 | C40: 0 | D40: 5603.571429 | E40: 0 | F40: 1037.142857 | G40: 0 | H40: 1.285714286 | I40: 0 | J40: 2890.428571 | K40: 0 | L40: 11895 | M40: 0
A41: 2057 | B41: 2362.571429 | C41: 0 | D41: 5603.571429 | E41: 0 | F41: 1037.142857 | G41: 0 | H41: 1.285714286 | I41: 0 | J41: 2890.428571 | K41: 0 | L41: 11895 | M41: 0
A42: 2058 | B42: 2362.571429 | C42: 0 | D42: 5603.571429 | E42: 0 | F42: 1037.142857 | G42: 0 | H42: 1.285714286 | I42: 0 | J42: 2890.428571 | K42: 0 | L42: 11895 | M42: 0
A43: 2059 | B43: 2362.571429 | C43: 0 | D43: 5603.571429 | E43: 0 | F43: 1037.142857 | G43: 0 | H43: 1.285714286 | I43: 0 | J43: 2890.428571 | K43: 0 | L43: 11895 | M43: 0
A44: 2060 | B44: 2362.571429 | C44: 0 | D44: 5603.571429 | E44: 0 | F44: 1037.142857 | G44: 0 | H44: 1.285714286 | I44: 0 | J44: 2890.428571 | K44: 0 | L44: 11895 | M44: 0
A45: 2061 | B45: 2362.571429 | C45: 0 | D45: 5603.571429 | E45: 0 | F45: 1037.142857 | G45: 0 | H45: 1.285714286 | I45: 0 | J45: 2890.428571 | K45: 0 | L45: 11895 | M45: 0
A46: 2062 | B46: 2362.571429 | C46: 0 | D46: 5603.571429 | E46: 0 | F46: 1037.142857 | G46: 0 | H46: 1.285714286 | I46: 0 | J46: 2890.428571 | K46: 0 | L46: 11895 | M46: 0
A47: 2063 | B47: 2362.571429 | C47: 0 | D47: 5603.571429 | E47: 0 | F47: 1037.142857 | G47: 0 | H47: 1.285714286 | I47: 0 | J47: 2890.428571 | K47: 0 | L47: 11895 | M47: 0
A48: 2064 | B48: 2362.571429 | C48: 0 | D48: 5603.571429 | E48: 0 | F48: 1037.142857 | G48: 0 | H48: 1.285714286 | I48: 0 | J48: 2890.428571 | K48: 0 | L48: 11895 | M48: 0
A49: 2065 | B49: 2362.571429 | C49: 0 | D49: 5603.571429 | E49: 0 | F49: 1037.142857 | G49: 0 | H49: 1.285714286 | I49: 0 | J49: 2890.428571 | K49: 0 | L49: 11895 | M49: 0
A50: 2066 | B50: 2362.571429 | C50: 0 | D50: 5603.571429 | E50: 0 | F50: 1037.142857 | G50: 0 | H50: 1.285714286 | I50: 0 | J50: 2890.428571 | K50: 0 | L50: 11895 | M50: 0
A51: 2067 | B51: 2362.571429 | C51: 0 | D51: 5603.571429 | E51: 0 | F51: 1037.142857 | G51: 0 | H51: 1.285714286 | I51: 0 | J51: 2890.428571 | K51: 0 | L51: 11895 | M51: 0
A52: 2068 | B52: 2362.571429 | C52: 0 | D52: 5603.571429 | E52: 0 | F52: 1037.142857 | G52: 0 | H52: 1.285714286 | I52: 0 | J52: 2890.428571 | K52: 0 | L52: 11895 | M52: 0
A53: 2069 | B53: 2362.571429 | C53: 0 | D53: 5603.571429 | E53: 0 | F53: 1037.142857 | G53: 0 | H53: 1.285714286 | I53: 0 | J53: 2890.428571 | K53: 0 | L53: 11895 | M53: 0
A54: 2070 | B54: 2362.571429 | C54: 0 | D54: 5603.571429 | E54: 0 | F54: 1037.142857 | G54: 0 | H54: 1.285714286 | I54: 0 | J54: 2890.428571 | K54: 0 | L54: 11895 | M54: 0
A55: 2071 | B55: 2362.571429 | C55: 0 | D55: 5603.571429 | E55: 0 | F55: 1037.142857 | G55: 0 | H55: 1.285714286 | I55: 0 | J55: 2890.428571 | K55: 0 | L55: 11895 | M55: 0
A56: 2072 | B56: 2362.571429 | C56: 0 | D56: 5603.571429 | E56: 0 | F56: 1037.142857 | G56: 0 | H56: 1.285714286 | I56: 0 | J56: 2890.428571 | K56: 0 | L56: 11895 | M56: 0
A57: 2073 | B57: 2362.571429 | C57: 0 | D57: 5603.571429 | E57: 0 | F57: 1037.142857 | G57: 0 | H57: 1.285714286 | I57: 0 | J57: 2890.428571 | K57: 0 | L57: 11895 | M57: 0
A58: H&P/T | B58: 118128.5714 | C58: 0 | D58: 280178.5714 | E58: 0 | F58: 51857.14286 | G58: 0 | H58: 64.28571429 | I58: 0 | J58: 144521.4286 | K58: 0 | L58: 594750 | M58: 0
A59: 7 - Year Hist Avg (A-12) | B59: 2362.571429 | C59: 0 | D59: 5603.571429 | E59: 0 | F59: 1037.142857 | G59: 0 | H59: 1.285714286 | I59: 0 | J59: 2890.428571 | K59: 0 | L59: 11895 | M59: 0 | AE59: 0 | AI59: 0
A60: Projected Del. (A-2ba) | B60: 118128.5714 | C60: 0 | D60: 280178.5714 | E60: 0 | F60: 51857.14286 | G60: 0 | H60: 64.28571429 | I60: 0 | J60: 144521.4286 | K60: 0 | L60: 594750 | M60: 0

Sheet PAGE_10
A2: M&I 2024 Sch A-13 FSOD F.Z26.XLSM
A3: 2023-10-02 | B3: CENTRAL VALLEY PROJECT
A4: SCHEDULE OF PROJECTED (2024 - 2073) M&I WATER DELIVERIES
A5: FOR CALCULATION OF INDIVIDUAL CONTRACTOR PRORATED FOLSOM SOD MODIFICATION PROJECT COSTS AND RATE
A7: YEAR | B7: SAN LUIS CANAL - TRACY: SLCT PACHECO WD AF | C7: SAN LUIS CANAL - TRACY: SLCT PACHECO WD PW OF AF | D7: SAN LUIS CANAL - TRACY: SLCT PANOCHE WD AF | E7: SAN LUIS CANAL - TRACY: SLCT PANOCHE WD PW OF AF | F7: SAN LUIS CANAL - TRACY: SLCT SAN LUIS WD AF | G7: SAN LUIS CANAL - TRACY: SLCT SAN LUIS WD PW OF AF | H7: SAN LUIS CANAL - TRACY: SLCT SANTA NELLA COUNTY WD AF | I7: SAN LUIS CANAL - TRACY: SLCT SANTA NELLA COUNTY WD PW OF AF | J7: SAN LUIS CANAL - TRACY: SLCT TOTAL AF | K7: SAN LUIS CANAL - TRACY: SLCT TOTAL PW OF AF | L7: SHASTA D&R: SD&R CENTERVILLE CSD AF | M7: SHASTA D&R: SD&R CENTERVILLE CSD PW OF AF | N7: SHASTA D&R: SD&R MOUNTAIN GATE CSD AF | O7: SHASTA D&R: SD&R MOUNTAIN GATE CSD PW OF AF | P7: SHASTA D&R: SD&R SHASTA CWA AF | Q7: SHASTA D&R: SD&R SHASTA CWA PW OF AF | R7: SHASTA D&R: SD&R TOTAL AF | S7: SHASTA D&R: SD&R TOTAL PW OF AF
A8: 2024 | B8: 11 | C8: 0 | D8: 147.7142857 | E8: 0 | F8: 515.2857143 | G8: 0 | H8: 57.85714286 | I8: 0 | J8: 731.8571429 | K8: 0 | L8: 512 | M8: 0 | N8: 462.8571429 | O8: 0 | P8: 98.71428571 | Q8: 0 | R8: 1073.571429 | S8: 0
A9: 2025 | B9: 11 | C9: 0 | D9: 147.7142857 | E9: 0 | F9: 515.2857143 | G9: 0 | H9: 57.85714286 | I9: 0 | J9: 731.8571429 | K9: 0 | L9: 512 | M9: 0 | N9: 462.8571429 | O9: 0 | P9: 98.71428571 | Q9: 0 | R9: 1073.571429 | S9: 0
A10: 2026 | B10: 11 | C10: 0 | D10: 147.7142857 | E10: 0 | F10: 515.2857143 | G10: 0 | H10: 57.85714286 | I10: 0 | J10: 731.8571429 | K10: 0 | L10: 512 | M10: 0 | N10: 462.8571429 | O10: 0 | P10: 98.71428571 | Q10: 0 | R10: 1073.571429 | S10: 0
A11: 2027 | B11: 11 | C11: 0 | D11: 147.7142857 | E11: 0 | F11: 515.2857143 | G11: 0 | H11: 57.85714286 | I11: 0 | J11: 731.8571429 | K11: 0 | L11: 512 | M11: 0 | N11: 462.8571429 | O11: 0 | P11: 98.71428571 | Q11: 0 | R11: 1073.571429 | S11: 0
A12: 2028 | B12: 11 | C12: 0 | D12: 147.7142857 | E12: 0 | F12: 515.2857143 | G12: 0 | H12: 57.85714286 | I12: 0 | J12: 731.8571429 | K12: 0 | L12: 512 | M12: 0 | N12: 462.8571429 | O12: 0 | P12: 98.71428571 | Q12: 0 | R12: 1073.571429 | S12: 0
A13: 2029 | B13: 11 | C13: 0 | D13: 147.7142857 | E13: 0 | F13: 515.2857143 | G13: 0 | H13: 57.85714286 | I13: 0 | J13: 731.8571429 | K13: 0 | L13: 512 | M13: 0 | N13: 462.8571429 | O13: 0 | P13: 98.71428571 | Q13: 0 | R13: 1073.571429 | S13: 0
A14: 2030 | B14: 11 | C14: 0 | D14: 147.7142857 | E14: 0 | F14: 515.2857143 | G14: 0 | H14: 57.85714286 | I14: 0 | J14: 731.8571429 | K14: 0 | L14: 512 | M14: 0 | N14: 462.8571429 | O14: 0 | P14: 98.71428571 | Q14: 0 | R14: 1073.571429 | S14: 0
A15: 2031 | B15: 11 | C15: 0 | D15: 147.7142857 | E15: 0 | F15: 515.2857143 | G15: 0 | H15: 57.85714286 | I15: 0 | J15: 731.8571429 | K15: 0 | L15: 512 | M15: 0 | N15: 462.8571429 | O15: 0 | P15: 98.71428571 | Q15: 0 | R15: 1073.571429 | S15: 0
A16: 2032 | B16: 11 | C16: 0 | D16: 147.7142857 | E16: 0 | F16: 515.2857143 | G16: 0 | H16: 57.85714286 | I16: 0 | J16: 731.8571429 | K16: 0 | L16: 512 | M16: 0 | N16: 462.8571429 | O16: 0 | P16: 98.71428571 | Q16: 0 | R16: 1073.571429 | S16: 0
A17: 2033 | B17: 11 | C17: 0 | D17: 147.7142857 | E17: 0 | F17: 515.2857143 | G17: 0 | H17: 57.85714286 | I17: 0 | J17: 731.8571429 | K17: 0 | L17: 512 | M17: 0 | N17: 462.8571429 | O17: 0 | P17: 98.71428571 | Q17: 0 | R17: 1073.571429 | S17: 0
A18: 2034 | B18: 11 | C18: 0 | D18: 147.7142857 | E18: 0 | F18: 515.2857143 | G18: 0 | H18: 57.85714286 | I18: 0 | J18: 731.8571429 | K18: 0 | L18: 512 | M18: 0 | N18: 462.8571429 | O18: 0 | P18: 98.71428571 | Q18: 0 | R18: 1073.571429 | S18: 0
A19: 2035 | B19: 11 | C19: 0 | D19: 147.7142857 | E19: 0 | F19: 515.2857143 | G19: 0 | H19: 57.85714286 | I19: 0 | J19: 731.8571429 | K19: 0 | L19: 512 | M19: 0 | N19: 462.8571429 | O19: 0 | P19: 98.71428571 | Q19: 0 | R19: 1073.571429 | S19: 0
A20: 2036 | B20: 11 | C20: 0 | D20: 147.7142857 | E20: 0 | F20: 515.2857143 | G20: 0 | H20: 57.85714286 | I20: 0 | J20: 731.8571429 | K20: 0 | L20: 512 | M20: 0 | N20: 462.8571429 | O20: 0 | P20: 98.71428571 | Q20: 0 | R20: 1073.571429 | S20: 0
A21: 2037 | B21: 11 | C21: 0 | D21: 147.7142857 | E21: 0 | F21: 515.2857143 | G21: 0 | H21: 57.85714286 | I21: 0 | J21: 731.8571429 | K21: 0 | L21: 512 | M21: 0 | N21: 462.8571429 | O21: 0 | P21: 98.71428571 | Q21: 0 | R21: 1073.571429 | S21: 0
A22: 2038 | B22: 11 | C22: 0 | D22: 147.7142857 | E22: 0 | F22: 515.2857143 | G22: 0 | H22: 57.85714286 | I22: 0 | J22: 731.8571429 | K22: 0 | L22: 512 | M22: 0 | N22: 462.8571429 | O22: 0 | P22: 98.71428571 | Q22: 0 | R22: 1073.571429 | S22: 0
A23: 2039 | B23: 11 | C23: 0 | D23: 147.7142857 | E23: 0 | F23: 515.2857143 | G23: 0 | H23: 57.85714286 | I23: 0 | J23: 731.8571429 | K23: 0 | L23: 512 | M23: 0 | N23: 462.8571429 | O23: 0 | P23: 98.71428571 | Q23: 0 | R23: 1073.571429 | S23: 0
A24: 2040 | B24: 11 | C24: 0 | D24: 147.7142857 | E24: 0 | F24: 515.2857143 | G24: 0 | H24: 57.85714286 | I24: 0 | J24: 731.8571429 | K24: 0 | L24: 512 | M24: 0 | N24: 462.8571429 | O24: 0 | P24: 98.71428571 | Q24: 0 | R24: 1073.571429 | S24: 0
A25: 2041 | B25: 11 | C25: 0 | D25: 147.7142857 | E25: 0 | F25: 515.2857143 | G25: 0 | H25: 57.85714286 | I25: 0 | J25: 731.8571429 | K25: 0 | L25: 512 | M25: 0 | N25: 462.8571429 | O25: 0 | P25: 98.71428571 | Q25: 0 | R25: 1073.571429 | S25: 0
A26: 2042 | B26: 11 | C26: 0 | D26: 147.7142857 | E26: 0 | F26: 515.2857143 | G26: 0 | H26: 57.85714286 | I26: 0 | J26: 731.8571429 | K26: 0 | L26: 512 | M26: 0 | N26: 462.8571429 | O26: 0 | P26: 98.71428571 | Q26: 0 | R26: 1073.571429 | S26: 0
A27: 2043 | B27: 11 | C27: 0 | D27: 147.7142857 | E27: 0 | F27: 515.2857143 | G27: 0 | H27: 57.85714286 | I27: 0 | J27: 731.8571429 | K27: 0 | L27: 512 | M27: 0 | N27: 462.8571429 | O27: 0 | P27: 98.71428571 | Q27: 0 | R27: 1073.571429 | S27: 0
A28: 2044 | B28: 11 | C28: 0 | D28: 147.7142857 | E28: 0 | F28: 515.2857143 | G28: 0 | H28: 57.85714286 | I28: 0 | J28: 731.8571429 | K28: 0 | L28: 512 | M28: 0 | N28: 462.8571429 | O28: 0 | P28: 98.71428571 | Q28: 0 | R28: 1073.571429 | S28: 0
A29: 2045 | B29: 11 | C29: 0 | D29: 147.7142857 | E29: 0 | F29: 515.2857143 | G29: 0 | H29: 57.85714286 | I29: 0 | J29: 731.8571429 | K29: 0 | L29: 512 | M29: 0 | N29: 462.8571429 | O29: 0 | P29: 98.71428571 | Q29: 0 | R29: 1073.571429 | S29: 0
A30: 2046 | B30: 11 | C30: 0 | D30: 147.7142857 | E30: 0 | F30: 515.2857143 | G30: 0 | H30: 57.85714286 | I30: 0 | J30: 731.8571429 | K30: 0 | L30: 512 | M30: 0 | N30: 462.8571429 | O30: 0 | P30: 98.71428571 | Q30: 0 | R30: 1073.571429 | S30: 0
A31: 2047 | B31: 11 | C31: 0 | D31: 147.7142857 | E31: 0 | F31: 515.2857143 | G31: 0 | H31: 57.85714286 | I31: 0 | J31: 731.8571429 | K31: 0 | L31: 512 | M31: 0 | N31: 462.8571429 | O31: 0 | P31: 98.71428571 | Q31: 0 | R31: 1073.571429 | S31: 0
A32: 2048 | B32: 11 | C32: 0 | D32: 147.7142857 | E32: 0 | F32: 515.2857143 | G32: 0 | H32: 57.85714286 | I32: 0 | J32: 731.8571429 | K32: 0 | L32: 512 | M32: 0 | N32: 462.8571429 | O32: 0 | P32: 98.71428571 | Q32: 0 | R32: 1073.571429 | S32: 0
A33: 2049 | B33: 11 | C33: 0 | D33: 147.7142857 | E33: 0 | F33: 515.2857143 | G33: 0 | H33: 57.85714286 | I33: 0 | J33: 731.8571429 | K33: 0 | L33: 512 | M33: 0 | N33: 462.8571429 | O33: 0 | P33: 98.71428571 | Q33: 0 | R33: 1073.571429 | S33: 0
A34: 2050 | B34: 11 | C34: 0 | D34: 147.7142857 | E34: 0 | F34: 515.2857143 | G34: 0 | H34: 57.85714286 | I34: 0 | J34: 731.8571429 | K34: 0 | L34: 512 | M34: 0 | N34: 462.8571429 | O34: 0 | P34: 98.71428571 | Q34: 0 | R34: 1073.571429 | S34: 0
A35: 2051 | B35: 11 | C35: 0 | D35: 147.7142857 | E35: 0 | F35: 515.2857143 | G35: 0 | H35: 57.85714286 | I35: 0 | J35: 731.8571429 | K35: 0 | L35: 512 | M35: 0 | N35: 462.8571429 | O35: 0 | P35: 98.71428571 | Q35: 0 | R35: 1073.571429 | S35: 0
A36: 2052 | B36: 11 | C36: 0 | D36: 147.7142857 | E36: 0 | F36: 515.2857143 | G36: 0 | H36: 57.85714286 | I36: 0 | J36: 731.8571429 | K36: 0 | L36: 512 | M36: 0 | N36: 462.8571429 | O36: 0 | P36: 98.71428571 | Q36: 0 | R36: 1073.571429 | S36: 0
A37: 2053 | B37: 11 | C37: 0 | D37: 147.7142857 | E37: 0 | F37: 515.2857143 | G37: 0 | H37: 57.85714286 | I37: 0 | J37: 731.8571429 | K37: 0 | L37: 512 | M37: 0 | N37: 462.8571429 | O37: 0 | P37: 98.71428571 | Q37: 0 | R37: 1073.571429 | S37: 0
A38: 2054 | B38: 11 | C38: 0 | D38: 147.7142857 | E38: 0 | F38: 515.2857143 | G38: 0 | H38: 57.85714286 | I38: 0 | J38: 731.8571429 | K38: 0 | L38: 512 | M38: 0 | N38: 462.8571429 | O38: 0 | P38: 98.71428571 | Q38: 0 | R38: 1073.571429 | S38: 0
A39: 2055 | B39: 11 | C39: 0 | D39: 147.7142857 | E39: 0 | F39: 515.2857143 | G39: 0 | H39: 57.85714286 | I39: 0 | J39: 731.8571429 | K39: 0 | L39: 512 | M39: 0 | N39: 462.8571429 | O39: 0 | P39: 98.71428571 | Q39: 0 | R39: 1073.571429 | S39: 0
A40: 2056 | B40: 11 | C40: 0 | D40: 147.7142857 | E40: 0 | F40: 515.2857143 | G40: 0 | H40: 57.85714286 | I40: 0 | J40: 731.8571429 | K40: 0 | L40: 512 | M40: 0 | N40: 462.8571429 | O40: 0 | P40: 98.71428571 | Q40: 0 | R40: 1073.571429 | S40: 0
A41: 2057 | B41: 11 | C41: 0 | D41: 147.7142857 | E41: 0 | F41: 515.2857143 | G41: 0 | H41: 57.85714286 | I41: 0 | J41: 731.8571429 | K41: 0 | L41: 512 | M41: 0 | N41: 462.8571429 | O41: 0 | P41: 98.71428571 | Q41: 0 | R41: 1073.571429 | S41: 0
A42: 2058 | B42: 11 | C42: 0 | D42: 147.7142857 | E42: 0 | F42: 515.2857143 | G42: 0 | H42: 57.85714286 | I42: 0 | J42: 731.8571429 | K42: 0 | L42: 512 | M42: 0 | N42: 462.8571429 | O42: 0 | P42: 98.71428571 | Q42: 0 | R42: 1073.571429 | S42: 0
A43: 2059 | B43: 11 | C43: 0 | D43: 147.7142857 | E43: 0 | F43: 515.2857143 | G43: 0 | H43: 57.85714286 | I43: 0 | J43: 731.8571429 | K43: 0 | L43: 512 | M43: 0 | N43: 462.8571429 | O43: 0 | P43: 98.71428571 | Q43: 0 | R43: 1073.571429 | S43: 0
A44: 2060 | B44: 11 | C44: 0 | D44: 147.7142857 | E44: 0 | F44: 515.2857143 | G44: 0 | H44: 57.85714286 | I44: 0 | J44: 731.8571429 | K44: 0 | L44: 512 | M44: 0 | N44: 462.8571429 | O44: 0 | P44: 98.71428571 | Q44: 0 | R44: 1073.571429 | S44: 0
A45: 2061 | B45: 11 | C45: 0 | D45: 147.7142857 | E45: 0 | F45: 515.2857143 | G45: 0 | H45: 57.85714286 | I45: 0 | J45: 731.8571429 | K45: 0 | L45: 512 | M45: 0 | N45: 462.8571429 | O45: 0 | P45: 98.71428571 | Q45: 0 | R45: 1073.571429 | S45: 0
A46: 2062 | B46: 11 | C46: 0 | D46: 147.7142857 | E46: 0 | F46: 515.2857143 | G46: 0 | H46: 57.85714286 | I46: 0 | J46: 731.8571429 | K46: 0 | L46: 512 | M46: 0 | N46: 462.8571429 | O46: 0 | P46: 98.71428571 | Q46: 0 | R46: 1073.571429 | S46: 0
A47: 2063 | B47: 11 | C47: 0 | D47: 147.7142857 | E47: 0 | F47: 515.2857143 | G47: 0 | H47: 57.85714286 | I47: 0 | J47: 731.8571429 | K47: 0 | L47: 512 | M47: 0 | N47: 462.8571429 | O47: 0 | P47: 98.71428571 | Q47: 0 | R47: 1073.571429 | S47: 0
A48: 2064 | B48: 11 | C48: 0 | D48: 147.7142857 | E48: 0 | F48: 515.2857143 | G48: 0 | H48: 57.85714286 | I48: 0 | J48: 731.8571429 | K48: 0 | L48: 512 | M48: 0 | N48: 462.8571429 | O48: 0 | P48: 98.71428571 | Q48: 0 | R48: 1073.571429 | S48: 0
A49: 2065 | B49: 11 | C49: 0 | D49: 147.7142857 | E49: 0 | F49: 515.2857143 | G49: 0 | H49: 57.85714286 | I49: 0 | J49: 731.8571429 | K49: 0 | L49: 512 | M49: 0 | N49: 462.8571429 | O49: 0 | P49: 98.71428571 | Q49: 0 | R49: 1073.571429 | S49: 0
A50: 2066 | B50: 11 | C50: 0 | D50: 147.7142857 | E50: 0 | F50: 515.2857143 | G50: 0 | H50: 57.85714286 | I50: 0 | J50: 731.8571429 | K50: 0 | L50: 512 | M50: 0 | N50: 462.8571429 | O50: 0 | P50: 98.71428571 | Q50: 0 | R50: 1073.571429 | S50: 0
A51: 2067 | B51: 11 | C51: 0 | D51: 147.7142857 | E51: 0 | F51: 515.2857143 | G51: 0 | H51: 57.85714286 | I51: 0 | J51: 731.8571429 | K51: 0 | L51: 512 | M51: 0 | N51: 462.8571429 | O51: 0 | P51: 98.71428571 | Q51: 0 | R51: 1073.571429 | S51: 0
A52: 2068 | B52: 11 | C52: 0 | D52: 147.7142857 | E52: 0 | F52: 515.2857143 | G52: 0 | H52: 57.85714286 | I52: 0 | J52: 731.8571429 | K52: 0 | L52: 512 | M52: 0 | N52: 462.8571429 | O52: 0 | P52: 98.71428571 | Q52: 0 | R52: 1073.571429 | S52: 0
A53: 2069 | B53: 11 | C53: 0 | D53: 147.7142857 | E53: 0 | F53: 515.2857143 | G53: 0 | H53: 57.85714286 | I53: 0 | J53: 731.8571429 | K53: 0 | L53: 512 | M53: 0 | N53: 462.8571429 | O53: 0 | P53: 98.71428571 | Q53: 0 | R53: 1073.571429 | S53: 0
A54: 2070 | B54: 11 | C54: 0 | D54: 147.7142857 | E54: 0 | F54: 515.2857143 | G54: 0 | H54: 57.85714286 | I54: 0 | J54: 731.8571429 | K54: 0 | L54: 512 | M54: 0 | N54: 462.8571429 | O54: 0 | P54: 98.71428571 | Q54: 0 | R54: 1073.571429 | S54: 0
A55: 2071 | B55: 11 | C55: 0 | D55: 147.7142857 | E55: 0 | F55: 515.2857143 | G55: 0 | H55: 57.85714286 | I55: 0 | J55: 731.8571429 | K55: 0 | L55: 512 | M55: 0 | N55: 462.8571429 | O55: 0 | P55: 98.71428571 | Q55: 0 | R55: 1073.571429 | S55: 0
A56: 2072 | B56: 11 | C56: 0 | D56: 147.7142857 | E56: 0 | F56: 515.2857143 | G56: 0 | H56: 57.85714286 | I56: 0 | J56: 731.8571429 | K56: 0 | L56: 512 | M56: 0 | N56: 462.8571429 | O56: 0 | P56: 98.71428571 | Q56: 0 | R56: 1073.571429 | S56: 0
A57: 2073 | B57: 11 | C57: 0 | D57: 147.7142857 | E57: 0 | F57: 515.2857143 | G57: 0 | H57: 57.85714286 | I57: 0 | J57: 731.8571429 | K57: 0 | L57: 512 | M57: 0 | N57: 462.8571429 | O57: 0 | P57: 98.71428571 | Q57: 0 | R57: 1073.571429 | S57: 0
A58: H&P/T | B58: 550 | C58: 0 | D58: 7385.714286 | E58: 0 | F58: 25764.28571 | G58: 0 | H58: 2892.857143 | I58: 0 | J58: 36592.85714 | K58: 0 | L58: 25600 | M58: 0 | N58: 23142.85714 | O58: 0 | P58: 4935.714286 | Q58: 0 | R58: 53678.57143 | S58: 0
A59: 7 - Year Hist Avg (A-12) | B59: 11 | C59: 0 | D59: 147.7142857 | E59: 0 | F59: 515.2857143 | G59: 0 | H59: 57.85714286 | I59: 0 | J59: 731.8571429 | K59: 0 | L59: 512 | M59: 0 | N59: 462.8571429 | O59: 0 | P59: 98.71428571 | Q59: 0 | R59: 1073.571429 | S59: 0
A60: 550 | B60: 550 | C60: 0 | D60: 7385.714286 | E60: 0 | F60: 25764.28571 | G60: 0 | H60: 2892.857143 | I60: 0 | J60: 36592.85714 | K60: 0 | L60: 25600 | M60: 0 | N60: 23142.85714 | O60: 0 | P60: 4935.714286 | Q60: 0 | R60: 53678.57143 | S60: 0

Sheet PAGE_11
A2: M&I 2024 Sch A-13 FSOD F.Z26.XLSM
A3: 2023-10-02 | B3: CENTRAL VALLEY PROJECT
A4: SCHEDULE OF PROJECTED (2024 - 2073) M&I WATER DELIVERIES
A5: FOR CALCULATION OF INDIVIDUAL CONTRACTOR PRORATED FOLSOM SOD MODIFICATION PROJECT COSTS AND RATE
A6: YEAR | B6: SPRING CREEK CONDUIT: SCC CITY OF REDDING AF | C6: SPRING CREEK CONDUIT: SCC CITY OF REDDING PW OF AF | D6: SPRING CREEK CONDUIT: SCC SHASTA CWA AF | E6: SPRING CREEK CONDUIT: SCC SHASTA CWA PW OF AF | F6: SPRING CREEK CONDUIT: SCC SHASTA CSD AF | G6: SPRING CREEK CONDUIT: SCC SHASTA CSD PW OF AF | H6: SPRING CREEK CONDUIT: SCC TOTAL AF | I6: SPRING CREEK CONDUIT: SCC TOTAL PW OF AF | J6: TEHAMA-COLUSA CANAL: TCC COLUSA COUNTY AF 1/ | K6: TEHAMA-COLUSA CANAL: TCC COLUSA COUNTY PW OF AF | L6: TEHAMA-COLUSA CANAL: TCC KANAWHA WD AF | M6: TEHAMA-COLUSA CANAL: TCC KANAWHA WD PW OF AF | N6: TEHAMA-COLUSA CANAL: TCC TOTAL AF | O6: TEHAMA-COLUSA CANAL: TCC TOTAL PW OF AF
A7: 2024 | B7: 5171.857143 | C7: 0 | D7: 65 | E7: 0 | F7: 260 | G7: 0 | H7: 5496.857143 | I7: 0 | J7: 126 | K7: 0 | L7: 27.42857143 | M7: 0 | N7: 153.4285714 | O7: 0
A8: 2025 | B8: 5171.857143 | C8: 0 | D8: 65 | E8: 0 | F8: 260 | G8: 0 | H8: 5496.857143 | I8: 0 | J8: 126 | K8: 0 | L8: 27.42857143 | M8: 0 | N8: 153.4285714 | O8: 0
A9: 2026 | B9: 5171.857143 | C9: 0 | D9: 65 | E9: 0 | F9: 260 | G9: 0 | H9: 5496.857143 | I9: 0 | J9: 126 | K9: 0 | L9: 27.42857143 | M9: 0 | N9: 153.4285714 | O9: 0
A10: 2027 | B10: 5171.857143 | C10: 0 | D10: 65 | E10: 0 | F10: 260 | G10: 0 | H10: 5496.857143 | I10: 0 | J10: 126 | K10: 0 | L10: 27.42857143 | M10: 0 | N10: 153.4285714 | O10: 0
A11: 2028 | B11: 5171.857143 | C11: 0 | D11: 65 | E11: 0 | F11: 260 | G11: 0 | H11: 5496.857143 | I11: 0 | J11: 126 | K11: 0 | L11: 27.42857143 | M11: 0 | N11: 153.4285714 | O11: 0
A12: 2029 | B12: 5171.857143 | C12: 0 | D12: 65 | E12: 0 | F12: 260 | G12: 0 | H12: 5496.857143 | I12: 0 | J12: 126 | K12: 0 | L12: 27.42857143 | M12: 0 | N12: 153.4285714 | O12: 0
A13: 2030 | B13: 5171.857143 | C13: 0 | D13: 65 | E13: 0 | F13: 260 | G13: 0 | H13: 5496.857143 | I13: 0 | J13: 126 | K13: 0 | L13: 27.42857143 | M13: 0 | N13: 153.4285714 | O13: 0
A14: 2031 | B14: 5171.857143 | C14: 0 | D14: 65 | E14: 0 | F14: 260 | G14: 0 | H14: 5496.857143 | I14: 0 | J14: 126 | K14: 0 | L14: 27.42857143 | M14: 0 | N14: 153.4285714 | O14: 0
A15: 2032 | B15: 5171.857143 | C15: 0 | D15: 65 | E15: 0 | F15: 260 | G15: 0 | H15: 5496.857143 | I15: 0 | J15: 126 | K15: 0 | L15: 27.42857143 | M15: 0 | N15: 153.4285714 | O15: 0
A16: 2033 | B16: 5171.857143 | C16: 0 | D16: 65 | E16: 0 | F16: 260 | G16: 0 | H16: 5496.857143 | I16: 0 | J16: 126 | K16: 0 | L16: 27.42857143 | M16: 0 | N16: 153.4285714 | O16: 0
A17: 2034 | B17: 5171.857143 | C17: 0 | D17: 65 | E17: 0 | F17: 260 | G17: 0 | H17: 5496.857143 | I17: 0 | J17: 126 | K17: 0 | L17: 27.42857143 | M17: 0 | N17: 153.4285714 | O17: 0
A18: 2035 | B18: 5171.857143 | C18: 0 | D18: 65 | E18: 0 | F18: 260 | G18: 0 | H18: 5496.857143 | I18: 0 | J18: 126 | K18: 0 | L18: 27.42857143 | M18: 0 | N18: 153.4285714 | O18: 0
A19: 2036 | B19: 5171.857143 | C19: 0 | D19: 65 | E19: 0 | F19: 260 | G19: 0 | H19: 5496.857143 | I19: 0 | J19: 126 | K19: 0 | L19: 27.42857143 | M19: 0 | N19: 153.4285714 | O19: 0
A20: 2037 | B20: 5171.857143 | C20: 0 | D20: 65 | E20: 0 | F20: 260 | G20: 0 | H20: 5496.857143 | I20: 0 | J20: 126 | K20: 0 | L20: 27.42857143 | M20: 0 | N20: 153.4285714 | O20: 0
A21: 2038 | B21: 5171.857143 | C21: 0 | D21: 65 | E21: 0 | F21: 260 | G21: 0 | H21: 5496.857143 | I21: 0 | J21: 126 | K21: 0 | L21: 27.42857143 | M21: 0 | N21: 153.4285714 | O21: 0
A22: 2039 | B22: 5171.857143 | C22: 0 | D22: 65 | E22: 0 | F22: 260 | G22: 0 | H22: 5496.857143 | I22: 0 | J22: 126 | K22: 0 | L22: 27.42857143 | M22: 0 | N22: 153.4285714 | O22: 0
A23: 2040 | B23: 5171.857143 | C23: 0 | D23: 65 | E23: 0 | F23: 260 | G23: 0 | H23: 5496.857143 | I23: 0 | J23: 126 | K23: 0 | L23: 27.42857143 | M23: 0 | N23: 153.4285714 | O23: 0
A24: 2041 | B24: 5171.857143 | C24: 0 | D24: 65 | E24: 0 | F24: 260 | G24: 0 | H24: 5496.857143 | I24: 0 | J24: 126 | K24: 0 | L24: 27.42857143 | M24: 0 | N24: 153.4285714 | O24: 0
A25: 2042 | B25: 5171.857143 | C25: 0 | D25: 65 | E25: 0 | F25: 260 | G25: 0 | H25: 5496.857143 | I25: 0 | J25: 126 | K25: 0 | L25: 27.42857143 | M25: 0 | N25: 153.4285714 | O25: 0
A26: 2043 | B26: 5171.857143 | C26: 0 | D26: 65 | E26: 0 | F26: 260 | G26: 0 | H26: 5496.857143 | I26: 0 | J26: 126 | K26: 0 | L26: 27.42857143 | M26: 0 | N26: 153.4285714 | O26: 0
A27: 2044 | B27: 5171.857143 | C27: 0 | D27: 65 | E27: 0 | F27: 260 | G27: 0 | H27: 5496.857143 | I27: 0 | J27: 126 | K27: 0 | L27: 27.42857143 | M27: 0 | N27: 153.4285714 | O27: 0
A28: 2045 | B28: 5171.857143 | C28: 0 | D28: 65 | E28: 0 | F28: 260 | G28: 0 | H28: 5496.857143 | I28: 0 | J28: 126 | K28: 0 | L28: 27.42857143 | M28: 0 | N28: 153.4285714 | O28: 0
A29: 2046 | B29: 5171.857143 | C29: 0 | D29: 65 | E29: 0 | F29: 260 | G29: 0 | H29: 5496.857143 | I29: 0 | J29: 126 | K29: 0 | L29: 27.42857143 | M29: 0 | N29: 153.4285714 | O29: 0
A30: 2047 | B30: 5171.857143 | C30: 0 | D30: 65 | E30: 0 | F30: 260 | G30: 0 | H30: 5496.857143 | I30: 0 | J30: 126 | K30: 0 | L30: 27.42857143 | M30: 0 | N30: 153.4285714 | O30: 0
A31: 2048 | B31: 5171.857143 | C31: 0 | D31: 65 | E31: 0 | F31: 260 | G31: 0 | H31: 5496.857143 | I31: 0 | J31: 126 | K31: 0 | L31: 27.42857143 | M31: 0 | N31: 153.4285714 | O31: 0
A32: 2049 | B32: 5171.857143 | C32: 0 | D32: 65 | E32: 0 | F32: 260 | G32: 0 | H32: 5496.857143 | I32: 0 | J32: 126 | K32: 0 | L32: 27.42857143 | M32: 0 | N32: 153.4285714 | O32: 0
A33: 2050 | B33: 5171.857143 | C33: 0 | D33: 65 | E33: 0 | F33: 260 | G33: 0 | H33: 5496.857143 | I33: 0 | J33: 126 | K33: 0 | L33: 27.42857143 | M33: 0 | N33: 153.4285714 | O33: 0
A34: 2051 | B34: 5171.857143 | C34: 0 | D34: 65 | E34: 0 | F34: 260 | G34: 0 | H34: 5496.857143 | I34: 0 | J34: 126 | K34: 0 | L34: 27.42857143 | M34: 0 | N34: 153.4285714 | O34: 0
A35: 2052 | B35: 5171.857143 | C35: 0 | D35: 65 | E35: 0 | F35: 260 | G35: 0 | H35: 5496.857143 | I35: 0 | J35: 126 | K35: 0 | L35: 27.42857143 | M35: 0 | N35: 153.4285714 | O35: 0
A36: 2053 | B36: 5171.857143 | C36: 0 | D36: 65 | E36: 0 | F36: 260 | G36: 0 | H36: 5496.857143 | I36: 0 | J36: 126 | K36: 0 | L36: 27.42857143 | M36: 0 | N36: 159 | O36: 0
A37: 2054 | B37: 5171.857143 | C37: 0 | D37: 65 | E37: 0 | F37: 260 | G37: 0 | H37: 5496.857143 | I37: 0 | J37: 126 | K37: 0 | L37: 27.42857143 | M37: 0 | N37: 149 | O37: 0
A38: 2055 | B38: 5171.857143 | C38: 0 | D38: 65 | E38: 0 | F38: 260 | G38: 0 | H38: 5496.857143 | I38: 0 | J38: 126 | K38: 0 | L38: 27.42857143 | M38: 0 | N38: 153.4285714 | O38: 0
A39: 2056 | B39: 5171.857143 | C39: 0 | D39: 65 | E39: 0 | F39: 260 | G39: 0 | H39: 5496.857143 | I39: 0 | J39: 126 | K39: 0 | L39: 27.42857143 | M39: 0 | N39: 153.4285714 | O39: 0
A40: 2057 | B40: 5171.857143 | C40: 0 | D40: 65 | E40: 0 | F40: 260 | G40: 0 | H40: 5496.857143 | I40: 0 | J40: 126 | K40: 0 | L40: 27.42857143 | M40: 0 | N40: 153.4285714 | O40: 0
A41: 2058 | B41: 5171.857143 | C41: 0 | D41: 65 | E41: 0 | F41: 260 | G41: 0 | H41: 5496.857143 | I41: 0 | J41: 126 | K41: 0 | L41: 27.42857143 | M41: 0 | N41: 153.4285714 | O41: 0
A42: 2059 | B42: 5171.857143 | C42: 0 | D42: 65 | E42: 0 | F42: 260 | G42: 0 | H42: 5496.857143 | I42: 0 | J42: 126 | K42: 0 | L42: 27.42857143 | M42: 0 | N42: 153.4285714 | O42: 0
A43: 2060 | B43: 5171.857143 | C43: 0 | D43: 65 | E43: 0 | F43: 260 | G43: 0 | H43: 5496.857143 | I43: 0 | J43: 126 | K43: 0 | L43: 27.42857143 | M43: 0 | N43: 153.4285714 | O43: 0
A44: 2061 | B44: 5171.857143 | C44: 0 | D44: 65 | E44: 0 | F44: 260 | G44: 0 | H44: 5496.857143 | I44: 0 | J44: 126 | K44: 0 | L44: 27.42857143 | M44: 0 | N44: 153.4285714 | O44: 0
A45: 2062 | B45: 5171.857143 | C45: 0 | D45: 65 | E45: 0 | F45: 260 | G45: 0 | H45: 5496.857143 | I45: 0 | J45: 126 | K45: 0 | L45: 27.42857143 | M45: 0 | N45: 153.4285714 | O45: 0
A46: 2063 | B46: 5171.857143 | C46: 0 | D46: 65 | E46: 0 | F46: 260 | G46: 0 | H46: 5496.857143 | I46: 0 | J46: 126 | K46: 0 | L46: 27.42857143 | M46: 0 | N46: 153.4285714 | O46: 0
A47: 2064 | B47: 5171.857143 | C47: 0 | D47: 65 | E47: 0 | F47: 260 | G47: 0 | H47: 5496.857143 | I47: 0 | J47: 126 | K47: 0 | L47: 27.42857143 | M47: 0 | N47: 153.4285714 | O47: 0
A48: 2065 | B48: 5171.857143 | C48: 0 | D48: 65 | E48: 0 | F48: 260 | G48: 0 | H48: 5496.857143 | I48: 0 | J48: 126 | K48: 0 | L48: 27.42857143 | M48: 0 | N48: 153.4285714 | O48: 0
A49: 2066 | B49: 5171.857143 | C49: 0 | D49: 65 | E49: 0 | F49: 260 | G49: 0 | H49: 5496.857143 | I49: 0 | J49: 126 | K49: 0 | L49: 27.42857143 | M49: 0 | N49: 153.4285714 | O49: 0
A50: 2067 | B50: 5171.857143 | C50: 0 | D50: 65 | E50: 0 | F50: 260 | G50: 0 | H50: 5496.857143 | I50: 0 | J50: 126 | K50: 0 | L50: 27.42857143 | M50: 0 | N50: 153.4285714 | O50: 0
A51: 2068 | B51: 5171.857143 | C51: 0 | D51: 65 | E51: 0 | F51: 260 | G51: 0 | H51: 5496.857143 | I51: 0 | J51: 126 | K51: 0 | L51: 27.42857143 | M51: 0 | N51: 153.4285714 | O51: 0
A52: 2069 | B52: 5171.857143 | C52: 0 | D52: 65 | E52: 0 | F52: 260 | G52: 0 | H52: 5496.857143 | I52: 0 | J52: 126 | K52: 0 | L52: 27.42857143 | M52: 0 | N52: 153.4285714 | O52: 0
A53: 2070 | B53: 5171.857143 | C53: 0 | D53: 65 | E53: 0 | F53: 260 | G53: 0 | H53: 5496.857143 | I53: 0 | J53: 126 | K53: 0 | L53: 27.42857143 | M53: 0 | N53: 153.4285714 | O53: 0
A54: 2071 | B54: 5171.857143 | C54: 0 | D54: 65 | E54: 0 | F54: 260 | G54: 0 | H54: 5496.857143 | I54: 0 | J54: 126 | K54: 0 | L54: 27.42857143 | M54: 0 | N54: 153.4285714 | O54: 0
A55: 2072 | B55: 5171.857143 | C55: 0 | D55: 65 | E55: 0 | F55: 260 | G55: 0 | H55: 5496.857143 | I55: 0 | J55: 126 | K55: 0 | L55: 27.42857143 | M55: 0 | N55: 153.4285714 | O55: 0
A56: 2073 | B56: 5171.857143 | C56: 0 | D56: 65 | E56: 0 | F56: 260 | G56: 0 | H56: 5496.857143 | I56: 0 | J56: 126 | K56: 0 | L56: 27.42857143 | M56: 0 | N56: 153.4285714 | O56: 0
A57: H&P/T | B57: 258592.8571 | C57: 0 | D57: 3250 | E57: 0 | F57: 13000 | G57: 0 | H57: 274842.8571 | I57: 0 | J57: 6300 | K57: 0 | L57: 1371.428571 | M57: 0 | N57: 7672.571429 | O57: 0
A58: 7 - Year Hist Avg (A-12) | B58: 5171.857143 | C58: 0 | D58: 65 | E58: 0 | F58: 260 | G58: 0 | H58: 5496.857143 | I58: 0 | J58: 126 | K58: 0 | L58: 27.42857143 | M58: 0 | N58: 153.4285714 | O58: 0
A59: Projected Del. (A-2ba) | B59: 258592.8571 | C59: 0 | D59: 3250 | E59: 0 | F59: 13000 | G59: 0 | H59: 274842.8571 | I59: 0 | J59: 6300 | K59: 0 | L59: 1371.428571 | M59: 0 | N59: 7672.571429 | O59: 0

Sheet PAGE_12
A2: M&I 2024 Sch A-13 FSOD F.Z26.XLSM
A3: 2023-10-02
A4: SCHEDULE OF PROJECTED (2024 - 2073) M&I WATER DELIVERIES
A5: FOR CALCULATION OF INDIVIDUAL CONTRACTOR PRORATED FOLSOM SOD MODIFICATION PROJECT COSTS AND RATE
A7: YEAR | B7: TOYON PIPELINE: TP CITY OF REDDING AF | C7: TOYON PIPELINE: TP CITY OF REDDING PW OF AF | D7: TOYON PIPELINE: TP CITY OF SHASTA LAKE AF | E7: TOYON PIPELINE: TP CITY OF SHASTA LAKE PW OF AF | F7: TOYON PIPELINE: TP US FOREST SVC AF | G7: TOYON PIPELINE: TP US FOREST SVC PW OF AF | H7: TOYON PIPELINE: TP TOTAL AF | I7: TOYON PIPELINE: TP TOTAL PW OF AF | J7: DELTA MENDOTA: DM EXCHANGE WATER AF
A8: 2024 | B8: 16.42857143 | C8: 0 | D8: 1115 | E8: 0 | F8: 1 | G8: 0 | H8: 1132.428571 | I8: 0 | J8: 47853.72488
A9: 2025 | B9: 16.42857143 | C9: 0 | D9: 1115 | E9: 0 | F9: 1 | G9: 0 | H9: 1132.428571 | I9: 0 | J9: 47853.72488
A10: 2026 | B10: 16.42857143 | C10: 0 | D10: 1115 | E10: 0 | F10: 1 | G10: 0 | H10: 1132.428571 | I10: 0 | J10: 47853.72488
A11: 2027 | B11: 16.42857143 | C11: 0 | D11: 1115 | E11: 0 | F11: 1 | G11: 0 | H11: 1132.428571 | I11: 0 | J11: 47853.72488
A12: 2028 | B12: 16.42857143 | C12: 0 | D12: 1115 | E12: 0 | F12: 1 | G12: 0 | H12: 1132.428571 | I12: 0 | J12: 47853.72488
A13: 2029 | B13: 16.42857143 | C13: 0 | D13: 1115 | E13: 0 | F13: 1 | G13: 0 | H13: 1132.428571 | I13: 0 | J13: 47853.72488
A14: 2030 | B14: 16.42857143 | C14: 0 | D14: 1115 | E14: 0 | F14: 1 | G14: 0 | H14: 1132.428571 | I14: 0 | J14: 47853.72488
A15: 2031 | B15: 16.42857143 | C15: 0 | D15: 1115 | E15: 0 | F15: 1 | G15: 0 | H15: 1132.428571 | I15: 0 | J15: 47853.72488
A16: 2032 | B16: 16.42857143 | C16: 0 | D16: 1115 | E16: 0 | F16: 1 | G16: 0 | H16: 1132.428571 | I16: 0 | J16: 47853.72488
A17: 2033 | B17: 16.42857143 | C17: 0 | D17: 1115 | E17: 0 | F17: 1 | G17: 0 | H17: 1132.428571 | I17: 0 | J17: 47853.72488
A18: 2034 | B18: 16.42857143 | C18: 0 | D18: 1115 | E18: 0 | F18: 1 | G18: 0 | H18: 1132.428571 | I18: 0 | J18: 47853.72488
A19: 2035 | B19: 16.42857143 | C19: 0 | D19: 1115 | E19: 0 | F19: 1 | G19: 0 | H19: 1132.428571 | I19: 0 | J19: 47853.72488
A20: 2036 | B20: 16.42857143 | C20: 0 | D20: 1115 | E20: 0 | F20: 1 | G20: 0 | H20: 1132.428571 | I20: 0 | J20: 47853.72488
A21: 2037 | B21: 16.42857143 | C21: 0 | D21: 1115 | E21: 0 | F21: 1 | G21: 0 | H21: 1132.428571 | I21: 0 | J21: 47853.72488
A22: 2038 | B22: 16.42857143 | C22: 0 | D22: 1115 | E22: 0 | F22: 1 | G22: 0 | H22: 1132.428571 | I22: 0 | J22: 47853.72488
A23: 2039 | B23: 16.42857143 | C23: 0 | D23: 1115 | E23: 0 | F23: 1 | G23: 0 | H23: 1132.428571 | I23: 0 | J23: 47853.72488
A24: 2040 | B24: 16.42857143 | C24: 0 | D24: 1115 | E24: 0 | F24: 1 | G24: 0 | H24: 1132.428571 | I24: 0 | J24: 47853.72488
A25: 2041 | B25: 16.42857143 | C25: 0 | D25: 1115 | E25: 0 | F25: 1 | G25: 0 | H25: 1132.428571 | I25: 0 | J25: 47853.72488
A26: 2042 | B26: 16.42857143 | C26: 0 | D26: 1115 | E26: 0 | F26: 1 | G26: 0 | H26: 1132.428571 | I26: 0 | J26: 47853.72488
A27: 2043 | B27: 16.42857143 | C27: 0 | D27: 1115 | E27: 0 | F27: 1 | G27: 0 | H27: 1132.428571 | I27: 0 | J27: 47853.72488
A28: 2044 | B28: 16.42857143 | C28: 0 | D28: 1115 | E28: 0 | F28: 1 | G28: 0 | H28: 1132.428571 | I28: 0 | J28: 47853.72488
A29: 2045 | B29: 16.42857143 | C29: 0 | D29: 1115 | E29: 0 | F29: 1 | G29: 0 | H29: 1132.428571 | I29: 0 | J29: 47853.72488
A30: 2046 | B30: 16.42857143 | C30: 0 | D30: 1115 | E30: 0 | F30: 1 | G30: 0 | H30: 1132.428571 | I30: 0 | J30: 47853.72488
A31: 2047 | B31: 16.42857143 | C31: 0 | D31: 1115 | E31: 0 | F31: 1 | G31: 0 | H31: 1132.428571 | I31: 0 | J31: 47853.72488
A32: 2048 | B32: 16.42857143 | C32: 0 | D32: 1115 | E32: 0 | F32: 1 | G32: 0 | H32: 1132.428571 | I32: 0 | J32: 47853.72488
A33: 2049 | B33: 16.42857143 | C33: 0 | D33: 1115 | E33: 0 | F33: 1 | G33: 0 | H33: 1132.428571 | I33: 0 | J33: 47853.72488
A34: 2050 | B34: 16.42857143 | C34: 0 | D34: 1115 | E34: 0 | F34: 1 | G34: 0 | H34: 1132.428571 | I34: 0 | J34: 47853.72488
A35: 2051 | B35: 16.42857143 | C35: 0 | D35: 1115 | E35: 0 | F35: 1 | G35: 0 | H35: 1132.428571 | I35: 0 | J35: 47853.72488
A36: 2052 | B36: 16.42857143 | C36: 0 | D36: 1115 | E36: 0 | F36: 1 | G36: 0 | H36: 1132.428571 | I36: 0 | J36: 47853.72488
A37: 2053 | B37: 16.42857143 | C37: 0 | D37: 1115 | E37: 0 | F37: 1 | G37: 0 | H37: 1132.428571 | I37: 0 | J37: 47853.72488
A38: 2054 | B38: 16.42857143 | C38: 0 | D38: 1115 | E38: 0 | F38: 1 | G38: 0 | H38: 1132.428571 | I38: 0 | J38: 47853.72488
A39: 2055 | B39: 16.42857143 | C39: 0 | D39: 1115 | E39: 0 | F39: 1 | G39: 0 | H39: 1132.428571 | I39: 0 | J39: 47853.72488
A40: 2056 | B40: 16.42857143 | C40: 0 | D40: 1115 | E40: 0 | F40: 1 | G40: 0 | H40: 1132.428571 | I40: 0 | J40: 47853.72488
A41: 2057 | B41: 16.42857143 | C41: 0 | D41: 1115 | E41: 0 | F41: 1 | G41: 0 | H41: 1132.428571 | I41: 0 | J41: 47853.72488
A42: 2058 | B42: 16.42857143 | C42: 0 | D42: 1115 | E42: 0 | F42: 1 | G42: 0 | H42: 1132.428571 | I42: 0 | J42: 47853.72488
A43: 2059 | B43: 16.42857143 | C43: 0 | D43: 1115 | E43: 0 | F43: 1 | G43: 0 | H43: 1132.428571 | I43: 0 | J43: 47853.72488
A44: 2060 | B44: 16.42857143 | C44: 0 | D44: 1115 | E44: 0 | F44: 1 | G44: 0 | H44: 1132.428571 | I44: 0 | J44: 47853.72488
A45: 2061 | B45: 16.42857143 | C45: 0 | D45: 1115 | E45: 0 | F45: 1 | G45: 0 | H45: 1132.428571 | I45: 0 | J45: 47853.72488
A46: 2062 | B46: 16.42857143 | C46: 0 | D46: 1115 | E46: 0 | F46: 1 | G46: 0 | H46: 1132.428571 | I46: 0 | J46: 47853.72488
A47: 2063 | B47: 16.42857143 | C47: 0 | D47: 1115 | E47: 0 | F47: 1 | G47: 0 | H47: 1132.428571 | I47: 0 | J47: 47853.72488
A48: 2064 | B48: 16.42857143 | C48: 0 | D48: 1115 | E48: 0 | F48: 1 | G48: 0 | H48: 1132.428571 | I48: 0 | J48: 47853.72488
A49: 2065 | B49: 16.42857143 | C49: 0 | D49: 1115 | E49: 0 | F49: 1 | G49: 0 | H49: 1132.428571 | I49: 0 | J49: 47853.72488
A50: 2066 | B50: 16.42857143 | C50: 0 | D50: 1115 | E50: 0 | F50: 1 | G50: 0 | H50: 1132.428571 | I50: 0 | J50: 47853.72488
A51: 2067 | B51: 16.42857143 | C51: 0 | D51: 1115 | E51: 0 | F51: 1 | G51: 0 | H51: 1132.428571 | I51: 0 | J51: 47853.72488
A52: 2068 | B52: 16.42857143 | C52: 0 | D52: 1115 | E52: 0 | F52: 1 | G52: 0 | H52: 1132.428571 | I52: 0 | J52: 47853.72488
A53: 2069 | B53: 16.42857143 | C53: 0 | D53: 1115 | E53: 0 | F53: 1 | G53: 0 | H53: 1132.428571 | I53: 0 | J53: 47853.72488
A54: 2070 | B54: 16.42857143 | C54: 0 | D54: 1115 | E54: 0 | F54: 1 | G54: 0 | H54: 1132.428571 | I54: 0 | J54: 47853.72488
A55: 2071 | B55: 16.42857143 | C55: 0 | D55: 1115 | E55: 0 | F55: 1 | G55: 0 | H55: 1132.428571 | I55: 0 | J55: 47853.72488
A56: 2072 | B56: 16.42857143 | C56: 0 | D56: 1115 | E56: 0 | F56: 1 | G56: 0 | H56: 1132.428571 | I56: 0 | J56: 47853.72488
A57: 2073 | B57: 16.42857143 | C57: 0 | D57: 1115 | E57: 0 | F57: 1 | G57: 0 | H57: 1132.428571 | I57: 0 | J57: 47853.72488
A58: H&P/T | B58: 821.4285714 | C58: 0 | D58: 55750 | E58: 0 | F58: 50 | G58: 0 | H58: 56621.42857 | I58: 0 | J58: 2392686.244
A59: 7 - Year Hist Avg (A-12) | B59: 16.42857143 | C59: 0 | D59: 1115 | E59: 0 | F59: 1 | G59: 0 | H59: 1132.428571 | I59: 0 | J59: 47853.72488
A60: Projected Del. (A-2ba) | B60: 821.4285714 | C60: 0 | D60: 55750 | E60: 0 | F60: 50 | G60: 0 | H60: 56621.42857 | I60: 0 | J60: 2392686.244

Sheet PAGE_13
A2: M&I 2024 Sch A-13 FSOD F.Z26.XLSM
A3: 2023-10-02
A4: SCHEDULE OF PROJECTED (2024 - 2073) M&I WATER DELIVERIES
A5: FOR CALCULATION OF INDIVIDUAL CONTRACTOR PRORATED FOLSOM SOD MODIFICATION PROJECT COSTS AND RATE
A7: YEAR | B7: BLACK BUTTE D&R AF TOTAL | C7: BLACK BUTTE D&R PW OF AF TOTAL | D7: CLEAR CREEK UNIT AF TOTAL | E7: CLEAR CREEK UNIT PW OF AF TOTAL | F7: CONTRA COSTA CANAL AF TOTAL | G7: CONTRA COSTA CANAL PW OF AF TOTAL | H7: COW CREEK UNIT AF TOTAL | I7: COW CREEK UNIT PW OF AF TOTAL | J7: CROSS VALLEY CANAL AF TOTAL | K7: CROSS VALLEY CANAL PW OF AF TOTAL | L7: DETAL MENDOTA CANAL AF TOTAL | M7: DETAL MENDOTA CANAL PW OF AF TOTAL | N7: FOLSOM D&R AF TOTAL | O7: FOLSOM D&R PW OF AF TOTAL | P7: FOLSOM SOUTH CANAL AF TOTAL | Q7: FOLSOM SOUTH CANAL PW OF AF TOTAL
A8: 2024 | B8: 33.85714286 | C8: 0 | D8: 1571.571429 | E8: 0 | F8: 81034 | G8: 0 | H8: 3638.571429 | I8: 0 | J8: 278 | K8: 0 | L8: 7947.285714 | M8: 0 | N8: 37890.52381 | O8: 0 | P8: 15026.71429 | Q8: 0
A9: 2025 | B9: 33.85714286 | C9: 0 | D9: 1571.571429 | E9: 0 | F9: 81034 | G9: 0 | H9: 3638.571429 | I9: 0 | J9: 278 | K9: 0 | L9: 7947.285714 | M9: 0 | N9: 37890.52381 | O9: 0 | P9: 15026.71429 | Q9: 0
A10: 2026 | B10: 33.85714286 | C10: 0 | D10: 1571.571429 | E10: 0 | F10: 81034 | G10: 0 | H10: 3638.571429 | I10: 0 | J10: 278 | K10: 0 | L10: 7947.285714 | M10: 0 | N10: 37890.52381 | O10: 0 | P10: 15026.71429 | Q10: 0
A11: 2027 | B11: 33.85714286 | C11: 0 | D11: 1571.571429 | E11: 0 | F11: 81034 | G11: 0 | H11: 3638.571429 | I11: 0 | J11: 278 | K11: 0 | L11: 7947.285714 | M11: 0 | N11: 37890.52381 | O11: 0 | P11: 15026.71429 | Q11: 0
A12: 2028 | B12: 33.85714286 | C12: 0 | D12: 1571.571429 | E12: 0 | F12: 81034 | G12: 0 | H12: 3638.571429 | I12: 0 | J12: 278 | K12: 0 | L12: 7947.285714 | M12: 0 | N12: 37890.52381 | O12: 0 | P12: 15026.71429 | Q12: 0
A13: 2029 | B13: 33.85714286 | C13: 0 | D13: 1571.571429 | E13: 0 | F13: 81034 | G13: 0 | H13: 3638.571429 | I13: 0 | J13: 278 | K13: 0 | L13: 7947.285714 | M13: 0 | N13: 37890.52381 | O13: 0 | P13: 15026.71429 | Q13: 0
A14: 2030 | B14: 33.85714286 | C14: 0 | D14: 1571.571429 | E14: 0 | F14: 81034 | G14: 0 | H14: 3638.571429 | I14: 0 | J14: 278 | K14: 0 | L14: 7947.285714 | M14: 0 | N14: 37890.52381 | O14: 0 | P14: 15026.71429 | Q14: 0
A15: 2031 | B15: 33.85714286 | C15: 0 | D15: 1571.571429 | E15: 0 | F15: 81034 | G15: 0 | H15: 3638.571429 | I15: 0 | J15: 278 | K15: 0 | L15: 7947.285714 | M15: 0 | N15: 37890.52381 | O15: 0 | P15: 15026.71429 | Q15: 0
A16: 2032 | B16: 33.85714286 | C16: 0 | D16: 1571.571429 | E16: 0 | F16: 81034 | G16: 0 | H16: 3638.571429 | I16: 0 | J16: 278 | K16: 0 | L16: 7947.285714 | M16: 0 | N16: 37890.52381 | O16: 0 | P16: 15026.71429 | Q16: 0
A17: 2033 | B17: 33.85714286 | C17: 0 | D17: 1571.571429 | E17: 0 | F17: 81034 | G17: 0 | H17: 3638.571429 | I17: 0 | J17: 278 | K17: 0 | L17: 7947.285714 | M17: 0 | N17: 37890.52381 | O17: 0 | P17: 15026.71429 | Q17: 0
A18: 2034 | B18: 33.85714286 | C18: 0 | D18: 1571.571429 | E18: 0 | F18: 81034 | G18: 0 | H18: 3638.571429 | I18: 0 | J18: 278 | K18: 0 | L18: 7947.285714 | M18: 0 | N18: 37890.52381 | O18: 0 | P18: 15026.71429 | Q18: 0
A19: 2035 | B19: 33.85714286 | C19: 0 | D19: 1571.571429 | E19: 0 | F19: 81034 | G19: 0 | H19: 3638.571429 | I19: 0 | J19: 278 | K19: 0 | L19: 7947.285714 | M19: 0 | N19: 37890.52381 | O19: 0 | P19: 15026.71429 | Q19: 0
A20: 2036 | B20: 33.85714286 | C20: 0 | D20: 1571.571429 | E20: 0 | F20: 81034 | G20: 0 | H20: 3638.571429 | I20: 0 | J20: 278 | K20: 0 | L20: 7947.285714 | M20: 0 | N20: 37890.52381 | O20: 0 | P20: 15026.71429 | Q20: 0
A21: 2037 | B21: 33.85714286 | C21: 0 | D21: 1571.571429 | E21: 0 | F21: 81034 | G21: 0 | H21: 3638.571429 | I21: 0 | J21: 278 | K21: 0 | L21: 7947.285714 | M21: 0 | N21: 37890.52381 | O21: 0 | P21: 15026.71429 | Q21: 0
A22: 2038 | B22: 33.85714286 | C22: 0 | D22: 1571.571429 | E22: 0 | F22: 81034 | G22: 0 | H22: 3638.571429 | I22: 0 | J22: 278 | K22: 0 | L22: 7947.285714 | M22: 0 | N22: 37890.52381 | O22: 0 | P22: 15026.71429 | Q22: 0
A23: 2039 | B23: 33.85714286 | C23: 0 | D23: 1571.571429 | E23: 0 | F23: 81034 | G23: 0 | H23: 3638.571429 | I23: 0 | J23: 278 | K23: 0 | L23: 7947.285714 | M23: 0 | N23: 37890.52381 | O23: 0 | P23: 15026.71429 | Q23: 0
A24: 2040 | B24: 33.85714286 | C24: 0 | D24: 1571.571429 | E24: 0 | F24: 81034 | G24: 0 | H24: 3638.571429 | I24: 0 | J24: 278 | K24: 0 | L24: 7947.285714 | M24: 0 | N24: 37890.52381 | O24: 0 | P24: 15026.71429 | Q24: 0
A25: 2041 | B25: 33.85714286 | C25: 0 | D25: 1571.571429 | E25: 0 | F25: 81034 | G25: 0 | H25: 3638.571429 | I25: 0 | J25: 278 | K25: 0 | L25: 7947.285714 | M25: 0 | N25: 37890.52381 | O25: 0 | P25: 15026.71429 | Q25: 0
A26: 2042 | B26: 33.85714286 | C26: 0 | D26: 1571.571429 | E26: 0 | F26: 81034 | G26: 0 | H26: 3638.571429 | I26: 0 | J26: 278 | K26: 0 | L26: 7947.285714 | M26: 0 | N26: 37890.52381 | O26: 0 | P26: 15026.71429 | Q26: 0
A27: 2043 | B27: 33.85714286 | C27: 0 | D27: 1571.571429 | E27: 0 | F27: 81034 | G27: 0 | H27: 3638.571429 | I27: 0 | J27: 278 | K27: 0 | L27: 7947.285714 | M27: 0 | N27: 37890.52381 | O27: 0 | P27: 15026.71429 | Q27: 0
A28: 2044 | B28: 33.85714286 | C28: 0 | D28: 1571.571429 | E28: 0 | F28: 81034 | G28: 0 | H28: 3638.571429 | I28: 0 | J28: 278 | K28: 0 | L28: 7947.285714 | M28: 0 | N28: 37890.52381 | O28: 0 | P28: 15026.71429 | Q28: 0
A29: 2045 | B29: 33.85714286 | C29: 0 | D29: 1571.571429 | E29: 0 | F29: 81034 | G29: 0 | H29: 3638.571429 | I29: 0 | J29: 278 | K29: 0 | L29: 7947.285714 | M29: 0 | N29: 37890.52381 | O29: 0 | P29: 15026.71429 | Q29: 0
A30: 2046 | B30: 33.85714286 | C30: 0 | D30: 1571.571429 | E30: 0 | F30: 81034 | G30: 0 | H30: 3638.571429 | I30: 0 | J30: 278 | K30: 0 | L30: 7947.285714 | M30: 0 | N30: 37890.52381 | O30: 0 | P30: 15026.71429 | Q30: 0
A31: 2047 | B31: 33.85714286 | C31: 0 | D31: 1571.571429 | E31: 0 | F31: 81034 | G31: 0 | H31: 3638.571429 | I31: 0 | J31: 278 | K31: 0 | L31: 7947.285714 | M31: 0 | N31: 37890.52381 | O31: 0 | P31: 15026.71429 | Q31: 0
A32: 2048 | B32: 33.85714286 | C32: 0 | D32: 1571.571429 | E32: 0 | F32: 81034 | G32: 0 | H32: 3638.571429 | I32: 0 | J32: 278 | K32: 0 | L32: 7947.285714 | M32: 0 | N32: 37890.52381 | O32: 0 | P32: 15026.71429 | Q32: 0
A33: 2049 | B33: 33.85714286 | C33: 0 | D33: 1571.571429 | E33: 0 | F33: 81034 | G33: 0 | H33: 3638.571429 | I33: 0 | J33: 278 | K33: 0 | L33: 7947.285714 | M33: 0 | N33: 37890.52381 | O33: 0 | P33: 15026.71429 | Q33: 0
A34: 2050 | B34: 33.85714286 | C34: 0 | D34: 1571.571429 | E34: 0 | F34: 81034 | G34: 0 | H34: 3638.571429 | I34: 0 | J34: 278 | K34: 0 | L34: 7947.285714 | M34: 0 | N34: 37890.52381 | O34: 0 | P34: 15026.71429 | Q34: 0
A35: 2051 | B35: 33.85714286 | C35: 0 | D35: 1571.571429 | E35: 0 | F35: 81034 | G35: 0 | H35: 3638.571429 | I35: 0 | J35: 278 | K35: 0 | L35: 7947.285714 | M35: 0 | N35: 37890.52381 | O35: 0 | P35: 15026.71429 | Q35: 0
A36: 2052 | B36: 33.85714286 | C36: 0 | D36: 1571.571429 | E36: 0 | F36: 81034 | G36: 0 | H36: 3638.571429 | I36: 0 | J36: 278 | K36: 0 | L36: 7947.285714 | M36: 0 | N36: 37890.52381 | O36: 0 | P36: 15026.71429 | Q36: 0
A37: 2053 | B37: 33.85714286 | C37: 0 | D37: 1571.571429 | E37: 0 | F37: 81034 | G37: 0 | H37: 3638.571429 | I37: 0 | J37: 278 | K37: 0 | L37: 7947.285714 | M37: 0 | N37: 37890.52381 | O37: 0 | P37: 15026.71429 | Q37: 0
A38: 2054 | B38: 33.85714286 | C38: 0 | D38: 1571.571429 | E38: 0 | F38: 81034 | G38: 0 | H38: 3638.571429 | I38: 0 | J38: 278 | K38: 0 | L38: 7947.285714 | M38: 0 | N38: 37890.52381 | O38: 0 | P38: 15026.71429 | Q38: 0
A39: 2055 | B39: 33.85714286 | C39: 0 | D39: 1571.571429 | E39: 0 | F39: 81034 | G39: 0 | H39: 3638.571429 | I39: 0 | J39: 278 | K39: 0 | L39: 7947.285714 | M39: 0 | N39: 37890.52381 | O39: 0 | P39: 15026.71429 | Q39: 0
A40: 2056 | B40: 33.85714286 | C40: 0 | D40: 1571.571429 | E40: 0 | F40: 81034 | G40: 0 | H40: 3638.571429 | I40: 0 | J40: 278 | K40: 0 | L40: 7947.285714 | M40: 0 | N40: 37890.52381 | O40: 0 | P40: 15026.71429 | Q40: 0
A41: 2057 | B41: 33.85714286 | C41: 0 | D41: 1571.571429 | E41: 0 | F41: 81034 | G41: 0 | H41: 3638.571429 | I41: 0 | J41: 278 | K41: 0 | L41: 7947.285714 | M41: 0 | N41: 37890.52381 | O41: 0 | P41: 15026.71429 | Q41: 0
A42: 2058 | B42: 33.85714286 | C42: 0 | D42: 1571.571429 | E42: 0 | F42: 81034 | G42: 0 | H42: 3638.571429 | I42: 0 | J42: 278 | K42: 0 | L42: 7947.285714 | M42: 0 | N42: 37890.52381 | O42: 0 | P42: 15026.71429 | Q42: 0
A43: 2059 | B43: 33.85714286 | C43: 0 | D43: 1571.571429 | E43: 0 | F43: 81034 | G43: 0 | H43: 3638.571429 | I43: 0 | J43: 278 | K43: 0 | L43: 7947.285714 | M43: 0 | N43: 37890.52381 | O43: 0 | P43: 15026.71429 | Q43: 0
A44: 2060 | B44: 33.85714286 | C44: 0 | D44: 1571.571429 | E44: 0 | F44: 81034 | G44: 0 | H44: 3638.571429 | I44: 0 | J44: 278 | K44: 0 | L44: 7947.285714 | M44: 0 | N44: 37890.52381 | O44: 0 | P44: 15026.71429 | Q44: 0
A45: 2061 | B45: 33.85714286 | C45: 0 | D45: 1571.571429 | E45: 0 | F45: 81034 | G45: 0 | H45: 3638.571429 | I45: 0 | J45: 278 | K45: 0 | L45: 7947.285714 | M45: 0 | N45: 37890.52381 | O45: 0 | P45: 15026.71429 | Q45: 0
A46: 2062 | B46: 33.85714286 | C46: 0 | D46: 1571.571429 | E46: 0 | F46: 81034 | G46: 0 | H46: 3638.571429 | I46: 0 | J46: 278 | K46: 0 | L46: 7947.285714 | M46: 0 | N46: 37890.52381 | O46: 0 | P46: 15026.71429 | Q46: 0
A47: 2063 | B47: 33.85714286 | C47: 0 | D47: 1571.571429 | E47: 0 | F47: 81034 | G47: 0 | H47: 3638.571429 | I47: 0 | J47: 278 | K47: 0 | L47: 7947.285714 | M47: 0 | N47: 37890.52381 | O47: 0 | P47: 15026.71429 | Q47: 0
A48: 2064 | B48: 33.85714286 | C48: 0 | D48: 1571.571429 | E48: 0 | F48: 81034 | G48: 0 | H48: 3638.571429 | I48: 0 | J48: 278 | K48: 0 | L48: 7947.285714 | M48: 0 | N48: 37890.52381 | O48: 0 | P48: 15026.71429 | Q48: 0
A49: 2065 | B49: 33.85714286 | C49: 0 | D49: 1571.571429 | E49: 0 | F49: 81034 | G49: 0 | H49: 3638.571429 | I49: 0 | J49: 278 | K49: 0 | L49: 7947.285714 | M49: 0 | N49: 37890.52381 | O49: 0 | P49: 15026.71429 | Q49: 0
A50: 2066 | B50: 33.85714286 | C50: 0 | D50: 1571.571429 | E50: 0 | F50: 81034 | G50: 0 | H50: 3638.571429 | I50: 0 | J50: 278 | K50: 0 | L50: 7947.285714 | M50: 0 | N50: 37890.52381 | O50: 0 | P50: 15026.71429 | Q50: 0
A51: 2067 | B51: 33.85714286 | C51: 0 | D51: 1571.571429 | E51: 0 | F51: 81034 | G51: 0 | H51: 3638.571429 | I51: 0 | J51: 278 | K51: 0 | L51: 7947.285714 | M51: 0 | N51: 37890.52381 | O51: 0 | P51: 15026.71429 | Q51: 0
A52: 2068 | B52: 33.85714286 | C52: 0 | D52: 1571.571429 | E52: 0 | F52: 81034 | G52: 0 | H52: 3638.571429 | I52: 0 | J52: 278 | K52: 0 | L52: 7947.285714 | M52: 0 | N52: 37890.52381 | O52: 0 | P52: 15026.71429 | Q52: 0
A53: 2069 | B53: 33.85714286 | C53: 0 | D53: 1571.571429 | E53: 0 | F53: 81034 | G53: 0 | H53: 3638.571429 | I53: 0 | J53: 278 | K53: 0 | L53: 7947.285714 | M53: 0 | N53: 37890.52381 | O53: 0 | P53: 15026.71429 | Q53: 0
A54: 2070 | B54: 33.85714286 | C54: 0 | D54: 1571.571429 | E54: 0 | F54: 81034 | G54: 0 | H54: 3638.571429 | I54: 0 | J54: 278 | K54: 0 | L54: 7947.285714 | M54: 0 | N54: 37890.52381 | O54: 0 | P54: 15026.71429 | Q54: 0
A55: 2071 | B55: 33.85714286 | C55: 0 | D55: 1571.571429 | E55: 0 | F55: 81034 | G55: 0 | H55: 3638.571429 | I55: 0 | J55: 278 | K55: 0 | L55: 7947.285714 | M55: 0 | N55: 37890.52381 | O55: 0 | P55: 15026.71429 | Q55: 0
A56: 2072 | B56: 33.85714286 | C56: 0 | D56: 1571.571429 | E56: 0 | F56: 81034 | G56: 0 | H56: 3638.571429 | I56: 0 | J56: 278 | K56: 0 | L56: 7947.285714 | M56: 0 | N56: 37890.52381 | O56: 0 | P56: 15026.71429 | Q56: 0
A57: 2073 | B57: 33.85714286 | C57: 0 | D57: 1571.571429 | E57: 0 | F57: 81034 | G57: 0 | H57: 3638.571429 | I57: 0 | J57: 278 | K57: 0 | L57: 7947.285714 | M57: 0 | N57: 37890.52381 | O57: 0 | P57: 15026.71429 | Q57: 0
A58: H&P/T | B58: 1692.857143 | C58: 0 | D58: 78578.57143 | E58: 0 | F58: 4051700 | G58: 0 | H58: 181928.5714 | I58: 0 | J58: 13900 | K58: 0 | L58: 397364.2857 | M58: 0 | N58: 1894526.19 | O58: 0 | P58: 751335.7143 | Q58: 0
A59: 7 - Year Hist Avg (A-12) | B59: 33.85714286 | C59: 0 | D59: 1571.571429 | E59: 0 | F59: 81034 | G59: 0 | H59: 3638.571429 | I59: 0 | J59: 278 | K59: 0 | L59: 7947.285714 | M59: 0 | N59: 37890.52381 | O59: 0 | P59: 15026.71429 | Q59: 0
A60: Projected Del. (A-2ba) | B60: 1692.857143 | C60: 0 | D60: 78578.57143 | E60: 0 | F60: 4051700 | G60: 0 | H60: 181928.5714 | I60: 0 | J60: 13900 | K60: 0 | L60: 397364.2857 | M60: 0 | N60: 1894526.19 | O60: 0 | P60: 751335.7143 | Q60: 0

Sheet PAGE_14
A2: M&I 2024 Sch A-13 FSOD F.Z26.XLSM
A3: 2023-10-02
A4: SCHEDULE OF PROJECTED (2024 - 2073) M&I WATER DELIVERIES
A5: FOR CALCULATION OF INDIVIDUAL CONTRACTOR PRORATED FOLSOM SOD MODIFICATION PROJECT COSTS AND RATE
A7: YEAR | B7: FRIANT DAM AF TOTAL | C7: FRIANT DAM PW OF AF TOTAL | D7: FRIANT KERN CANAL AF TOTAL | E7: FRIANT KERN CANAL PW OF AF TOTAL | F7: NEW MELONES D & R AF TOTAL | G7: NEW MELONES D&R PW OF AF TOTAL | H7: SACRAMENTO RIVER AF TOTAL | I7: SACRAMENTO RIVER PW OF AF TOTAL | J7: SAN FELIPE UNIT (IN BASIN) AF TOTAL | K7: SAN FELIPE UNIT (IN BASIN) PW OF AF TOTAL | L7: SAN LUIS CANAL FRESNO AF TOTAL | M7: SAN LUIS CANAL FRESNO PW OF AF TOTAL | N7: SAN LUIS CANAL TRACY AF TOTAL | O7: SAN LUIS CANAL TRACY PW OF AF TOTAL | P7: SHASTA D&R AF TOTAL | Q7: SHASTA D&R PW OF AF TOTAL
A8: 2024 | B8: 199.8571429 | C8: 0 | D8: 47533.28571 | E8: 0 | F8: 23180.57143 | G8: 0 | H8: 8276.714286 | I8: 0 | J8: 90406.71429 | K8: 0 | L8: 11895 | M8: 0 | N8: 731.8571429 | O8: 0 | P8: 1073.571429 | Q8: 0
A9: 2025 | B9: 199.8571429 | C9: 0 | D9: 47533.28571 | E9: 0 | F9: 23180.57143 | G9: 0 | H9: 8276.714286 | I9: 0 | J9: 90406.71429 | K9: 0 | L9: 11895 | M9: 0 | N9: 731.8571429 | O9: 0 | P9: 1073.571429 | Q9: 0
A10: 2026 | B10: 199.8571429 | C10: 0 | D10: 47533.28571 | E10: 0 | F10: 23180.57143 | G10: 0 | H10: 8276.714286 | I10: 0 | J10: 90406.71429 | K10: 0 | L10: 11895 | M10: 0 | N10: 731.8571429 | O10: 0 | P10: 1073.571429 | Q10: 0
A11: 2027 | B11: 199.8571429 | C11: 0 | D11: 47533.28571 | E11: 0 | F11: 23180.57143 | G11: 0 | H11: 8276.714286 | I11: 0 | J11: 90406.71429 | K11: 0 | L11: 11895 | M11: 0 | N11: 731.8571429 | O11: 0 | P11: 1073.571429 | Q11: 0
A12: 2028 | B12: 199.8571429 | C12: 0 | D12: 47533.28571 | E12: 0 | F12: 23180.57143 | G12: 0 | H12: 8276.714286 | I12: 0 | J12: 90406.71429 | K12: 0 | L12: 11895 | M12: 0 | N12: 731.8571429 | O12: 0 | P12: 1073.571429 | Q12: 0
A13: 2029 | B13: 199.8571429 | C13: 0 | D13: 47533.28571 | E13: 0 | F13: 23180.57143 | G13: 0 | H13: 8276.714286 | I13: 0 | J13: 90406.71429 | K13: 0 | L13: 11895 | M13: 0 | N13: 731.8571429 | O13: 0 | P13: 1073.571429 | Q13: 0
A14: 2030 | B14: 199.8571429 | C14: 0 | D14: 47533.28571 | E14: 0 | F14: 23180.57143 | G14: 0 | H14: 8276.714286 | I14: 0 | J14: 90406.71429 | K14: 0 | L14: 11895 | M14: 0 | N14: 731.8571429 | O14: 0 | P14: 1073.571429 | Q14: 0
A15: 2031 | B15: 199.8571429 | C15: 0 | D15: 47533.28571 | E15: 0 | F15: 23180.57143 | G15: 0 | H15: 8276.714286 | I15: 0 | J15: 90406.71429 | K15: 0 | L15: 11895 | M15: 0 | N15: 731.8571429 | O15: 0 | P15: 1073.571429 | Q15: 0
A16: 2032 | B16: 199.8571429 | C16: 0 | D16: 47533.28571 | E16: 0 | F16: 23180.57143 | G16: 0 | H16: 8276.714286 | I16: 0 | J16: 90406.71429 | K16: 0 | L16: 11895 | M16: 0 | N16: 731.8571429 | O16: 0 | P16: 1073.571429 | Q16: 0
A17: 2033 | B17: 199.8571429 | C17: 0 | D17: 47533.28571 | E17: 0 | F17: 23180.57143 | G17: 0 | H17: 8276.714286 | I17: 0 | J17: 90406.71429 | K17: 0 | L17: 11895 | M17: 0 | N17: 731.8571429 | O17: 0 | P17: 1073.571429 | Q17: 0
A18: 2034 | B18: 199.8571429 | C18: 0 | D18: 47533.28571 | E18: 0 | F18: 23180.57143 | G18: 0 | H18: 8276.714286 | I18: 0 | J18: 90406.71429 | K18: 0 | L18: 11895 | M18: 0 | N18: 731.8571429 | O18: 0 | P18: 1073.571429 | Q18: 0
A19: 2035 | B19: 199.8571429 | C19: 0 | D19: 47533.28571 | E19: 0 | F19: 23180.57143 | G19: 0 | H19: 8276.714286 | I19: 0 | J19: 90406.71429 | K19: 0 | L19: 11895 | M19: 0 | N19: 731.8571429 | O19: 0 | P19: 1073.571429 | Q19: 0
A20: 2036 | B20: 199.8571429 | C20: 0 | D20: 47533.28571 | E20: 0 | F20: 23180.57143 | G20: 0 | H20: 8276.714286 | I20: 0 | J20: 90406.71429 | K20: 0 | L20: 11895 | M20: 0 | N20: 731.8571429 | O20: 0 | P20: 1073.571429 | Q20: 0
A21: 2037 | B21: 199.8571429 | C21: 0 | D21: 47533.28571 | E21: 0 | F21: 23180.57143 | G21: 0 | H21: 8276.714286 | I21: 0 | J21: 90406.71429 | K21: 0 | L21: 11895 | M21: 0 | N21: 731.8571429 | O21: 0 | P21: 1073.571429 | Q21: 0
A22: 2038 | B22: 199.8571429 | C22: 0 | D22: 47533.28571 | E22: 0 | F22: 23180.57143 | G22: 0 | H22: 8276.714286 | I22: 0 | J22: 90406.71429 | K22: 0 | L22: 11895 | M22: 0 | N22: 731.8571429 | O22: 0 | P22: 1073.571429 | Q22: 0
A23: 2039 | B23: 199.8571429 | C23: 0 | D23: 47533.28571 | E23: 0 | F23: 23180.57143 | G23: 0 | H23: 8276.714286 | I23: 0 | J23: 90406.71429 | K23: 0 | L23: 11895 | M23: 0 | N23: 731.8571429 | O23: 0 | P23: 1073.571429 | Q23: 0
A24: 2040 | B24: 199.8571429 | C24: 0 | D24: 47533.28571 | E24: 0 | F24: 23180.57143 | G24: 0 | H24: 8276.714286 | I24: 0 | J24: 90406.71429 | K24: 0 | L24: 11895 | M24: 0 | N24: 731.8571429 | O24: 0 | P24: 1073.571429 | Q24: 0
A25: 2041 | B25: 199.8571429 | C25: 0 | D25: 47533.28571 | E25: 0 | F25: 23180.57143 | G25: 0 | H25: 8276.714286 | I25: 0 | J25: 90406.71429 | K25: 0 | L25: 11895 | M25: 0 | N25: 731.8571429 | O25: 0 | P25: 1073.571429 | Q25: 0
A26: 2042 | B26: 199.8571429 | C26: 0 | D26: 47533.28571 | E26: 0 | F26: 23180.57143 | G26: 0 | H26: 8276.714286 | I26: 0 | J26: 90406.71429 | K26: 0 | L26: 11895 | M26: 0 | N26: 731.8571429 | O26: 0 | P26: 1073.571429 | Q26: 0
A27: 2043 | B27: 199.8571429 | C27: 0 | D27: 47533.28571 | E27: 0 | F27: 23180.57143 | G27: 0 | H27: 8276.714286 | I27: 0 | J27: 90406.71429 | K27: 0 | L27: 11895 | M27: 0 | N27: 731.8571429 | O27: 0 | P27: 1073.571429 | Q27: 0
A28: 2044 | B28: 199.8571429 | C28: 0 | D28: 47533.28571 | E28: 0 | F28: 23180.57143 | G28: 0 | H28: 8276.714286 | I28: 0 | J28: 90406.71429 | K28: 0 | L28: 11895 | M28: 0 | N28: 731.8571429 | O28: 0 | P28: 1073.571429 | Q28: 0
A29: 2045 | B29: 199.8571429 | C29: 0 | D29: 47533.28571 | E29: 0 | F29: 23180.57143 | G29: 0 | H29: 8276.714286 | I29: 0 | J29: 90406.71429 | K29: 0 | L29: 11895 | M29: 0 | N29: 731.8571429 | O29: 0 | P29: 1073.571429 | Q29: 0
A30: 2046 | B30: 199.8571429 | C30: 0 | D30: 47533.28571 | E30: 0 | F30: 23180.57143 | G30: 0 | H30: 8276.714286 | I30: 0 | J30: 90406.71429 | K30: 0 | L30: 11895 | M30: 0 | N30: 731.8571429 | O30: 0 | P30: 1073.571429 | Q30: 0
A31: 2047 | B31: 199.8571429 | C31: 0 | D31: 47533.28571 | E31: 0 | F31: 23180.57143 | G31: 0 | H31: 8276.714286 | I31: 0 | J31: 90406.71429 | K31: 0 | L31: 11895 | M31: 0 | N31: 731.8571429 | O31: 0 | P31: 1073.571429 | Q31: 0
A32: 2048 | B32: 199.8571429 | C32: 0 | D32: 47533.28571 | E32: 0 | F32: 23180.57143 | G32: 0 | H32: 8276.714286 | I32: 0 | J32: 90406.71429 | K32: 0 | L32: 11895 | M32: 0 | N32: 731.8571429 | O32: 0 | P32: 1073.571429 | Q32: 0
A33: 2049 | B33: 199.8571429 | C33: 0 | D33: 47533.28571 | E33: 0 | F33: 23180.57143 | G33: 0 | H33: 8276.714286 | I33: 0 | J33: 90406.71429 | K33: 0 | L33: 11895 | M33: 0 | N33: 731.8571429 | O33: 0 | P33: 1073.571429 | Q33: 0
A34: 2050 | B34: 199.8571429 | C34: 0 | D34: 47533.28571 | E34: 0 | F34: 23180.57143 | G34: 0 | H34: 8276.714286 | I34: 0 | J34: 90406.71429 | K34: 0 | L34: 11895 | M34: 0 | N34: 731.8571429 | O34: 0 | P34: 1073.571429 | Q34: 0
A35: 2051 | B35: 199.8571429 | C35: 0 | D35: 47533.28571 | E35: 0 | F35: 23180.57143 | G35: 0 | H35: 8276.714286 | I35: 0 | J35: 90406.71429 | K35: 0 | L35: 11895 | M35: 0 | N35: 731.8571429 | O35: 0 | P35: 1073.571429 | Q35: 0
A36: 2052 | B36: 199.8571429 | C36: 0 | D36: 47533.28571 | E36: 0 | F36: 23180.57143 | G36: 0 | H36: 8276.714286 | I36: 0 | J36: 90406.71429 | K36: 0 | L36: 11895 | M36: 0 | N36: 731.8571429 | O36: 0 | P36: 1073.571429 | Q36: 0
A37: 2053 | B37: 199.8571429 | C37: 0 | D37: 47533.28571 | E37: 0 | F37: 23180.57143 | G37: 0 | H37: 8276.714286 | I37: 0 | J37: 90406.71429 | K37: 0 | L37: 11895 | M37: 0 | N37: 731.8571429 | O37: 0 | P37: 1073.571429 | Q37: 0
A38: 2054 | B38: 199.8571429 | C38: 0 | D38: 47533.28571 | E38: 0 | F38: 23180.57143 | G38: 0 | H38: 8276.714286 | I38: 0 | J38: 90406.71429 | K38: 0 | L38: 11895 | M38: 0 | N38: 731.8571429 | O38: 0 | P38: 1073.571429 | Q38: 0
A39: 2055 | B39: 199.8571429 | C39: 0 | D39: 47533.28571 | E39: 0 | F39: 23180.57143 | G39: 0 | H39: 8276.714286 | I39: 0 | J39: 90406.71429 | K39: 0 | L39: 11895 | M39: 0 | N39: 731.8571429 | O39: 0 | P39: 1073.571429 | Q39: 0
A40: 2056 | B40: 199.8571429 | C40: 0 | D40: 47533.28571 | E40: 0 | F40: 23180.57143 | G40: 0 | H40: 8276.714286 | I40: 0 | J40: 90406.71429 | K40: 0 | L40: 11895 | M40: 0 | N40: 731.8571429 | O40: 0 | P40: 1073.571429 | Q40: 0
A41: 2057 | B41: 199.8571429 | C41: 0 | D41: 47533.28571 | E41: 0 | F41: 23180.57143 | G41: 0 | H41: 8276.714286 | I41: 0 | J41: 90406.71429 | K41: 0 | L41: 11895 | M41: 0 | N41: 731.8571429 | O41: 0 | P41: 1073.571429 | Q41: 0
A42: 2058 | B42: 199.8571429 | C42: 0 | D42: 47533.28571 | E42: 0 | F42: 23180.57143 | G42: 0 | H42: 8276.714286 | I42: 0 | J42: 90406.71429 | K42: 0 | L42: 11895 | M42: 0 | N42: 731.8571429 | O42: 0 | P42: 1073.571429 | Q42: 0
A43: 2059 | B43: 199.8571429 | C43: 0 | D43: 47533.28571 | E43: 0 | F43: 23180.57143 | G43: 0 | H43: 8276.714286 | I43: 0 | J43: 90406.71429 | K43: 0 | L43: 11895 | M43: 0 | N43: 731.8571429 | O43: 0 | P43: 1073.571429 | Q43: 0
A44: 2060 | B44: 199.8571429 | C44: 0 | D44: 47533.28571 | E44: 0 | F44: 23180.57143 | G44: 0 | H44: 8276.714286 | I44: 0 | J44: 90406.71429 | K44: 0 | L44: 11895 | M44: 0 | N44: 731.8571429 | O44: 0 | P44: 1073.571429 | Q44: 0
A45: 2061 | B45: 199.8571429 | C45: 0 | D45: 47533.28571 | E45: 0 | F45: 23180.57143 | G45: 0 | H45: 8276.714286 | I45: 0 | J45: 90406.71429 | K45: 0 | L45: 11895 | M45: 0 | N45: 731.8571429 | O45: 0 | P45: 1073.571429 | Q45: 0
A46: 2062 | B46: 199.8571429 | C46: 0 | D46: 47533.28571 | E46: 0 | F46: 23180.57143 | G46: 0 | H46: 8276.714286 | I46: 0 | J46: 90406.71429 | K46: 0 | L46: 11895 | M46: 0 | N46: 731.8571429 | O46: 0 | P46: 1073.571429 | Q46: 0
A47: 2063 | B47: 199.8571429 | C47: 0 | D47: 47533.28571 | E47: 0 | F47: 23180.57143 | G47: 0 | H47: 8276.714286 | I47: 0 | J47: 90406.71429 | K47: 0 | L47: 11895 | M47: 0 | N47: 731.8571429 | O47: 0 | P47: 1073.571429 | Q47: 0
A48: 2064 | B48: 199.8571429 | C48: 0 | D48: 47533.28571 | E48: 0 | F48: 23180.57143 | G48: 0 | H48: 8276.714286 | I48: 0 | J48: 90406.71429 | K48: 0 | L48: 11895 | M48: 0 | N48: 731.8571429 | O48: 0 | P48: 1073.571429 | Q48: 0
A49: 2065 | B49: 199.8571429 | C49: 0 | D49: 47533.28571 | E49: 0 | F49: 23180.57143 | G49: 0 | H49: 8276.714286 | I49: 0 | J49: 90406.71429 | K49: 0 | L49: 11895 | M49: 0 | N49: 731.8571429 | O49: 0 | P49: 1073.571429 | Q49: 0
A50: 2066 | B50: 199.8571429 | C50: 0 | D50: 47533.28571 | E50: 0 | F50: 23180.57143 | G50: 0 | H50: 8276.714286 | I50: 0 | J50: 90406.71429 | K50: 0 | L50: 11895 | M50: 0 | N50: 731.8571429 | O50: 0 | P50: 1073.571429 | Q50: 0
A51: 2067 | B51: 199.8571429 | C51: 0 | D51: 47533.28571 | E51: 0 | F51: 23180.57143 | G51: 0 | H51: 8276.714286 | I51: 0 | J51: 90406.71429 | K51: 0 | L51: 11895 | M51: 0 | N51: 731.8571429 | O51: 0 | P51: 1073.571429 | Q51: 0
A52: 2068 | B52: 199.8571429 | C52: 0 | D52: 47533.28571 | E52: 0 | F52: 23180.57143 | G52: 0 | H52: 8276.714286 | I52: 0 | J52: 90406.71429 | K52: 0 | L52: 11895 | M52: 0 | N52: 731.8571429 | O52: 0 | P52: 1073.571429 | Q52: 0
A53: 2069 | B53: 199.8571429 | C53: 0 | D53: 47533.28571 | E53: 0 | F53: 23180.57143 | G53: 0 | H53: 8276.714286 | I53: 0 | J53: 90406.71429 | K53: 0 | L53: 11895 | M53: 0 | N53: 731.8571429 | O53: 0 | P53: 1073.571429 | Q53: 0
A54: 2070 | B54: 199.8571429 | C54: 0 | D54: 47533.28571 | E54: 0 | F54: 23180.57143 | G54: 0 | H54: 8276.714286 | I54: 0 | J54: 90406.71429 | K54: 0 | L54: 11895 | M54: 0 | N54: 731.8571429 | O54: 0 | P54: 1073.571429 | Q54: 0
A55: 2071 | B55: 199.8571429 | C55: 0 | D55: 47533.28571 | E55: 0 | F55: 23180.57143 | G55: 0 | H55: 8276.714286 | I55: 0 | J55: 90406.71429 | K55: 0 | L55: 11895 | M55: 0 | N55: 731.8571429 | O55: 0 | P55: 1073.571429 | Q55: 0
A56: 2072 | B56: 199.8571429 | C56: 0 | D56: 47533.28571 | E56: 0 | F56: 23180.57143 | G56: 0 | H56: 8276.714286 | I56: 0 | J56: 90406.71429 | K56: 0 | L56: 11895 | M56: 0 | N56: 731.8571429 | O56: 0 | P56: 1073.571429 | Q56: 0
A57: 2073 | B57: 199.8571429 | C57: 0 | D57: 47533.28571 | E57: 0 | F57: 23180.57143 | G57: 0 | H57: 8276.714286 | I57: 0 | J57: 90406.71429 | K57: 0 | L57: 11895 | M57: 0 | N57: 731.8571429 | O57: 0 | P57: 1073.571429 | Q57: 0
A58: H&P/T | B58: 9992.857143 | C58: 0 | D58: 2376664.286 | E58: 0 | F58: 1159028.571 | G58: 0 | H58: 413835.7143 | I58: 0 | J58: 4520335.714 | K58: 0 | L58: 594750 | M58: 0 | N58: 36592.85714 | O58: 0 | P58: 53678.57143 | Q58: 0
A59: 7 - Year Hist Avg (A-12) | B59: 199.8571429 | C59: 0 | D59: 47533.28571 | E59: 0 | F59: 23180.57143 | G59: 0 | H59: 8276.714286 | I59: 0 | J59: 90406.71429 | K59: 0 | L59: 11895 | M59: 0 | N59: 731.8571429 | O59: 0 | P59: 1073.571429 | Q59: 0
A60: Projected Del. (A-2ba) | B60: 9992.857143 | C60: 0 | D60: 2376664.286 | E60: 0 | F60: 1159028.571 | G60: 0 | H60: 413835.7143 | I60: 0 | J60: 4520335.714 | K60: 0 | L60: 594750 | M60: 0 | N60: 36592.85714 | O60: 0 | P60: 53678.57143 | Q60: 0

Sheet PAGE_15
A2: M&I 2024 Sch A-13 FSOD F.Z26.XLSM
A3: 2023-10-02
A4: SCHEDULE OF PROJECTED (2024 - 2073) M&I WATER DELIVERIES
A5: FOR CALCULATION OF INDIVIDUAL CONTRACTOR PRORATED FOLSOM SOD MODIFICATION PROJECT COSTS AND RATE
A7: YEAR | B7: SPRING CREEK CONDUIT AF TOTAL | C7: SPRING CREEK CONDUIT PW OF AF TOTAL | D7: TEHAMA-COLUSA CANAL AF TOTAL | E7: TEHAMA-COLUSA CANAL PW OF AF TOTAL | F7: TOYON PIPELINE AF TOTAL | G7: TOYON PIPELINE PW OF AF TOTAL | H7: TOTAL W/O EXCHANGE AF TOTAL | I7: TOTAL W/O EXCHANGE PW OF AF TOTAL | J7: DELTA-MENDOTA EXCHANGE WATER TOTAL | K7: TOTAL WITH EXCHANGE AF TOTAL
A8: 2024 | B8: 5496.857143 | C8: 0 | D8: 153.4285714 | E8: 0 | F8: 1132.428571 | G8: 0 | H8: 337500.8095 | I8: 0 | J8: 47853.72488 | K8: 385354.5344
A9: 2025 | B9: 5496.857143 | C9: 0 | D9: 153.4285714 | E9: 0 | F9: 1132.428571 | G9: 0 | H9: 337500.8095 | I9: 0 | J9: 47853.72488 | K9: 385354.5344
A10: 2026 | B10: 5496.857143 | C10: 0 | D10: 153.4285714 | E10: 0 | F10: 1132.428571 | G10: 0 | H10: 337500.8095 | I10: 0 | J10: 47853.72488 | K10: 385354.5344
A11: 2027 | B11: 5496.857143 | C11: 0 | D11: 153.4285714 | E11: 0 | F11: 1132.428571 | G11: 0 | H11: 337500.8095 | I11: 0 | J11: 47853.72488 | K11: 385354.5344
A12: 2028 | B12: 5496.857143 | C12: 0 | D12: 153.4285714 | E12: 0 | F12: 1132.428571 | G12: 0 | H12: 337500.8095 | I12: 0 | J12: 47853.72488 | K12: 385354.5344
A13: 2029 | B13: 5496.857143 | C13: 0 | D13: 153.4285714 | E13: 0 | F13: 1132.428571 | G13: 0 | H13: 337500.8095 | I13: 0 | J13: 47853.72488 | K13: 385354.5344
A14: 2030 | B14: 5496.857143 | C14: 0 | D14: 153.4285714 | E14: 0 | F14: 1132.428571 | G14: 0 | H14: 337500.8095 | I14: 0 | J14: 47853.72488 | K14: 385354.5344
A15: 2031 | B15: 5496.857143 | C15: 0 | D15: 153.4285714 | E15: 0 | F15: 1132.428571 | G15: 0 | H15: 337500.8095 | I15: 0 | J15: 47853.72488 | K15: 385354.5344
A16: 2032 | B16: 5496.857143 | C16: 0 | D16: 153.4285714 | E16: 0 | F16: 1132.428571 | G16: 0 | H16: 337500.8095 | I16: 0 | J16: 47853.72488 | K16: 385354.5344
A17: 2033 | B17: 5496.857143 | C17: 0 | D17: 153.4285714 | E17: 0 | F17: 1132.428571 | G17: 0 | H17: 337500.8095 | I17: 0 | J17: 47853.72488 | K17: 385354.5344
A18: 2034 | B18: 5496.857143 | C18: 0 | D18: 153.4285714 | E18: 0 | F18: 1132.428571 | G18: 0 | H18: 337500.8095 | I18: 0 | J18: 47853.72488 | K18: 385354.5344
A19: 2035 | B19: 5496.857143 | C19: 0 | D19: 153.4285714 | E19: 0 | F19: 1132.428571 | G19: 0 | H19: 337500.8095 | I19: 0 | J19: 47853.72488 | K19: 385354.5344
A20: 2036 | B20: 5496.857143 | C20: 0 | D20: 153.4285714 | E20: 0 | F20: 1132.428571 | G20: 0 | H20: 337500.8095 | I20: 0 | J20: 47853.72488 | K20: 385354.5344
A21: 2037 | B21: 5496.857143 | C21: 0 | D21: 153.4285714 | E21: 0 | F21: 1132.428571 | G21: 0 | H21: 337500.8095 | I21: 0 | J21: 47853.72488 | K21: 385354.5344
A22: 2038 | B22: 5496.857143 | C22: 0 | D22: 153.4285714 | E22: 0 | F22: 1132.428571 | G22: 0 | H22: 337500.8095 | I22: 0 | J22: 47853.72488 | K22: 385354.5344
A23: 2039 | B23: 5496.857143 | C23: 0 | D23: 153.4285714 | E23: 0 | F23: 1132.428571 | G23: 0 | H23: 337500.8095 | I23: 0 | J23: 47853.72488 | K23: 385354.5344
A24: 2040 | B24: 5496.857143 | C24: 0 | D24: 153.4285714 | E24: 0 | F24: 1132.428571 | G24: 0 | H24: 337500.8095 | I24: 0 | J24: 47853.72488 | K24: 385354.5344
A25: 2041 | B25: 5496.857143 | C25: 0 | D25: 153.4285714 | E25: 0 | F25: 1132.428571 | G25: 0 | H25: 337500.8095 | I25: 0 | J25: 47853.72488 | K25: 385354.5344
A26: 2042 | B26: 5496.857143 | C26: 0 | D26: 153.4285714 | E26: 0 | F26: 1132.428571 | G26: 0 | H26: 337500.8095 | I26: 0 | J26: 47853.72488 | K26: 385354.5344
A27: 2043 | B27: 5496.857143 | C27: 0 | D27: 153.4285714 | E27: 0 | F27: 1132.428571 | G27: 0 | H27: 337500.8095 | I27: 0 | J27: 47853.72488 | K27: 385354.5344
A28: 2044 | B28: 5496.857143 | C28: 0 | D28: 153.4285714 | E28: 0 | F28: 1132.428571 | G28: 0 | H28: 337500.8095 | I28: 0 | J28: 47853.72488 | K28: 385354.5344
A29: 2045 | B29: 5496.857143 | C29: 0 | D29: 153.4285714 | E29: 0 | F29: 1132.428571 | G29: 0 | H29: 337500.8095 | I29: 0 | J29: 47853.72488 | K29: 385354.5344
A30: 2046 | B30: 5496.857143 | C30: 0 | D30: 153.4285714 | E30: 0 | F30: 1132.428571 | G30: 0 | H30: 337500.8095 | I30: 0 | J30: 47853.72488 | K30: 385354.5344
A31: 2047 | B31: 5496.857143 | C31: 0 | D31: 153.4285714 | E31: 0 | F31: 1132.428571 | G31: 0 | H31: 337500.8095 | I31: 0 | J31: 47853.72488 | K31: 385354.5344
A32: 2048 | B32: 5496.857143 | C32: 0 | D32: 153.4285714 | E32: 0 | F32: 1132.428571 | G32: 0 | H32: 337500.8095 | I32: 0 | J32: 47853.72488 | K32: 385354.5344
A33: 2049 | B33: 5496.857143 | C33: 0 | D33: 153.4285714 | E33: 0 | F33: 1132.428571 | G33: 0 | H33: 337500.8095 | I33: 0 | J33: 47853.72488 | K33: 385354.5344
A34: 2050 | B34: 5496.857143 | C34: 0 | D34: 153.4285714 | E34: 0 | F34: 1132.428571 | G34: 0 | H34: 337500.8095 | I34: 0 | J34: 47853.72488 | K34: 385354.5344
A35: 2051 | B35: 5496.857143 | C35: 0 | D35: 153.4285714 | E35: 0 | F35: 1132.428571 | G35: 0 | H35: 337500.8095 | I35: 0 | J35: 47853.72488 | K35: 385354.5344
A36: 2052 | B36: 5496.857143 | C36: 0 | D36: 153.4285714 | E36: 0 | F36: 1132.428571 | G36: 0 | H36: 337500.8095 | I36: 0 | J36: 47853.72488 | K36: 385354.5344
A37: 2053 | B37: 5496.857143 | C37: 0 | D37: 159 | E37: 0 | F37: 1132.428571 | G37: 0 | H37: 337506.381 | I37: 0 | J37: 47853.72488 | K37: 385360.1058
A38: 2054 | B38: 5496.857143 | C38: 0 | D38: 149 | E38: 0 | F38: 1132.428571 | G38: 0 | H38: 337496.381 | I38: 0 | J38: 47853.72488 | K38: 385350.1058
A39: 2055 | B39: 5496.857143 | C39: 0 | D39: 153.4285714 | E39: 0 | F39: 1132.428571 | G39: 0 | H39: 337500.8095 | I39: 0 | J39: 47853.72488 | K39: 385354.5344
A40: 2056 | B40: 5496.857143 | C40: 0 | D40: 153.4285714 | E40: 0 | F40: 1132.428571 | G40: 0 | H40: 337500.8095 | I40: 0 | J40: 47853.72488 | K40: 385354.5344
A41: 2057 | B41: 5496.857143 | C41: 0 | D41: 153.4285714 | E41: 0 | F41: 1132.428571 | G41: 0 | H41: 337500.8095 | I41: 0 | J41: 47853.72488 | K41: 385354.5344
A42: 2058 | B42: 5496.857143 | C42: 0 | D42: 153.4285714 | E42: 0 | F42: 1132.428571 | G42: 0 | H42: 337500.8095 | I42: 0 | J42: 47853.72488 | K42: 385354.5344
A43: 2059 | B43: 5496.857143 | C43: 0 | D43: 153.4285714 | E43: 0 | F43: 1132.428571 | G43: 0 | H43: 337500.8095 | I43: 0 | J43: 47853.72488 | K43: 385354.5344
A44: 2060 | B44: 5496.857143 | C44: 0 | D44: 153.4285714 | E44: 0 | F44: 1132.428571 | G44: 0 | H44: 337500.8095 | I44: 0 | J44: 47853.72488 | K44: 385354.5344
A45: 2061 | B45: 5496.857143 | C45: 0 | D45: 153.4285714 | E45: 0 | F45: 1132.428571 | G45: 0 | H45: 337500.8095 | I45: 0 | J45: 47853.72488 | K45: 385354.5344
A46: 2062 | B46: 5496.857143 | C46: 0 | D46: 153.4285714 | E46: 0 | F46: 1132.428571 | G46: 0 | H46: 337500.8095 | I46: 0 | J46: 47853.72488 | K46: 385354.5344
A47: 2063 | B47: 5496.857143 | C47: 0 | D47: 153.4285714 | E47: 0 | F47: 1132.428571 | G47: 0 | H47: 337500.8095 | I47: 0 | J47: 47853.72488 | K47: 385354.5344
A48: 2064 | B48: 5496.857143 | C48: 0 | D48: 153.4285714 | E48: 0 | F48: 1132.428571 | G48: 0 | H48: 337500.8095 | I48: 0 | J48: 47853.72488 | K48: 385354.5344
A49: 2065 | B49: 5496.857143 | C49: 0 | D49: 153.4285714 | E49: 0 | F49: 1132.428571 | G49: 0 | H49: 337500.8095 | I49: 0 | J49: 47853.72488 | K49: 385354.5344
A50: 2066 | B50: 5496.857143 | C50: 0 | D50: 153.4285714 | E50: 0 | F50: 1132.428571 | G50: 0 | H50: 337500.8095 | I50: 0 | J50: 47853.72488 | K50: 385354.5344
A51: 2067 | B51: 5496.857143 | C51: 0 | D51: 153.4285714 | E51: 0 | F51: 1132.428571 | G51: 0 | H51: 337500.8095 | I51: 0 | J51: 47853.72488 | K51: 385354.5344
A52: 2068 | B52: 5496.857143 | C52: 0 | D52: 153.4285714 | E52: 0 | F52: 1132.428571 | G52: 0 | H52: 337500.8095 | I52: 0 | J52: 47853.72488 | K52: 385354.5344
A53: 2069 | B53: 5496.857143 | C53: 0 | D53: 153.4285714 | E53: 0 | F53: 1132.428571 | G53: 0 | H53: 337500.8095 | I53: 0 | J53: 47853.72488 | K53: 385354.5344
A54: 2070 | B54: 5496.857143 | C54: 0 | D54: 153.4285714 | E54: 0 | F54: 1132.428571 | G54: 0 | H54: 337500.8095 | I54: 0 | J54: 47853.72488 | K54: 385354.5344
A55: 2071 | B55: 5496.857143 | C55: 0 | D55: 153.4285714 | E55: 0 | F55: 1132.428571 | G55: 0 | H55: 337500.8095 | I55: 0 | J55: 47853.72488 | K55: 385354.5344
A56: 2072 | B56: 5496.857143 | C56: 0 | D56: 153.4285714 | E56: 0 | F56: 1132.428571 | G56: 0 | H56: 337500.8095 | I56: 0 | J56: 47853.72488 | K56: 385354.5344
A57: 2073 | B57: 5496.857143 | C57: 0 | D57: 153.4285714 | E57: 0 | F57: 1132.428571 | G57: 0 | H57: 337500.8095 | I57: 0 | J57: 47853.72488 | K57: 385354.5344
A58: H&P/T | B58: 274842.8571 | C58: 0 | D58: 7672.571429 | E58: 0 | F58: 56621.42857 | G58: 0 | H58: 16875041.62 | I58: 0 | J58: 2392686.244 | K58: 19267727.86
A59: 7 - Year Hist Avg (A-12) | B59: 5496.857143 | C59: 0 | D59: 153.4285714 | E59: 0 | F59: 1132.428571 | G59: 0 | H59: 337500.8095 | I59: 0 | J59: 47853.72488 | K59: 385354.5344
A60: Projected Del. (A-2ba) | B60: 274842.8571 | C60: 0 | D60: 7672.571429 | E60: 0 | F60: 56621.42857 | G60: 0 | H60: 16875041.62 | I60: 0 | J60: 2392686.244 | K60: 19267727.86

Sheet PAGE_16
A2: M&I 2024 Sch A-13 FSOD F.Z26.XLSM
A3: 10/02/2023
A4: SCHEDULE OF PROJECTED (2024 - 2073) M&I WATER DELIVERIES
A5: FOR CALCULATION OF INDIVIDUAL CONTRACTOR PRORATED FOLSOM SOD MODIFICATION PROJECT COSTS AND RATE
A8: Footnotes:
A10: 1/
A11: Acre-feet converted from Irrigation are used for Arbuckle Golf Course. (TCC, Colusa County )
A13: Note:
A14: For projected deliveries, see cost recovery section in Foreword.

Sheet ActualDeliveries (hidden)
A1: =#REF! -> 
A2: =#REF! -> 
A4: Macro'd from 2022 Sch B2 - DO NOT ADD Santa Nella County WD to this tab for 2022.
A15: Black Butte D & R | B15: County of Colusa | F15: 11
A16: Black Butte D & R | B16: Elk Creek CSD | F16: 0
A17: Black Butte D & R | B17: US Forest Service - BB | F17: 8
A18: Black Butte D & R | B18: Whitney Const. | F18: 0
A19: Total | B19: Total Black Butte D & R | F19: 19
A20: Clear Creek Unit | B20: Clear Creek CSD | F20: 0
A21: Total | B21: Total Clear Creek Unit | F21: 0
A22: Contra Costa Canal | B22: Contra Costa WD | F22: 58225
A23: Total | B23: Total Contra Costa Canal | F23: 58225
A24: Cow Creek Unit | B24: Bella Vista WD | F24: 1269
A25: Total | B25: Total Cow Creek Unit | F25: 1269
A26: Cross Valley Canal | B26: County of Fresno | F26: 0
A27: Cross Valley Canal | B27: County of Tulare | F27: 0
A28: Total | B28: Total Cross Valley Canal | F28: 0
A29: Delta-Mendota Canal | B29: Byron Bethany ID | F29: 4
A30: Delta-Mendota Canal | B30: City of Tracy | F30: 3824
A31: Delta-Mendota Canal | B31: Del Puerto WD | F31: 0
A32: Delta-Mendota Canal | B32: Department of VA | F32: 319
A33: Delta-Mendota Canal | B33: Panoche WD - DMC | F33: 25
A34: Delta-Mendota Canal | B34: San Luis WD - DMC | F34: 3
A35: Total | B35: Total Delta-Mendota Canal | F35: 4175
A36: Folsom D & R | B36: City of Folsom | F36: 1000
A37: Folsom D & R | B37: City of Roseville | F37: 2187
A38: Folsom D & R | B38: El Dorado ID - FD&R | F38: 0
A39: Folsom D & R | B39: Placer County WA | F39: 0
A40: Folsom D & R | B40: Sacramento County WA | F40: 0
A41: Folsom D & R | B41: San Juan WD | F41: 0
A42: Total | B42: Total Folsom D & R | F42: 3187
A43: Folsom-South Canal | B43: East Bay MUD | F43: 31915
A44: Folsom-South Canal | B44: Sacramento County WA-FSC | F44: 0
A45: Folsom-South Canal | B45: Sacramento MUD | F45: 4509
A46: Total | B46: Total Folsom-South Canal | F46: 36424
A47: Friant Dam | B47: County of Madera | F47: 49
A48: Friant Dam | B48: Fresno County WW #18 | F48: 298
A49: Total | B49: Total Friant Dam | F49: 347
A50: Friant-Kern Canal | B50: Arvin Edison WSD | F50: 338
A51: Friant-Kern Canal | B51: City of Fresno | F51: 22140
A52: Friant-Kern Canal | B52: City of Lindsay | F52: 2529
A53: Friant-Kern Canal | B53: City of Orange Cove | F53: 1100
A54: Friant-Kern Canal | B54: Delano-Earlimart ID | F54: 145
A55: Friant-Kern Canal | B55: Lindsay-Strathmore ID | F55: 390
A56: Friant-Kern Canal | B56: Shafter-Wasco ID | F56: 154
A57: Friant-Kern Canal | B57: Terra Bella ID | F57: 1350
A58: Total | B58: Total Friant-Kern Canal | F58: 28146
A59: New Melones D & R | B59: Stockton East WD | F59: 0
A60: Total | B60: Total New Melones D & R | F60: 0
A61: Sacramento River | B61: City of Redding - SR | F61: 2748
A62: Sacramento River | B62: City of West Sacramento | F62: 0
A63: Sacramento River | B63: Lake California P.O.A. | F63: 0
A64: Sacramento River | B64: Riverview Golf & CC | F64: 0
A65: Total | B65: Total Sacramento River | F65: 2748
A66: San Felipe Unit | B66: SB County WD - IB | F66: 1997
A67: San Felipe Unit | B67: SC Valley WD - IB | F67: 61337
A68: Total | B68: Total San Felipe Unit | F68: 63334
A69: San Luis Canal - Fresno | B69: City of Avenal | F69: 2337
A70: San Luis Canal - Fresno | B70: City of Coalinga | F70: 3764
A71: San Luis Canal - Fresno | B71: City of Huron | F71: 719
A72: San Luis Canal - Fresno | B72: State of CA | F72: 0
A73: San Luis Canal - Fresno | B73: Westlands WD | F73: 3932
A74: Total | B74: Total San Luis Canal - Fresno | F74: 10752
A75: San Luis Canal - Tracy | B75: Pacheco WD - SLC | F75: 0
A76: San Luis Canal - Tracy | B76: Panoche WD - SLC | F76: 158
A77: San Luis Canal - Tracy | B77: San Luis WD - SLC | F77: 705
A78: Total | B78: Total San Luis Canal - Tracy | F78: 863
A79: Shasta Dam | B79: Centerville CSD | F79: 48
A80: Shasta Dam | B80: Mountain Gate CSD | F80: 258
A81: Shasta Dam | B81: Shasta CWA | F81: 48
A82: Total | B82: Total Shasta Dam | F82: 354
A83: Spring Creek Conduit | B83: City of Redding - SCC | F83: 255
A84: Spring Creek Conduit | B84: Shasta CWA - SCC | F84: 13
A85: Spring Creek Conduit | B85: Shasta CSD | F85: 170
A86: Total | B86: Total Spring Creek Conduit | F86: 438
A87: Tehama-Colusa Canal | B87: Colusa County WD | F87: 16
A88: Tehama-Colusa Canal | B88: Kanawha WD | F88: 7
A89: Total | B89: Total Tehama-Colusa Canal | F89: 23
A90: Toyon Pipeline | B90: City of Redding - TP | F90: 9
A91: Toyon Pipeline | B91: City of Shasta Lake | F91: 461
A92: Toyon Pipeline | B92: US Forest Service - TP | F92: 0
A93: Total | B93: Total Toyon Pipeline | F93: 470
A94: Subtotal | B94: Total Permanent Contractors | F94: 210774

Sheet PW Interest Cal (hidden)
A1: =#REF! -> 
A2: =#REF! -> 
D3: CENTRAL VALLEY PROJECT
D4: DETERMINATION OF COMBINED M&I COMPOSITE INTEREST RATE FOR CAPITAL
D5: FOR USE IN THE 2012 M&I WATER RATES
G10: The 2024 Composite Interest Rate has been updated using the CMPINT24 (7-25-23) file, M&I Interest tab, cells J52 and N47 provided by Steve Pavich.
L13: M&I | N13: Interest | R13: Composite
L14: Plant | N14: Rate | P14: Interest | R14: Rate
L15: Investment
G19: Computation of Composite Interest Rate
H21: (FILE: CMPINT23.XLSX) | J21: *
I22: Computed Interest | L22: 137376021.6 | P22: 3648393
G24: Deferred Interest to be Capitalized: | L24: 21277763
G27: Programatic Enviornmental Impact Statement (PEIS) 1/ | L27: =L57 -> 2128326.1 | P27: =P57 -> 145388.4574
L28: =SUM(L22:L27) -> 160782110.7 | P28: =SUM(P22:P27) -> 3793781.457
R30: =P28/L28 -> 0.02359579334
G31: * | H31: Provided by Steve Pavich: | J31: COMPUTATION OF M&I COMPOSITE RATE AND REMAINING M&I INVESTMENT
J32: FOR USE IN THE 2024 M&I WATER RATES (CMPINT24 (7-5-23))
J33: I:\WTRates\Rates\2024\CMPINT24 (7-25-23).xlsx
G36: 1/ | H36: PEIS:
K37: Year | N37: Treasury Rate | P37: Interest
K39: 1993 | L39: =194996.58-12275.52 -> 182721.06 | N39: 0.07375 | P39: =L39*N39 -> 13475.67817
K40: =K39+1 -> 1994 | L40: 417228.01 | N40: 0.06 | P40: 25033.6806
K41: 1995 | L41: 430430.91 | N41: 0.07625 | P41: 32820.35689
K42: 1996 | L42: 683745.3 | N42: 0.06625 | P42: 45298.12613
K43: 1997 | L43: 351949.67 | N43: 0.07 | P43: 24636.4769
K44: 1998 | L44: 62251.15 | N44: 0.06625 | P44: 4124.138688
K45: 1999 | L45: 0 | N45: 0.0525 | P45: 0
K46: 2000 | L46: 0 | N46: 0.06 | P46: 0
K47: 2001 | L47: 0 | N47: 0.0575 | P47: 0
K48: 2002 | L48: 0 | N48: 0.055 | P48: 0
K49: 2003 | L49: 0 | N49: 0.05 | P49: 0
K50: 2004 | L50: 0 | N50: 0.05375 | P50: 0
K51: 2005 | L51: 0 | N51: 0.05 | P51: 0
K52: 2006 | L52: 0 | N52: 0.04375 | P52: 0
K53: 2007 | L53: 0 | N53: 0.04875 | P53: 0
K54: 2008 | L54: 0 | N54: 0.0475 | P54: 0
K55: 2009 | L55: 0 | N55: 0.0425 | P55: 0
K56: 2010 | L56: 0 | N56: 0.0425 | P56: 0
K57: Total | L57: =SUM(L39:L56) -> 2128326.1 | P57: =SUM(P39:P55) -> 145388.4574
J61: 1/ | K61: Refer to CVP Financial Statements, Sch 25 - Central Valley Improvement Act (1787)
K62: Administrative & General - CVPIA (17878921)

Sheet Rescheduled water 99 thru 10 (hidden)
A1: =+#REF! -> 
A2: =+#REF! -> 
B4: M&I Rescheduled Water Deliveries
B5: 1999 - 2010
C10: 1999 | D10: 2000 | E10: 2001 | F10: 2002 | G10: 2003 | H10: 2004 | I10: 2005 | J10: 2006 | K10: 2007 | L10: 2008 | M10: 2009 | N10: 2010 | O10: Total
C11: 1/ | D11: 2/ | E11: 3/ | F11: 4/ | G11: 5/ | H11: 6/ | I11: 7/ | J11: 8/ | K11: 9/ | L11: 10/ | M11: 11/ | N11: 12/
B14: Del Puerto WD | D14: 2 | E14: 2 | F14: 2 | G14: 1 | H14: =2-2 -> 0 | I14: 4 | J14: 4 | K14: 4 | O14: =SUM(C14:N14) -> 19
B15: Panoche WD - DMC | M15: 2 | N15: 14 | O15: =SUM(C15:N15) -> 16
B16: San Luis WD - DMC | D16: 20 | E16: =7+32 -> 39 | F16: =2-32+30+34 -> 34 | K16: 14 | M16: 56 | N16: 50 | O16: 213
B17: Byron-Bethany ID (Plain View WD) | G17: 130 | M17: 182 | N17: 379 | O17: 691
B18: Arvin-Edison WSD | D18: 91 | M18: 70 | O18: 161
B19: City of Lindsay | L19: 50 | M19: 458 | N19: 650 | O19: 1158
B20: City of Orange Cove | C20: 247 | E20: 210 | F20: 174 | K20: 522 | M20: 25 | O20: 1178
B21: Lindsay-Strathmore ID | M21: 118 | O21: 118
B22: Shafter Wasco ID | D22: 19 | E22: 43 | G22: 22 | M22: 46 | O22: 130
B23: San Benito County WD | D23: 383 | M23: 167 | N23: 778 | O23: 1328
B24: Santa Clara Valley WD | C24: 10058 | H24: =14677+68 -> 14745 | I24: 4590 | J24: 7195 | K24: 19000 | N24: 7995 | O24: 63583
B25: City of Avenal | M25: 26 | N25: 17 | O25: 43
B26: City of Coalinga | M26: 463 | N26: 681 | O26: 1144
B27: City of Huron | M27: 723 | N27: 233 | O27: 956
B28: Westlands WD | M28: 534 | O28: 534
B29: Pacheco WD - SLC | M29: 6 | N29: 5 | O29: 11
B30: Panoche WD - SLC | M30: 4 | N30: 29 | O30: 33
B31: San Luis WD - SLC | D31: =89-32 -> 57 | K31: 97 | M31: 191 | N31: 361 | O31: 706
C33: =SUM(C14:C32) -> 10305 | D33: 572 | E33: 294 | F33: 210 | G33: 153 | H33: 14745 | I33: 4594 | J33: 7199 | K33: 19637 | L33: 50 | M33: =SUM(M14:M32) -> 3071 | N33: =SUM(N14:N32) -> 11192 | O33: =SUM(O14:O32) -> 72022
A36: Sources:
A38: 1/ | B38: Water Deliveries and Revenues, Oct 1, 1998 through Sep 30, 1999 | F38: 99MFB2AR.Z03 (2001 Water Rates)
A39: 2/ | B39: Water Deliveries and Revenues, Oct 1, 1999 through Sep 30, 2000 | F39: M&I 2000 Sch B-2.Z04 (2002 Water Rates)
A40: 3/ | B40: Water Deliveries and Revenues, Oct 1, 2000 through Sep 30, 2001 | F40: M&I 2001 Sch B-2.Z05 (2003 Water Rates)
A41: 4/ | B41: Water Deliveries and Revenues, Oct 1, 2001 through Sep 30, 2002 | F41: M&I 2002 Sch B-2.Z06 (2004 Water Rates)
A42: 5/ | B42: Water Deliveries and Revenues, Oct 1, 2002 through Sep 30, 2003 | F42: M&I 2003 Sch B-2.Z07 (2005 Water Rates)
A43: 6/ | B43: Water Deliveries and Revenues, Oct 1, 2003 through Sep 30, 2004 | F43: M&I 2004 Sch B-2.Z08 (2006 Water Rates)
A44: 7/ | B44: Water Deliveries and Revenues, Oct 1, 2004 through Sep 30, 2005 | F44: M&I 2005 Sch B-2.Z09 (2007 Water Rates)
A45: 8/ | B45: Water Deliveries and Revenues, Oct 1, 2005 through Sep 30, 2006 | F45: M&I 2006 Sch B-2.Z10 (2008 Water Rates)
A46: 9/ | B46: Water Deliveries and Revenues, Oct 1, 2006 through Sep 30, 2007 | F46: M&I 2007 Sch B-2.Z11 (2009 Water Rates)
A47: 10/ | B47: Water Deliveries and Revenues, Oct 1, 2007 through Sep 30, 2008 | F47: M&I 2008 Sch B-2.Z12 (2010) Water Rates)
A48: 11/ | B48: Water Deliveries and Revenues, Oct 1, 2008 through Sep 30, 2009 | F48: M&I 2009 Sch B-2.Z13 (2010) Water Rates)
A49: 12/ | B49: Water Deliveries and Revenues, Oct 1, 2009 through Sep 30, 2010 | F49: M&I 2010 Sch B-2.Z14 (2010) Water Rates)

Sheet Shasta CWA & Centerville Del (hidden)
C3: Shasta CWA assigned 2,900 a/f to Centerville CSD per the contract signed on 4/11/01.
C4: Historical Deliveries for the period 1986 through 2000 have been updated by splitting Shasta CWA's
C5: historical deliveries between two contractors. Refer to support file (SWA&CNT2.Z03) for the ratio for allocation.
C9: Shasta CWA
C10: Delivered | E10: Shasta CWA | I10: Centerville CSD | M10: Total
A11: YEAR | C11: Water | E11: Ratio | G11: A/F | I11: Ratio | K11: A/F | M11: Ratio | O11: A/F
A13: 1981 | C13: 93 | E13: 1 | G13: =+C13*E13 -> 93 | K13: =+C13*I13 -> 0 | M13: =+E13+I13 -> 1 | O13: =+G13+K13 -> 93
A14: 1982 | C14: 129 | E14: 1 | G14: 129 | K14: 0 | M14: 1 | O14: 129
A15: 1983 | C15: 297 | E15: 1 | G15: 297 | K15: 0 | M15: 1 | O15: 297
A16: 1984 | C16: 169 | E16: 1 | G16: 169 | K16: 0 | M16: 1 | O16: 169
A17: 1985 | C17: 223 | E17: 1 | G17: 223 | K17: 0 | M17: 1 | O17: 223
A18: 1986 | C18: 300 | E18: 0.9048 | G18: 271.44 | I18: 0.0952 | K18: 28.56 | M18: 1 | O18: 300
A19: 1987 | C19: 580 | E19: 0.7419 | G19: 430.302 | I19: 0.2581 | K19: 149.698 | M19: 1 | O19: 580
A20: 1988 | C20: 592 | E20: 0.6891 | G20: 407.9472 | I20: 0.3109 | K20: 184.0528 | M20: 1 | O20: 592
A21: 1989 | C21: 488 | E21: 0.645 | G21: 314.76 | I21: 0.355 | K21: 173.24 | M21: 1 | O21: 488
A22: 1990 | C22: 1734 | E22: 0.526 | G22: 912.084 | I22: 0.474 | K22: 821.916 | M22: 1 | O22: 1734
A23: 1991 | C23: 1241 | E23: 0.5593 | G23: 694.0913 | I23: 0.4407 | K23: 546.9087 | M23: 1 | O23: 1241
A24: 1992 | C24: 704 | E24: 0.5987 | G24: 421.4848 | I24: 0.4013 | K24: 282.5152 | M24: 1 | O24: 704
A25: 1993 | C25: 2371 | E25: 0.3025 | G25: 717.2275 | I25: 0.6975 | K25: 1653.7725 | M25: 1 | O25: 2371
A26: 1994 | C26: 1048 | E26: 0.4421 | G26: 463.3208 | I26: 0.5579 | K26: 584.6792 | M26: 1 | O26: 1048
A27: 1995 | C27: 1928 | E27: 0.2609 | G27: =+C27*E27 -> 503.0152 | I27: 0.7391 | K27: =+C27*I27 -> 1424.9848 | M27: =+E27+I27 -> 1 | O27: =+G27+K27 -> 1928
A28: 1996 | C28: 1812 | E28: 0.2669 | G28: 483.6228 | I28: 0.7331 | K28: 1328.3772 | M28: 1 | O28: 1812
A29: 1997 | C29: 2529 | E29: 0.478 | G29: 1208.862 | I29: 0.522 | K29: 1320.138 | M29: 1 | O29: 2529
A30: 1998 | C30: 2314 | E30: 0.5019 | G30: 1161.3966 | I30: 0.4981 | K30: 1152.6034 | M30: 1 | O30: 2314
A31: 1999 | C31: 2108 | E31: 0.4846 | G31: 1021.5368 | I31: 0.5154 | K31: 1086.4632 | M31: 1 | O31: 2108
A32: 2000 | C32: 3397 | E32: =1353/2815 -> 0.4806394316 | G32: 1632.732149 | I32: =1462/2815 -> 0.5193605684 | K32: 1764.267851 | M32: 1 | O32: 3397
A34: Total | C34: =SUM(C13:C33) -> 24057 | G34: =SUM(G13:G33) -> 11554.82315 | K34: =SUM(K13:K33) -> 12502.17685 | O34: =SUM(O13:O33) -> 24057

Sheet Shasta CWA Assignment (hidden)
A1: M&I 2007 Sch A-15 F.Z09.xls
A2: 1/24/2007
C3: Their historical deliveries were ajdusted in the 2006 water rates due to the following assignments.
C6: Shasta County #25 to | E6: Shasta CWA to | G6: Shasta CWA to | L6: Do not change - historical data
C7: Shasta CWA | E7: Mountain Gate CSD | G7: Bella Vista WD | L7: Historical Deliveries Prior to Assignment
C8: 1/ | E8: 2/ | G8: 3/ | L8: Shasta County #25 | N8: Shasta CWA
C9: 500 | E9: 1000 | G9: 578
C10: 1 | E10: =1000/2100 -> 0.4761904762 | G10: =578/2100 -> 0.2752380952
A11: YEAR | J11: YEAR
C12: =500 -> 500
A13: 1981 | C13: =+L13 -> 67 | E13: =+N13*E$10 -> 44.28571429 | G13: =+N13*G$10 -> 25.59714286 | J13: 1981 | L13: 67 | N13: 93
A14: 1982 | C14: =+L14 -> 54 | E14: 61.42857143 | G14: 35.50571429 | J14: 1982 | L14: 54 | N14: 129
A15: 1983 | C15: 59 | E15: 141.4285714 | G15: 81.74571429 | J15: 1983 | L15: 59 | N15: 297
A16: 1984 | C16: 72 | E16: 80.47619048 | G16: 46.5152381 | J16: 1984 | L16: 72 | N16: 169
A17: 1985 | C17: 88 | E17: 106.1904762 | G17: 61.37809524 | J17: 1985 | L17: 88 | N17: 223
A18: 1986 | C18: 131 | E18: 129.047619 | G18: 74.58952381 | J18: 1986 | L18: 131 | N18: 271
A19: 1987 | C19: 151 | E19: 204.7619048 | G19: 118.352381 | J19: 1987 | L19: 151 | N19: 430
A20: 1988 | C20: 133 | E20: 194.2857143 | G20: 112.2971429 | J20: 1988 | L20: 133 | N20: 408
A21: 1989 | C21: 110 | E21: 150 | G21: 86.7 | J21: 1989 | L21: 110 | N21: 315
A22: 1990 | C22: 111 | E22: 434.2857143 | G22: 251.0171429 | J22: 1990 | L22: 111 | N22: 912
A23: 1991 | C23: 0 | E23: 330.4761905 | G23: 191.0152381 | J23: 1991 | L23: 0 | N23: 694
A24: 1992 | C24: 136 | E24: 200.4761905 | G24: 115.8752381 | J24: 1992 | L24: 136 | N24: 421
A25: 1993 | C25: 137 | E25: 341.4285714 | G25: 197.3457143 | J25: 1993 | L25: 137 | N25: 717
A26: 1994 | C26: 160 | E26: 220.4761905 | G26: 127.4352381 | J26: 1994 | L26: 160 | N26: 463
A27: 1995 | C27: 170 | E27: 239.5238095 | G27: 138.4447619 | J27: 1995 | L27: 170 | N27: 503
A28: 1996 | C28: 191 | E28: 230.4761905 | G28: 133.2152381 | J28: 1996 | L28: 191 | N28: 484
A29: 1997 | C29: 173 | E29: 575.7142857 | G29: 332.7628571 | J29: 1997 | L29: 173 | N29: 1209
A30: 1998 | C30: 140 | E30: 552.8571429 | G30: 319.5514286 | J30: 1998 | L30: 140 | N30: 1161
A31: 1999 | C31: 166 | E31: 486.6666667 | G31: 281.2933333 | J31: 1999 | L31: 166 | N31: 1022
A32: 2000 | C32: 213 | E32: 777.6190476 | G32: 449.4638095 | J32: 2000 | L32: 213 | N32: 1633
A33: 2001 | C33: 180 | E33: 306.1904762 | G33: 176.9780952 | J33: 2001 | L33: 180 | N33: 643
A34: 2002 | C34: 182 | E34: 565.2380952 | G34: 326.707619 | J34: 2002 | L34: 182 | N34: 1187
A35: 2003 | C35: 190 | E35: 568.0952381 | G35: 328.3590476 | J35: 2003 | L35: 190 | N35: 1193
A36: 2004 | C36: 168 | E36: 575.7142857 | G36: 332.7628571 | J36: 2004 | L36: 168 | N36: 1209
C38: =SUM(C13:C37) -> 3182 | E38: =SUM(E13:E37) -> 7517.142857 | G38: =SUM(G13:G37) -> 4344.908571 | L38: =SUM(L13:L37) -> 3182 | N38: =SUM(N13:N37) -> 15786
B41: 1/ | C41: Shasta County #25 (Keswick #25) assigned 500 A/F to Shasta CWA. Assigned water will be delivered through Spring Creek Conduit.
B42: 2/ | C42: Shasta CWA assigned 1000 A/F to Mountain Gate CSD.
B43: 3/ | C43: Shasta CWA assigned 578 A/F to Bella Vista WD. Assigned water will be delivered through Cow Creek Unit.

Sheet Broadview Assignment (hidden)
C19: For Broadview WD and Westlands WD, their historical deliveries have been ajdusted in the 2008 water rates due to the assignment effective March 1, 2007.
C22: Historical Deliveries after Assignment | K22: Historical Deliveries Prior to Assignment
C23: Westlands WD | E23: Broadview WD | G23: Total | K23: Westlands WD | M23: Broadview WD | O23: Total
B27: 1995 | C27: =+K27+M27 -> 5125 | E27: 0 | G27: =+C27+E27 -> 5125 | I27: 1995 | K27: 5122 | M27: 3 | O27: =+K27+M27 -> 5125
B28: 1996 | C28: =+K28+M28 -> 4885 | E28: 0 | G28: =+C28+E28 -> 4885 | I28: 1996 | K28: 4885 | O28: =+K28+M28 -> 4885
B29: 1997 | C29: 4876 | E29: 0 | G29: 4876 | I29: 1997 | K29: 4847 | M29: 29 | O29: 4876
B30: 1998 | C30: 4782 | E30: 0 | G30: 4782 | I30: 1998 | K30: 4765 | M30: 17 | O30: 4782
B31: 1999 | C31: 5270 | E31: 0 | G31: 5270 | I31: 1999 | K31: 5257 | M31: 13 | O31: 5270
B32: 2000 | C32: 5492 | E32: 0 | G32: 5492 | I32: 2000 | K32: 5468 | M32: 24 | O32: 5492
B33: 2001 | C33: 4903 | E33: 0 | G33: 4903 | I33: 2001 | K33: 4881 | M33: 22 | O33: 4903
B34: 2002 | C34: 6210 | E34: 0 | G34: 6210 | I34: 2002 | K34: 6184 | M34: 26 | O34: 6210
B35: 2003 | C35: 6332 | E35: 0 | G35: 6332 | I35: 2003 | K35: 6304 | M35: 28 | O35: 6332
B36: 2004 | C36: 4340 | E36: 0 | G36: 4340 | I36: 2004 | K36: 4321 | M36: 19 | O36: 4340
B37: 2005 | C37: 3049 | E37: 0 | G37: 3049 | I37: 2005 | K37: 3027 | M37: 22 | O37: 3049
B38: 2006 | C38: 3932 | E38: 0 | G38: 3932 | I38: 2006 | K38: =ActualDeliveries!$F$73 -> 3932 | M38: =ActualDeliveries!$F$157 -> 0 | O38: 3932
B39: Total | C39: =SUM(C27:C38) -> 59196 | E39: =SUM(E27:E38) -> 0 | G39: =SUM(G27:G38) -> 59196 | K39: =SUM(K27:K38) -> 58993 | M39: =SUM(M27:M38) -> 203 | O39: =SUM(O27:O38) -> 59196
